Workbook

Sheet Hinweise_Impressum
A5: Haftungsausschluss / AGB
A7: Der NWB Verlag übernimmt keine Gewähr und keine Haftung für die Richtigkeit der Ergebnisse.
A9: Im Übrigen gelten die aktuellen AGB der NWB Datenbank und des NWB Verlages.
A11: Impressum
A13: NWB Verlag GmbH & Co. KG
A14: AG Bochum HRA 5124
A15: Eschstr. 22 · 44629 Herne
A16: Fon 02323.141-900 · Fax 02323.141-123
A17: E-Mail: info@nwb.de
A18: Internet: www.nwb.de
A21: Alle Rechte vorbehalten. Vervielfältigungen nur mit Zustimmung des Verlages.

Sheet Modell
C9: Unternehmensspezifische Einflußfaktoren | M9: Zinssatz (Kalkulationszins)
K10: Nutzungsdauer (Jahre) | M10: 0.04 | N10: 0.06 | O10: 0.08 | P10: 0.1 | Q10: 0.12 | R10: 0.14
C11: Investierte Summe | E11: 140000 | F11: Euro | L11: 6 | M11: ='.'!E8 -> -0.004542522168 | N11: ='.'!G8 -> -0.006483706414 | O11: ='.'!I8 -> -0.008234057421 | P11: ='.'!K8 -> -0.009812481706 | Q11: ='.'!M8 -> -0.0112358299 | R11: ='.'!O8 -> -0.01251914306
C12: Zinssatz | E12: =J12/100 -> 0.1 | F12: Prozent | J12: 10 | L12: 8 | M12: ='.'!E10 -> -0.009869548884 | N12: ='.'!G10 -> -0.01391802655 | O12: ='.'!I10 -> -0.01747043851 | P12: ='.'!K10 -> -0.02058631281 | Q12: ='.'!M10 -> -0.023317492 | R12: ='.'!O10 -> -0.02570920907
C13: Steuersatz (Multifaktor) | E13: =J13/100 -> 0.28 | F13: Prozent | J13: 28 | L13: 10 | M13: ='.'!E12 -> -0.01577638985 | N13: ='.'!G12 -> -0.02200235736 | O13: ='.'!I12 -> -0.02732650729 | P13: ='.'!K12 -> -0.03187467422 | Q13: ='.'!M12 -> -0.03575402427 | R13: ='.'!O12 -> -0.03905602786
C14: Nutzungsdauer | E14: =J14 -> 7 | F14: Jahre | J14: 7 | L14: 12 | M14: ='.'!E14 -> -0.01793063977 | N14: ='.'!G14 -> -0.02472969621 | O14: ='.'!I14 -> -0.03038980041 | P14: ='.'!K14 -> -0.03509174606 | Q14: ='.'!M14 -> -0.03898612168 | R14: ='.'!O14 -> -0.04219868289
C15: Vorherige degressive Afa | E15: =J15/100 -> 0.3 | F15: Prozent | J15: 30 | L15: 14 | M15: ='.'!E16 -> -0.0199989787 | N15: ='.'!G16 -> -0.02727998522 | O15: ='.'!I16 -> -0.03317629862 | P15: ='.'!K16 -> -0.03793388403 | Q15: ='.'!M16 -> -0.04175309894 | R15: ='.'!O16 -> -0.04479763676
C22: Barwertige Vorteilhaftigkeitseinbuße | F22: =(Abschreibungsbarwert(-1,E14,E12,E13)-Abschreibungsbarwert(E15,E14,E12,E13))*E13 -> -0.01504560721 | G22: Prozent
C23: (in % der Investitionssumme)
C25: Vorteilhaftigkeitseinbuße in Euro | F25: =E11*F22 -> -2106.385009 | G25: Euro
C31: • alle Zahlungen erfolgen zum Jahresende
C32: • bei degressiver Abschreibung wird regulärer (optimaler)
C33: Wechsel von degressiver auf lineare Abschreibung realisiert
C34: • Annahme, dass der Restbuchwert gleich Null ist
C35: • grobe Vereinfachung der Besteuerung in Form eines
C36: linearen "Steuermultifaktors" (als durchschnittliche Belastung)
C37: • Betrachtung einer Kapitalgesellschaft oder einer Personen-
C38: gesellschaft, deren Gesellschafter den Spitzensteuersatz
C39: zahlen
C40: • Unternehmen erzielt über den gesamten Zeitraum in toto
C41: (zu versteuernde) Gewinne
C42: • durchgängige Gültigkeit der Parameter über den gesamten
C43: Betrachtungszeitraum (keine Zinssatzänderung, keine Steuer-
C44: satzänderung ...)
C45: • rein pagatorisches Modell
C52: Schmitting, W. (2007): Ein neuer Höchstsatz der degressiven Abschreibung - ein wirksamer Investitionsanreiz?,
C53: in: Zeitschrift für Planung & Unternehmenssteuerung, 18. Jg. (2007), Heft 1 (April), S. 109-121.

Sheet .. (hidden)
A1: Parameter
A4: Zinssatz | B4: =Modell!E12 -> 0.1 | C4: Prozent | J4: 7
A5: Steuersatz | B5: =Modell!E13 -> 0.28 | C5: Prozent | J5: 45
A6: Nutzungsdauer | B6: =Modell!E14 -> 7 | C6: Jahre | J6: 7
A7: Buchwertabschreibung | B7: =Modell!E15 -> 0.3 | C7: Prozent | J7: 20
J8: 20

Sheet . (hidden)
A1: ND | B1: Zins
B2: 0.01 | C2: 0.02 | D2: 0.03 | E2: 0.04 | F2: 0.05 | G2: 0.06 | H2: 0.07 | I2: 0.08 | J2: 0.09 | K2: 0.1 | L2: 0.11 | M2: 0.12 | N2: 0.13 | O2: 0.14 | P2: 0.15 | Q2: 0.16 | R2: 0.17 | S2: 0.18 | T2: 0.19 | U2: 0.2 | V2: 0.21 | W2: 0.22 | X2: 0.23 | Y2: 0.24 | Z2: 0.25
A3: 1 | B3: =(Abschreibungsbarwert(-1,$A3,B$2,'..'!$B$5)-Abschreibungsbarwert('..'!$B$7,'.'!$A3,'.'!B$2,'..'!$B$5))*'..'!$B$5 -> 0 | C3: =(Abschreibungsbarwert(-1,$A3,C$2,'..'!$B$5)-Abschreibungsbarwert('..'!$B$7,'.'!$A3,'.'!C$2,'..'!$B$5))*'..'!$B$5 -> 0 | D3: =(Abschreibungsbarwert(-1,$A3,D$2,'..'!$B$5)-Abschreibungsbarwert('..'!$B$7,'.'!$A3,'.'!D$2,'..'!$B$5))*'..'!$B$5 -> 0 | E3: =(Abschreibungsbarwert(-1,$A3,E$2,'..'!$B$5)-Abschreibungsbarwert('..'!$B$7,'.'!$A3,'.'!E$2,'..'!$B$5))*'..'!$B$5 -> 0 | F3: =(Abschreibungsbarwert(-1,$A3,F$2,'..'!$B$5)-Abschreibungsbarwert('..'!$B$7,'.'!$A3,'.'!F$2,'..'!$B$5))*'..'!$B$5 -> 0 | G3: =(Abschreibungsbarwert(-1,$A3,G$2,'..'!$B$5)-Abschreibungsbarwert('..'!$B$7,'.'!$A3,'.'!G$2,'..'!$B$5))*'..'!$B$5 -> 0 | H3: =(Abschreibungsbarwert(-1,$A3,H$2,'..'!$B$5)-Abschreibungsbarwert('..'!$B$7,'.'!$A3,'.'!H$2,'..'!$B$5))*'..'!$B$5 -> 0 | I3: =(Abschreibungsbarwert(-1,$A3,I$2,'..'!$B$5)-Abschreibungsbarwert('..'!$B$7,'.'!$A3,'.'!I$2,'..'!$B$5))*'..'!$B$5 -> 0 | J3: =(Abschreibungsbarwert(-1,$A3,J$2,'..'!$B$5)-Abschreibungsbarwert('..'!$B$7,'.'!$A3,'.'!J$2,'..'!$B$5))*'..'!$B$5 -> 0 | K3: =(Abschreibungsbarwert(-1,$A3,K$2,'..'!$B$5)-Abschreibungsbarwert('..'!$B$7,'.'!$A3,'.'!K$2,'..'!$B$5))*'..'!$B$5 -> 0 | L3: =(Abschreibungsbarwert(-1,$A3,L$2,'..'!$B$5)-Abschreibungsbarwert('..'!$B$7,'.'!$A3,'.'!L$2,'..'!$B$5))*'..'!$B$5 -> 0 | M3: =(Abschreibungsbarwert(-1,$A3,M$2,'..'!$B$5)-Abschreibungsbarwert('..'!$B$7,'.'!$A3,'.'!M$2,'..'!$B$5))*'..'!$B$5 -> 0 | N3: =(Abschreibungsbarwert(-1,$A3,N$2,'..'!$B$5)-Abschreibungsbarwert('..'!$B$7,'.'!$A3,'.'!N$2,'..'!$B$5))*'..'!$B$5 -> 0 | O3: =(Abschreibungsbarwert(-1,$A3,O$2,'..'!$B$5)-Abschreibungsbarwert('..'!$B$7,'.'!$A3,'.'!O$2,'..'!$B$5))*'..'!$B$5 -> 0 | P3: =(Abschreibungsbarwert(-1,$A3,P$2,'..'!$B$5)-Abschreibungsbarwert('..'!$B$7,'.'!$A3,'.'!P$2,'..'!$B$5))*'..'!$B$5 -> 0 | Q3: =(Abschreibungsbarwert(-1,$A3,Q$2,'..'!$B$5)-Abschreibungsbarwert('..'!$B$7,'.'!$A3,'.'!Q$2,'..'!$B$5))*'..'!$B$5 -> 0 | R3: =(Abschreibungsbarwert(-1,$A3,R$2,'..'!$B$5)-Abschreibungsbarwert('..'!$B$7,'.'!$A3,'.'!R$2,'..'!$B$5))*'..'!$B$5 -> 0 | S3: =(Abschreibungsbarwert(-1,$A3,S$2,'..'!$B$5)-Abschreibungsbarwert('..'!$B$7,'.'!$A3,'.'!S$2,'..'!$B$5))*'..'!$B$5 -> 0 | T3: =(Abschreibungsbarwert(-1,$A3,T$2,'..'!$B$5)-Abschreibungsbarwert('..'!$B$7,'.'!$A3,'.'!T$2,'..'!$B$5))*'..'!$B$5 -> 0 | U3: =(Abschreibungsbarwert(-1,$A3,U$2,'..'!$B$5)-Abschreibungsbarwert('..'!$B$7,'.'!$A3,'.'!U$2,'..'!$B$5))*'..'!$B$5 -> 0 | V3: =(Abschreibungsbarwert(-1,$A3,V$2,'..'!$B$5)-Abschreibungsbarwert('..'!$B$7,'.'!$A3,'.'!V$2,'..'!$B$5))*'..'!$B$5 -> 0 | W3: =(Abschreibungsbarwert(-1,$A3,W$2,'..'!$B$5)-Abschreibungsbarwert('..'!$B$7,'.'!$A3,'.'!W$2,'..'!$B$5))*'..'!$B$5 -> 0 | X3: =(Abschreibungsbarwert(-1,$A3,X$2,'..'!$B$5)-Abschreibungsbarwert('..'!$B$7,'.'!$A3,'.'!X$2,'..'!$B$5))*'..'!$B$5 -> 0 | Y3: =(Abschreibungsbarwert(-1,$A3,Y$2,'..'!$B$5)-Abschreibungsbarwert('..'!$B$7,'.'!$A3,'.'!Y$2,'..'!$B$5))*'..'!$B$5 -> 0 | Z3: =(Abschreibungsbarwert(-1,$A3,Z$2,'..'!$B$5)-Abschreibungsbarwert('..'!$B$7,'.'!$A3,'.'!Z$2,'..'!$B$5))*'..'!$B$5 -> 0
A4: 2 | B4: =(Abschreibungsbarwert(-1,$A4,B$2,'..'!$B$5)-Abschreibungsbarwert('..'!$B$7,'.'!$A4,'.'!B$2,'..'!$B$5))*'..'!$B$5 -> 0 | C4: =(Abschreibungsbarwert(-1,$A4,C$2,'..'!$B$5)-Abschreibungsbarwert('..'!$B$7,'.'!$A4,'.'!C$2,'..'!$B$5))*'..'!$B$5 -> 0 | D4: =(Abschreibungsbarwert(-1,$A4,D$2,'..'!$B$5)-Abschreibungsbarwert('..'!$B$7,'.'!$A4,'.'!D$2,'..'!$B$5))*'..'!$B$5 -> 0 | E4: =(Abschreibungsbarwert(-1,$A4,E$2,'..'!$B$5)-Abschreibungsbarwert('..'!$B$7,'.'!$A4,'.'!E$2,'..'!$B$5))*'..'!$B$5 -> 0 | F4: =(Abschreibungsbarwert(-1,$A4,F$2,'..'!$B$5)-Abschreibungsbarwert('..'!$B$7,'.'!$A4,'.'!F$2,'..'!$B$5))*'..'!$B$5 -> 0 | G4: =(Abschreibungsbarwert(-1,$A4,G$2,'..'!$B$5)-Abschreibungsbarwert('..'!$B$7,'.'!$A4,'.'!G$2,'..'!$B$5))*'..'!$B$5 -> 0 | H4: =(Abschreibungsbarwert(-1,$A4,H$2,'..'!$B$5)-Abschreibungsbarwert('..'!$B$7,'.'!$A4,'.'!H$2,'..'!$B$5))*'..'!$B$5 -> 0 | I4: =(Abschreibungsbarwert(-1,$A4,I$2,'..'!$B$5)-Abschreibungsbarwert('..'!$B$7,'.'!$A4,'.'!I$2,'..'!$B$5))*'..'!$B$5 -> 0 | J4: =(Abschreibungsbarwert(-1,$A4,J$2,'..'!$B$5)-Abschreibungsbarwert('..'!$B$7,'.'!$A4,'.'!J$2,'..'!$B$5))*'..'!$B$5 -> 0 | K4: =(Abschreibungsbarwert(-1,$A4,K$2,'..'!$B$5)-Abschreibungsbarwert('..'!$B$7,'.'!$A4,'.'!K$2,'..'!$B$5))*'..'!$B$5 -> 0 | L4: =(Abschreibungsbarwert(-1,$A4,L$2,'..'!$B$5)-Abschreibungsbarwert('..'!$B$7,'.'!$A4,'.'!L$2,'..'!$B$5))*'..'!$B$5 -> 0 | M4: =(Abschreibungsbarwert(-1,$A4,M$2,'..'!$B$5)-Abschreibungsbarwert('..'!$B$7,'.'!$A4,'.'!M$2,'..'!$B$5))*'..'!$B$5 -> 0 | N4: =(Abschreibungsbarwert(-1,$A4,N$2,'..'!$B$5)-Abschreibungsbarwert('..'!$B$7,'.'!$A4,'.'!N$2,'..'!$B$5))*'..'!$B$5 -> 0 | O4: =(Abschreibungsbarwert(-1,$A4,O$2,'..'!$B$5)-Abschreibungsbarwert('..'!$B$7,'.'!$A4,'.'!O$2,'..'!$B$5))*'..'!$B$5 -> 0 | P4: =(Abschreibungsbarwert(-1,$A4,P$2,'..'!$B$5)-Abschreibungsbarwert('..'!$B$7,'.'!$A4,'.'!P$2,'..'!$B$5))*'..'!$B$5 -> 0 | Q4: =(Abschreibungsbarwert(-1,$A4,Q$2,'..'!$B$5)-Abschreibungsbarwert('..'!$B$7,'.'!$A4,'.'!Q$2,'..'!$B$5))*'..'!$B$5 -> 0 | R4: =(Abschreibungsbarwert(-1,$A4,R$2,'..'!$B$5)-Abschreibungsbarwert('..'!$B$7,'.'!$A4,'.'!R$2,'..'!$B$5))*'..'!$B$5 -> 0 | S4: =(Abschreibungsbarwert(-1,$A4,S$2,'..'!$B$5)-Abschreibungsbarwert('..'!$B$7,'.'!$A4,'.'!S$2,'..'!$B$5))*'..'!$B$5 -> 0 | T4: =(Abschreibungsbarwert(-1,$A4,T$2,'..'!$B$5)-Abschreibungsbarwert('..'!$B$7,'.'!$A4,'.'!T$2,'..'!$B$5))*'..'!$B$5 -> 0 | U4: =(Abschreibungsbarwert(-1,$A4,U$2,'..'!$B$5)-Abschreibungsbarwert('..'!$B$7,'.'!$A4,'.'!U$2,'..'!$B$5))*'..'!$B$5 -> 0 | V4: =(Abschreibungsbarwert(-1,$A4,V$2,'..'!$B$5)-Abschreibungsbarwert('..'!$B$7,'.'!$A4,'.'!V$2,'..'!$B$5))*'..'!$B$5 -> 0 | W4: =(Abschreibungsbarwert(-1,$A4,W$2,'..'!$B$5)-Abschreibungsbarwert('..'!$B$7,'.'!$A4,'.'!W$2,'..'!$B$5))*'..'!$B$5 -> 0 | X4: =(Abschreibungsbarwert(-1,$A4,X$2,'..'!$B$5)-Abschreibungsbarwert('..'!$B$7,'.'!$A4,'.'!X$2,'..'!$B$5))*'..'!$B$5 -> 0 | Y4: =(Abschreibungsbarwert(-1,$A4,Y$2,'..'!$B$5)-Abschreibungsbarwert('..'!$B$7,'.'!$A4,'.'!Y$2,'..'!$B$5))*'..'!$B$5 -> 0 | Z4: =(Abschreibungsbarwert(-1,$A4,Z$2,'..'!$B$5)-Abschreibungsbarwert('..'!$B$7,'.'!$A4,'.'!Z$2,'..'!$B$5))*'..'!$B$5 -> 0
A5: 3 | B5: =(Abschreibungsbarwert(-1,$A5,B$2,'..'!$B$5)-Abschreibungsbarwert('..'!$B$7,'.'!$A5,'.'!B$2,'..'!$B$5))*'..'!$B$5 -> -3.108624469e-17 | C5: =(Abschreibungsbarwert(-1,$A5,C$2,'..'!$B$5)-Abschreibungsbarwert('..'!$B$7,'.'!$A5,'.'!C$2,'..'!$B$5))*'..'!$B$5 -> -3.108624469e-17 | D5: =(Abschreibungsbarwert(-1,$A5,D$2,'..'!$B$5)-Abschreibungsbarwert('..'!$B$7,'.'!$A5,'.'!D$2,'..'!$B$5))*'..'!$B$5 -> 0 | E5: =(Abschreibungsbarwert(-1,$A5,E$2,'..'!$B$5)-Abschreibungsbarwert('..'!$B$7,'.'!$A5,'.'!E$2,'..'!$B$5))*'..'!$B$5 -> 0 | F5: =(Abschreibungsbarwert(-1,$A5,F$2,'..'!$B$5)-Abschreibungsbarwert('..'!$B$7,'.'!$A5,'.'!F$2,'..'!$B$5))*'..'!$B$5 -> -3.108624469e-17 | G5: =(Abschreibungsbarwert(-1,$A5,G$2,'..'!$B$5)-Abschreibungsbarwert('..'!$B$7,'.'!$A5,'.'!G$2,'..'!$B$5))*'..'!$B$5 -> -3.108624469e-17 | H5: =(Abschreibungsbarwert(-1,$A5,H$2,'..'!$B$5)-Abschreibungsbarwert('..'!$B$7,'.'!$A5,'.'!H$2,'..'!$B$5))*'..'!$B$5 -> 0 | I5: =(Abschreibungsbarwert(-1,$A5,I$2,'..'!$B$5)-Abschreibungsbarwert('..'!$B$7,'.'!$A5,'.'!I$2,'..'!$B$5))*'..'!$B$5 -> -3.108624469e-17 | J5: =(Abschreibungsbarwert(-1,$A5,J$2,'..'!$B$5)-Abschreibungsbarwert('..'!$B$7,'.'!$A5,'.'!J$2,'..'!$B$5))*'..'!$B$5 -> -3.108624469e-17 | K5: =(Abschreibungsbarwert(-1,$A5,K$2,'..'!$B$5)-Abschreibungsbarwert('..'!$B$7,'.'!$A5,'.'!K$2,'..'!$B$5))*'..'!$B$5 -> -3.108624469e-17 | L5: =(Abschreibungsbarwert(-1,$A5,L$2,'..'!$B$5)-Abschreibungsbarwert('..'!$B$7,'.'!$A5,'.'!L$2,'..'!$B$5))*'..'!$B$5 -> 0 | M5: =(Abschreibungsbarwert(-1,$A5,M$2,'..'!$B$5)-Abschreibungsbarwert('..'!$B$7,'.'!$A5,'.'!M$2,'..'!$B$5))*'..'!$B$5 -> 0 | N5: =(Abschreibungsbarwert(-1,$A5,N$2,'..'!$B$5)-Abschreibungsbarwert('..'!$B$7,'.'!$A5,'.'!N$2,'..'!$B$5))*'..'!$B$5 -> -3.108624469e-17 | O5: =(Abschreibungsbarwert(-1,$A5,O$2,'..'!$B$5)-Abschreibungsbarwert('..'!$B$7,'.'!$A5,'.'!O$2,'..'!$B$5))*'..'!$B$5 -> -3.108624469e-17 | P5: =(Abschreibungsbarwert(-1,$A5,P$2,'..'!$B$5)-Abschreibungsbarwert('..'!$B$7,'.'!$A5,'.'!P$2,'..'!$B$5))*'..'!$B$5 -> -6.217248938e-17 | Q5: =(Abschreibungsbarwert(-1,$A5,Q$2,'..'!$B$5)-Abschreibungsbarwert('..'!$B$7,'.'!$A5,'.'!Q$2,'..'!$B$5))*'..'!$B$5 -> -6.217248938e-17 | R5: =(Abschreibungsbarwert(-1,$A5,R$2,'..'!$B$5)-Abschreibungsbarwert('..'!$B$7,'.'!$A5,'.'!R$2,'..'!$B$5))*'..'!$B$5 -> 0 | S5: =(Abschreibungsbarwert(-1,$A5,S$2,'..'!$B$5)-Abschreibungsbarwert('..'!$B$7,'.'!$A5,'.'!S$2,'..'!$B$5))*'..'!$B$5 -> 0 | T5: =(Abschreibungsbarwert(-1,$A5,T$2,'..'!$B$5)-Abschreibungsbarwert('..'!$B$7,'.'!$A5,'.'!T$2,'..'!$B$5))*'..'!$B$5 -> 0 | U5: =(Abschreibungsbarwert(-1,$A5,U$2,'..'!$B$5)-Abschreibungsbarwert('..'!$B$7,'.'!$A5,'.'!U$2,'..'!$B$5))*'..'!$B$5 -> -3.108624469e-17 | V5: =(Abschreibungsbarwert(-1,$A5,V$2,'..'!$B$5)-Abschreibungsbarwert('..'!$B$7,'.'!$A5,'.'!V$2,'..'!$B$5))*'..'!$B$5 -> -6.217248938e-17 | W5: =(Abschreibungsbarwert(-1,$A5,W$2,'..'!$B$5)-Abschreibungsbarwert('..'!$B$7,'.'!$A5,'.'!W$2,'..'!$B$5))*'..'!$B$5 -> 0 | X5: =(Abschreibungsbarwert(-1,$A5,X$2,'..'!$B$5)-Abschreibungsbarwert('..'!$B$7,'.'!$A5,'.'!X$2,'..'!$B$5))*'..'!$B$5 -> -3.108624469e-17 | Y5: =(Abschreibungsbarwert(-1,$A5,Y$2,'..'!$B$5)-Abschreibungsbarwert('..'!$B$7,'.'!$A5,'.'!Y$2,'..'!$B$5))*'..'!$B$5 -> -3.108624469e-17 | Z5: =(Abschreibungsbarwert(-1,$A5,Z$2,'..'!$B$5)-Abschreibungsbarwert('..'!$B$7,'.'!$A5,'.'!Z$2,'..'!$B$5))*'..'!$B$5 -> 0
A6: 4 | B6: =(Abschreibungsbarwert(-1,$A6,B$2,'..'!$B$5)-Abschreibungsbarwert('..'!$B$7,'.'!$A6,'.'!B$2,'..'!$B$5))*'..'!$B$5 -> -0.0001977826316 | C6: =(Abschreibungsbarwert(-1,$A6,C$2,'..'!$B$5)-Abschreibungsbarwert('..'!$B$7,'.'!$A6,'.'!C$2,'..'!$B$5))*'..'!$B$5 -> -0.0003881388846 | D6: =(Abschreibungsbarwert(-1,$A6,D$2,'..'!$B$5)-Abschreibungsbarwert('..'!$B$7,'.'!$A6,'.'!D$2,'..'!$B$5))*'..'!$B$5 -> -0.0005713703054 | E6: =(Abschreibungsbarwert(-1,$A6,E$2,'..'!$B$5)-Abschreibungsbarwert('..'!$B$7,'.'!$A6,'.'!E$2,'..'!$B$5))*'..'!$B$5 -> -0.0007477644113 | F6: =(Abschreibungsbarwert(-1,$A6,F$2,'..'!$B$5)-Abschreibungsbarwert('..'!$B$7,'.'!$A6,'.'!F$2,'..'!$B$5))*'..'!$B$5 -> -0.000917595433 | G6: =(Abschreibungsbarwert(-1,$A6,G$2,'..'!$B$5)-Abschreibungsbarwert('..'!$B$7,'.'!$A6,'.'!G$2,'..'!$B$5))*'..'!$B$5 -> -0.001081125014 | H6: =(Abschreibungsbarwert(-1,$A6,H$2,'..'!$B$5)-Abschreibungsbarwert('..'!$B$7,'.'!$A6,'.'!H$2,'..'!$B$5))*'..'!$B$5 -> -0.001238602866 | I6: =(Abschreibungsbarwert(-1,$A6,I$2,'..'!$B$5)-Abschreibungsbarwert('..'!$B$7,'.'!$A6,'.'!I$2,'..'!$B$5))*'..'!$B$5 -> -0.001390267393 | J6: =(Abschreibungsbarwert(-1,$A6,J$2,'..'!$B$5)-Abschreibungsbarwert('..'!$B$7,'.'!$A6,'.'!J$2,'..'!$B$5))*'..'!$B$5 -> -0.001536346266 | K6: =(Abschreibungsbarwert(-1,$A6,K$2,'..'!$B$5)-Abschreibungsbarwert('..'!$B$7,'.'!$A6,'.'!K$2,'..'!$B$5))*'..'!$B$5 -> -0.00167705698 | L6: =(Abschreibungsbarwert(-1,$A6,L$2,'..'!$B$5)-Abschreibungsbarwert('..'!$B$7,'.'!$A6,'.'!L$2,'..'!$B$5))*'..'!$B$5 -> -0.001812607367 | M6: =(Abschreibungsbarwert(-1,$A6,M$2,'..'!$B$5)-Abschreibungsbarwert('..'!$B$7,'.'!$A6,'.'!M$2,'..'!$B$5))*'..'!$B$5 -> -0.001943196084 | N6: =(Abschreibungsbarwert(-1,$A6,N$2,'..'!$B$5)-Abschreibungsbarwert('..'!$B$7,'.'!$A6,'.'!N$2,'..'!$B$5))*'..'!$B$5 -> -0.002069013078 | O6: =(Abschreibungsbarwert(-1,$A6,O$2,'..'!$B$5)-Abschreibungsbarwert('..'!$B$7,'.'!$A6,'.'!O$2,'..'!$B$5))*'..'!$B$5 -> -0.002190240013 | P6: =(Abschreibungsbarwert(-1,$A6,P$2,'..'!$B$5)-Abschreibungsbarwert('..'!$B$7,'.'!$A6,'.'!P$2,'..'!$B$5))*'..'!$B$5 -> -0.002307050687 | Q6: =(Abschreibungsbarwert(-1,$A6,Q$2,'..'!$B$5)-Abschreibungsbarwert('..'!$B$7,'.'!$A6,'.'!Q$2,'..'!$B$5))*'..'!$B$5 -> -0.002419611414 | R6: =(Abschreibungsbarwert(-1,$A6,R$2,'..'!$B$5)-Abschreibungsbarwert('..'!$B$7,'.'!$A6,'.'!R$2,'..'!$B$5))*'..'!$B$5 -> -0.002528081393 | S6: =(Abschreibungsbarwert(-1,$A6,S$2,'..'!$B$5)-Abschreibungsbarwert('..'!$B$7,'.'!$A6,'.'!S$2,'..'!$B$5))*'..'!$B$5 -> -0.002632613054 | T6: =(Abschreibungsbarwert(-1,$A6,T$2,'..'!$B$5)-Abschreibungsbarwert('..'!$B$7,'.'!$A6,'.'!T$2,'..'!$B$5))*'..'!$B$5 -> -0.002733352382 | U6: =(Abschreibungsbarwert(-1,$A6,U$2,'..'!$B$5)-Abschreibungsbarwert('..'!$B$7,'.'!$A6,'.'!U$2,'..'!$B$5))*'..'!$B$5 -> -0.00283043923 | V6: =(Abschreibungsbarwert(-1,$A6,V$2,'..'!$B$5)-Abschreibungsbarwert('..'!$B$7,'.'!$A6,'.'!V$2,'..'!$B$5))*'..'!$B$5 -> -0.002924007608 | W6: =(Abschreibungsbarwert(-1,$A6,W$2,'..'!$B$5)-Abschreibungsbarwert('..'!$B$7,'.'!$A6,'.'!W$2,'..'!$B$5))*'..'!$B$5 -> -0.003014185962 | X6: =(Abschreibungsbarwert(-1,$A6,X$2,'..'!$B$5)-Abschreibungsbarwert('..'!$B$7,'.'!$A6,'.'!X$2,'..'!$B$5))*'..'!$B$5 -> -0.003101097437 | Y6: =(Abschreibungsbarwert(-1,$A6,Y$2,'..'!$B$5)-Abschreibungsbarwert('..'!$B$7,'.'!$A6,'.'!Y$2,'..'!$B$5))*'..'!$B$5 -> -0.00318486012 | Z6: =(Abschreibungsbarwert(-1,$A6,Z$2,'..'!$B$5)-Abschreibungsbarwert('..'!$B$7,'.'!$A6,'.'!Z$2,'..'!$B$5))*'..'!$B$5 -> -0.003265587284
A7: 5 | B7: =(Abschreibungsbarwert(-1,$A7,B$2,'..'!$B$5)-Abschreibungsbarwert('..'!$B$7,'.'!$A7,'.'!B$2,'..'!$B$5))*'..'!$B$5 -> -0.0006307393225 | C7: =(Abschreibungsbarwert(-1,$A7,C$2,'..'!$B$5)-Abschreibungsbarwert('..'!$B$7,'.'!$A7,'.'!C$2,'..'!$B$5))*'..'!$B$5 -> -0.001233617791 | D7: =(Abschreibungsbarwert(-1,$A7,D$2,'..'!$B$5)-Abschreibungsbarwert('..'!$B$7,'.'!$A7,'.'!D$2,'..'!$B$5))*'..'!$B$5 -> -0.001809932656 | E7: =(Abschreibungsbarwert(-1,$A7,E$2,'..'!$B$5)-Abschreibungsbarwert('..'!$B$7,'.'!$A7,'.'!E$2,'..'!$B$5))*'..'!$B$5 -> -0.002360913221 | F7: =(Abschreibungsbarwert(-1,$A7,F$2,'..'!$B$5)-Abschreibungsbarwert('..'!$B$7,'.'!$A7,'.'!F$2,'..'!$B$5))*'..'!$B$5 -> -0.002887724832 | G7: =(Abschreibungsbarwert(-1,$A7,G$2,'..'!$B$5)-Abschreibungsbarwert('..'!$B$7,'.'!$A7,'.'!G$2,'..'!$B$5))*'..'!$B$5 -> -0.003391472616 | H7: =(Abschreibungsbarwert(-1,$A7,H$2,'..'!$B$5)-Abschreibungsbarwert('..'!$B$7,'.'!$A7,'.'!H$2,'..'!$B$5))*'..'!$B$5 -> -0.003873204971 | I7: =(Abschreibungsbarwert(-1,$A7,I$2,'..'!$B$5)-Abschreibungsbarwert('..'!$B$7,'.'!$A7,'.'!I$2,'..'!$B$5))*'..'!$B$5 -> -0.004333916833 | J7: =(Abschreibungsbarwert(-1,$A7,J$2,'..'!$B$5)-Abschreibungsbarwert('..'!$B$7,'.'!$A7,'.'!J$2,'..'!$B$5))*'..'!$B$5 -> -0.004774552736 | K7: =(Abschreibungsbarwert(-1,$A7,K$2,'..'!$B$5)-Abschreibungsbarwert('..'!$B$7,'.'!$A7,'.'!K$2,'..'!$B$5))*'..'!$B$5 -> -0.005196009674 | L7: =(Abschreibungsbarwert(-1,$A7,L$2,'..'!$B$5)-Abschreibungsbarwert('..'!$B$7,'.'!$A7,'.'!L$2,'..'!$B$5))*'..'!$B$5 -> -0.005599139784 | M7: =(Abschreibungsbarwert(-1,$A7,M$2,'..'!$B$5)-Abschreibungsbarwert('..'!$B$7,'.'!$A7,'.'!M$2,'..'!$B$5))*'..'!$B$5 -> -0.005984752862 | N7: =(Abschreibungsbarwert(-1,$A7,N$2,'..'!$B$5)-Abschreibungsbarwert('..'!$B$7,'.'!$A7,'.'!N$2,'..'!$B$5))*'..'!$B$5 -> -0.006353618721 | O7: =(Abschreibungsbarwert(-1,$A7,O$2,'..'!$B$5)-Abschreibungsbarwert('..'!$B$7,'.'!$A7,'.'!O$2,'..'!$B$5))*'..'!$B$5 -> -0.006706469402 | P7: =(Abschreibungsbarwert(-1,$A7,P$2,'..'!$B$5)-Abschreibungsbarwert('..'!$B$7,'.'!$A7,'.'!P$2,'..'!$B$5))*'..'!$B$5 -> -0.007044001253 | Q7: =(Abschreibungsbarwert(-1,$A7,Q$2,'..'!$B$5)-Abschreibungsbarwert('..'!$B$7,'.'!$A7,'.'!Q$2,'..'!$B$5))*'..'!$B$5 -> -0.007366876876 | R7: =(Abschreibungsbarwert(-1,$A7,R$2,'..'!$B$5)-Abschreibungsbarwert('..'!$B$7,'.'!$A7,'.'!R$2,'..'!$B$5))*'..'!$B$5 -> -0.007675726962 | S7: =(Abschreibungsbarwert(-1,$A7,S$2,'..'!$B$5)-Abschreibungsbarwert('..'!$B$7,'.'!$A7,'.'!S$2,'..'!$B$5))*'..'!$B$5 -> -0.007971152007 | T7: =(Abschreibungsbarwert(-1,$A7,T$2,'..'!$B$5)-Abschreibungsbarwert('..'!$B$7,'.'!$A7,'.'!T$2,'..'!$B$5))*'..'!$B$5 -> -0.008253723935 | U7: =(Abschreibungsbarwert(-1,$A7,U$2,'..'!$B$5)-Abschreibungsbarwert('..'!$B$7,'.'!$A7,'.'!U$2,'..'!$B$5))*'..'!$B$5 -> -0.008523987614 | V7: =(Abschreibungsbarwert(-1,$A7,V$2,'..'!$B$5)-Abschreibungsbarwert('..'!$B$7,'.'!$A7,'.'!V$2,'..'!$B$5))*'..'!$B$5 -> -0.008782462296 | W7: =(Abschreibungsbarwert(-1,$A7,W$2,'..'!$B$5)-Abschreibungsbarwert('..'!$B$7,'.'!$A7,'.'!W$2,'..'!$B$5))*'..'!$B$5 -> -0.009029642955 | X7: =(Abschreibungsbarwert(-1,$A7,X$2,'..'!$B$5)-Abschreibungsbarwert('..'!$B$7,'.'!$A7,'.'!X$2,'..'!$B$5))*'..'!$B$5 -> -0.009266001564 | Y7: =(Abschreibungsbarwert(-1,$A7,Y$2,'..'!$B$5)-Abschreibungsbarwert('..'!$B$7,'.'!$A7,'.'!Y$2,'..'!$B$5))*'..'!$B$5 -> -0.009491988285 | Z7: =(Abschreibungsbarwert(-1,$A7,Z$2,'..'!$B$5)-Abschreibungsbarwert('..'!$B$7,'.'!$A7,'.'!Z$2,'..'!$B$5))*'..'!$B$5 -> -0.009708032598
A8: 6 | B8: =(Abschreibungsbarwert(-1,$A8,B$2,'..'!$B$5)-Abschreibungsbarwert('..'!$B$7,'.'!$A8,'.'!B$2,'..'!$B$5))*'..'!$B$5 -> -0.001225737283 | C8: =(Abschreibungsbarwert(-1,$A8,C$2,'..'!$B$5)-Abschreibungsbarwert('..'!$B$7,'.'!$A8,'.'!C$2,'..'!$B$5))*'..'!$B$5 -> -0.002389258226 | D8: =(Abschreibungsbarwert(-1,$A8,D$2,'..'!$B$5)-Abschreibungsbarwert('..'!$B$7,'.'!$A8,'.'!D$2,'..'!$B$5))*'..'!$B$5 -> -0.003493828106 | E8: =(Abschreibungsbarwert(-1,$A8,E$2,'..'!$B$5)-Abschreibungsbarwert('..'!$B$7,'.'!$A8,'.'!E$2,'..'!$B$5))*'..'!$B$5 -> -0.004542522168 | F8: =(Abschreibungsbarwert(-1,$A8,F$2,'..'!$B$5)-Abschreibungsbarwert('..'!$B$7,'.'!$A8,'.'!F$2,'..'!$B$5))*'..'!$B$5 -> -0.005538237894 | G8: =(Abschreibungsbarwert(-1,$A8,G$2,'..'!$B$5)-Abschreibungsbarwert('..'!$B$7,'.'!$A8,'.'!G$2,'..'!$B$5))*'..'!$B$5 -> -0.006483706414 | H8: =(Abschreibungsbarwert(-1,$A8,H$2,'..'!$B$5)-Abschreibungsbarwert('..'!$B$7,'.'!$A8,'.'!H$2,'..'!$B$5))*'..'!$B$5 -> -0.0073815031 | I8: =(Abschreibungsbarwert(-1,$A8,I$2,'..'!$B$5)-Abschreibungsbarwert('..'!$B$7,'.'!$A8,'.'!I$2,'..'!$B$5))*'..'!$B$5 -> -0.008234057421 | J8: =(Abschreibungsbarwert(-1,$A8,J$2,'..'!$B$5)-Abschreibungsbarwert('..'!$B$7,'.'!$A8,'.'!J$2,'..'!$B$5))*'..'!$B$5 -> -0.009043662111 | K8: =(Abschreibungsbarwert(-1,$A8,K$2,'..'!$B$5)-Abschreibungsbarwert('..'!$B$7,'.'!$A8,'.'!K$2,'..'!$B$5))*'..'!$B$5 -> -0.009812481706 | L8: =(Abschreibungsbarwert(-1,$A8,L$2,'..'!$B$5)-Abschreibungsbarwert('..'!$B$7,'.'!$A8,'.'!L$2,'..'!$B$5))*'..'!$B$5 -> -0.01054256049 | M8: =(Abschreibungsbarwert(-1,$A8,M$2,'..'!$B$5)-Abschreibungsbarwert('..'!$B$7,'.'!$A8,'.'!M$2,'..'!$B$5))*'..'!$B$5 -> -0.0112358299 | N8: =(Abschreibungsbarwert(-1,$A8,N$2,'..'!$B$5)-Abschreibungsbarwert('..'!$B$7,'.'!$A8,'.'!N$2,'..'!$B$5))*'..'!$B$5 -> -0.01189411542 | O8: =(Abschreibungsbarwert(-1,$A8,O$2,'..'!$B$5)-Abschreibungsbarwert('..'!$B$7,'.'!$A8,'.'!O$2,'..'!$B$5))*'..'!$B$5 -> -0.01251914306 | P8: =(Abschreibungsbarwert(-1,$A8,P$2,'..'!$B$5)-Abschreibungsbarwert('..'!$B$7,'.'!$A8,'.'!P$2,'..'!$B$5))*'..'!$B$5 -> -0.01311254529 | Q8: =(Abschreibungsbarwert(-1,$A8,Q$2,'..'!$B$5)-Abschreibungsbarwert('..'!$B$7,'.'!$A8,'.'!Q$2,'..'!$B$5))*'..'!$B$5 -> -0.01367586674 | R8: =(Abschreibungsbarwert(-1,$A8,R$2,'..'!$B$5)-Abschreibungsbarwert('..'!$B$7,'.'!$A8,'.'!R$2,'..'!$B$5))*'..'!$B$5 -> -0.01421056934 | S8: =(Abschreibungsbarwert(-1,$A8,S$2,'..'!$B$5)-Abschreibungsbarwert('..'!$B$7,'.'!$A8,'.'!S$2,'..'!$B$5))*'..'!$B$5 -> -0.01471803731 | T8: =(Abschreibungsbarwert(-1,$A8,T$2,'..'!$B$5)-Abschreibungsbarwert('..'!$B$7,'.'!$A8,'.'!T$2,'..'!$B$5))*'..'!$B$5 -> -0.01519958167 | U8: =(Abschreibungsbarwert(-1,$A8,U$2,'..'!$B$5)-Abschreibungsbarwert('..'!$B$7,'.'!$A8,'.'!U$2,'..'!$B$5))*'..'!$B$5 -> -0.01565644455 | V8: =(Abschreibungsbarwert(-1,$A8,V$2,'..'!$B$5)-Abschreibungsbarwert('..'!$B$7,'.'!$A8,'.'!V$2,'..'!$B$5))*'..'!$B$5 -> -0.01608980316 | W8: =(Abschreibungsbarwert(-1,$A8,W$2,'..'!$B$5)-Abschreibungsbarwert('..'!$B$7,'.'!$A8,'.'!W$2,'..'!$B$5))*'..'!$B$5 -> -0.01650077359 | X8: =(Abschreibungsbarwert(-1,$A8,X$2,'..'!$B$5)-Abschreibungsbarwert('..'!$B$7,'.'!$A8,'.'!X$2,'..'!$B$5))*'..'!$B$5 -> -0.0168904143 | Y8: =(Abschreibungsbarwert(-1,$A8,Y$2,'..'!$B$5)-Abschreibungsbarwert('..'!$B$7,'.'!$A8,'.'!Y$2,'..'!$B$5))*'..'!$B$5 -> -0.01725972937 | Z8: =(Abschreibungsbarwert(-1,$A8,Z$2,'..'!$B$5)-Abschreibungsbarwert('..'!$B$7,'.'!$A8,'.'!Z$2,'..'!$B$5))*'..'!$B$5 -> -0.01760967163
A9: 7 | B9: =(Abschreibungsbarwert(-1,$A9,B$2,'..'!$B$5)-Abschreibungsbarwert('..'!$B$7,'.'!$A9,'.'!B$2,'..'!$B$5))*'..'!$B$5 -> -0.001931957027 | C9: =(Abschreibungsbarwert(-1,$A9,C$2,'..'!$B$5)-Abschreibungsbarwert('..'!$B$7,'.'!$A9,'.'!C$2,'..'!$B$5))*'..'!$B$5 -> -0.003753555357 | D9: =(Abschreibungsbarwert(-1,$A9,D$2,'..'!$B$5)-Abschreibungsbarwert('..'!$B$7,'.'!$A9,'.'!D$2,'..'!$B$5))*'..'!$B$5 -> -0.005471225447 | E9: =(Abschreibungsbarwert(-1,$A9,E$2,'..'!$B$5)-Abschreibungsbarwert('..'!$B$7,'.'!$A9,'.'!E$2,'..'!$B$5))*'..'!$B$5 -> -0.007090986726 | F9: =(Abschreibungsbarwert(-1,$A9,F$2,'..'!$B$5)-Abschreibungsbarwert('..'!$B$7,'.'!$A9,'.'!F$2,'..'!$B$5))*'..'!$B$5 -> -0.008618476502 | G9: =(Abschreibungsbarwert(-1,$A9,G$2,'..'!$B$5)-Abschreibungsbarwert('..'!$B$7,'.'!$A9,'.'!G$2,'..'!$B$5))*'..'!$B$5 -> -0.01005897665 | H9: =(Abschreibungsbarwert(-1,$A9,H$2,'..'!$B$5)-Abschreibungsbarwert('..'!$B$7,'.'!$A9,'.'!H$2,'..'!$B$5))*'..'!$B$5 -> -0.01141743824 | I9: =(Abschreibungsbarwert(-1,$A9,I$2,'..'!$B$5)-Abschreibungsbarwert('..'!$B$7,'.'!$A9,'.'!I$2,'..'!$B$5))*'..'!$B$5 -> -0.01269850435 | J9: =(Abschreibungsbarwert(-1,$A9,J$2,'..'!$B$5)-Abschreibungsbarwert('..'!$B$7,'.'!$A9,'.'!J$2,'..'!$B$5))*'..'!$B$5 -> -0.01390653111 | K9: =(Abschreibungsbarwert(-1,$A9,K$2,'..'!$B$5)-Abschreibungsbarwert('..'!$B$7,'.'!$A9,'.'!K$2,'..'!$B$5))*'..'!$B$5 -> -0.01504560721 | L9: =(Abschreibungsbarwert(-1,$A9,L$2,'..'!$B$5)-Abschreibungsbarwert('..'!$B$7,'.'!$A9,'.'!L$2,'..'!$B$5))*'..'!$B$5 -> -0.01611957191 | M9: =(Abschreibungsbarwert(-1,$A9,M$2,'..'!$B$5)-Abschreibungsbarwert('..'!$B$7,'.'!$A9,'.'!M$2,'..'!$B$5))*'..'!$B$5 -> -0.0171320318 | N9: =(Abschreibungsbarwert(-1,$A9,N$2,'..'!$B$5)-Abschreibungsbarwert('..'!$B$7,'.'!$A9,'.'!N$2,'..'!$B$5))*'..'!$B$5 -> -0.01808637626 | O9: =(Abschreibungsbarwert(-1,$A9,O$2,'..'!$B$5)-Abschreibungsbarwert('..'!$B$7,'.'!$A9,'.'!O$2,'..'!$B$5))*'..'!$B$5 -> -0.01898579183 | P9: =(Abschreibungsbarwert(-1,$A9,P$2,'..'!$B$5)-Abschreibungsbarwert('..'!$B$7,'.'!$A9,'.'!P$2,'..'!$B$5))*'..'!$B$5 -> -0.01983327554 | Q9: =(Abschreibungsbarwert(-1,$A9,Q$2,'..'!$B$5)-Abschreibungsbarwert('..'!$B$7,'.'!$A9,'.'!Q$2,'..'!$B$5))*'..'!$B$5 -> -0.02063164728 | R9: =(Abschreibungsbarwert(-1,$A9,R$2,'..'!$B$5)-Abschreibungsbarwert('..'!$B$7,'.'!$A9,'.'!R$2,'..'!$B$5))*'..'!$B$5 -> -0.02138356127 | S9: =(Abschreibungsbarwert(-1,$A9,S$2,'..'!$B$5)-Abschreibungsbarwert('..'!$B$7,'.'!$A9,'.'!S$2,'..'!$B$5))*'..'!$B$5 -> -0.02209151677 | T9: =(Abschreibungsbarwert(-1,$A9,T$2,'..'!$B$5)-Abschreibungsbarwert('..'!$B$7,'.'!$A9,'.'!T$2,'..'!$B$5))*'..'!$B$5 -> -0.02275786797 | U9: =(Abschreibungsbarwert(-1,$A9,U$2,'..'!$B$5)-Abschreibungsbarwert('..'!$B$7,'.'!$A9,'.'!U$2,'..'!$B$5))*'..'!$B$5 -> -0.02338483321 | V9: =(Abschreibungsbarwert(-1,$A9,V$2,'..'!$B$5)-Abschreibungsbarwert('..'!$B$7,'.'!$A9,'.'!V$2,'..'!$B$5))*'..'!$B$5 -> -0.0239745036 | W9: =(Abschreibungsbarwert(-1,$A9,W$2,'..'!$B$5)-Abschreibungsbarwert('..'!$B$7,'.'!$A9,'.'!W$2,'..'!$B$5))*'..'!$B$5 -> -0.024528851 | X9: =(Abschreibungsbarwert(-1,$A9,X$2,'..'!$B$5)-Abschreibungsbarwert('..'!$B$7,'.'!$A9,'.'!X$2,'..'!$B$5))*'..'!$B$5 -> -0.02504973546 | Y9: =(Abschreibungsbarwert(-1,$A9,Y$2,'..'!$B$5)-Abschreibungsbarwert('..'!$B$7,'.'!$A9,'.'!Y$2,'..'!$B$5))*'..'!$B$5 -> -0.02553891216 | Z9: =(Abschreibungsbarwert(-1,$A9,Z$2,'..'!$B$5)-Abschreibungsbarwert('..'!$B$7,'.'!$A9,'.'!Z$2,'..'!$B$5))*'..'!$B$5 -> -0.02599803788
A10: 8 | B10: =(Abschreibungsbarwert(-1,$A10,B$2,'..'!$B$5)-Abschreibungsbarwert('..'!$B$7,'.'!$A10,'.'!B$2,'..'!$B$5))*'..'!$B$5 -> -0.002714086682 | C10: =(Abschreibungsbarwert(-1,$A10,C$2,'..'!$B$5)-Abschreibungsbarwert('..'!$B$7,'.'!$A10,'.'!C$2,'..'!$B$5))*'..'!$B$5 -> -0.005256521402 | D10: =(Abschreibungsbarwert(-1,$A10,D$2,'..'!$B$5)-Abschreibungsbarwert('..'!$B$7,'.'!$A10,'.'!D$2,'..'!$B$5))*'..'!$B$5 -> -0.007638273307 | E10: =(Abschreibungsbarwert(-1,$A10,E$2,'..'!$B$5)-Abschreibungsbarwert('..'!$B$7,'.'!$A10,'.'!E$2,'..'!$B$5))*'..'!$B$5 -> -0.009869548884 | F10: =(Abschreibungsbarwert(-1,$A10,F$2,'..'!$B$5)-Abschreibungsbarwert('..'!$B$7,'.'!$A10,'.'!F$2,'..'!$B$5))*'..'!$B$5 -> -0.0119598499 | G10: =(Abschreibungsbarwert(-1,$A10,G$2,'..'!$B$5)-Abschreibungsbarwert('..'!$B$7,'.'!$A10,'.'!G$2,'..'!$B$5))*'..'!$B$5 -> -0.01391802655 | H10: =(Abschreibungsbarwert(-1,$A10,H$2,'..'!$B$5)-Abschreibungsbarwert('..'!$B$7,'.'!$A10,'.'!H$2,'..'!$B$5))*'..'!$B$5 -> -0.01575232625 | I10: =(Abschreibungsbarwert(-1,$A10,I$2,'..'!$B$5)-Abschreibungsbarwert('..'!$B$7,'.'!$A10,'.'!I$2,'..'!$B$5))*'..'!$B$5 -> -0.01747043851 | J10: =(Abschreibungsbarwert(-1,$A10,J$2,'..'!$B$5)-Abschreibungsbarwert('..'!$B$7,'.'!$A10,'.'!J$2,'..'!$B$5))*'..'!$B$5 -> -0.01907953605 | K10: =(Abschreibungsbarwert(-1,$A10,K$2,'..'!$B$5)-Abschreibungsbarwert('..'!$B$7,'.'!$A10,'.'!K$2,'..'!$B$5))*'..'!$B$5 -> -0.02058631281 | L10: =(Abschreibungsbarwert(-1,$A10,L$2,'..'!$B$5)-Abschreibungsbarwert('..'!$B$7,'.'!$A10,'.'!L$2,'..'!$B$5))*'..'!$B$5 -> -0.02199701875 | M10: =(Abschreibungsbarwert(-1,$A10,M$2,'..'!$B$5)-Abschreibungsbarwert('..'!$B$7,'.'!$A10,'.'!M$2,'..'!$B$5))*'..'!$B$5 -> -0.023317492 | N10: =(Abschreibungsbarwert(-1,$A10,N$2,'..'!$B$5)-Abschreibungsbarwert('..'!$B$7,'.'!$A10,'.'!N$2,'..'!$B$5))*'..'!$B$5 -> -0.02455318846 | O10: =(Abschreibungsbarwert(-1,$A10,O$2,'..'!$B$5)-Abschreibungsbarwert('..'!$B$7,'.'!$A10,'.'!O$2,'..'!$B$5))*'..'!$B$5 -> -0.02570920907 | P10: =(Abschreibungsbarwert(-1,$A10,P$2,'..'!$B$5)-Abschreibungsbarwert('..'!$B$7,'.'!$A10,'.'!P$2,'..'!$B$5))*'..'!$B$5 -> -0.02679032502 | Q10: =(Abschreibungsbarwert(-1,$A10,Q$2,'..'!$B$5)-Abschreibungsbarwert('..'!$B$7,'.'!$A10,'.'!Q$2,'..'!$B$5))*'..'!$B$5 -> -0.02780100091 | R10: =(Abschreibungsbarwert(-1,$A10,R$2,'..'!$B$5)-Abschreibungsbarwert('..'!$B$7,'.'!$A10,'.'!R$2,'..'!$B$5))*'..'!$B$5 -> -0.02874541628 | S10: =(Abschreibungsbarwert(-1,$A10,S$2,'..'!$B$5)-Abschreibungsbarwert('..'!$B$7,'.'!$A10,'.'!S$2,'..'!$B$5))*'..'!$B$5 -> -0.02962748539 | T10: =(Abschreibungsbarwert(-1,$A10,T$2,'..'!$B$5)-Abschreibungsbarwert('..'!$B$7,'.'!$A10,'.'!T$2,'..'!$B$5))*'..'!$B$5 -> -0.03045087555 | U10: =(Abschreibungsbarwert(-1,$A10,U$2,'..'!$B$5)-Abschreibungsbarwert('..'!$B$7,'.'!$A10,'.'!U$2,'..'!$B$5))*'..'!$B$5 -> -0.03121902409 | V10: =(Abschreibungsbarwert(-1,$A10,V$2,'..'!$B$5)-Abschreibungsbarwert('..'!$B$7,'.'!$A10,'.'!V$2,'..'!$B$5))*'..'!$B$5 -> -0.03193515402 | W10: =(Abschreibungsbarwert(-1,$A10,W$2,'..'!$B$5)-Abschreibungsbarwert('..'!$B$7,'.'!$A10,'.'!W$2,'..'!$B$5))*'..'!$B$5 -> -0.03260228859 | X10: =(Abschreibungsbarwert(-1,$A10,X$2,'..'!$B$5)-Abschreibungsbarwert('..'!$B$7,'.'!$A10,'.'!X$2,'..'!$B$5))*'..'!$B$5 -> -0.03322326472 | Y10: =(Abschreibungsbarwert(-1,$A10,Y$2,'..'!$B$5)-Abschreibungsbarwert('..'!$B$7,'.'!$A10,'.'!Y$2,'..'!$B$5))*'..'!$B$5 -> -0.03380074548 | Z10: =(Abschreibungsbarwert(-1,$A10,Z$2,'..'!$B$5)-Abschreibungsbarwert('..'!$B$7,'.'!$A10,'.'!Z$2,'..'!$B$5))*'..'!$B$5 -> -0.03433723167
A11: 9 | B11: =(Abschreibungsbarwert(-1,$A11,B$2,'..'!$B$5)-Abschreibungsbarwert('..'!$B$7,'.'!$A11,'.'!B$2,'..'!$B$5))*'..'!$B$5 -> -0.003547592063 | C11: =(Abschreibungsbarwert(-1,$A11,C$2,'..'!$B$5)-Abschreibungsbarwert('..'!$B$7,'.'!$A11,'.'!C$2,'..'!$B$5))*'..'!$B$5 -> -0.006849916692 | D11: =(Abschreibungsbarwert(-1,$A11,D$2,'..'!$B$5)-Abschreibungsbarwert('..'!$B$7,'.'!$A11,'.'!D$2,'..'!$B$5))*'..'!$B$5 -> -0.009923993003 | E11: =(Abschreibungsbarwert(-1,$A11,E$2,'..'!$B$5)-Abschreibungsbarwert('..'!$B$7,'.'!$A11,'.'!E$2,'..'!$B$5))*'..'!$B$5 -> -0.01278556325 | F11: =(Abschreibungsbarwert(-1,$A11,F$2,'..'!$B$5)-Abschreibungsbarwert('..'!$B$7,'.'!$A11,'.'!F$2,'..'!$B$5))*'..'!$B$5 -> -0.01544919692 | G11: =(Abschreibungsbarwert(-1,$A11,G$2,'..'!$B$5)-Abschreibungsbarwert('..'!$B$7,'.'!$A11,'.'!G$2,'..'!$B$5))*'..'!$B$5 -> -0.01792838562 | H11: =(Abschreibungsbarwert(-1,$A11,H$2,'..'!$B$5)-Abschreibungsbarwert('..'!$B$7,'.'!$A11,'.'!H$2,'..'!$B$5))*'..'!$B$5 -> -0.02023562971 | I11: =(Abschreibungsbarwert(-1,$A11,I$2,'..'!$B$5)-Abschreibungsbarwert('..'!$B$7,'.'!$A11,'.'!I$2,'..'!$B$5))*'..'!$B$5 -> -0.02238251734 | J11: =(Abschreibungsbarwert(-1,$A11,J$2,'..'!$B$5)-Abschreibungsbarwert('..'!$B$7,'.'!$A11,'.'!J$2,'..'!$B$5))*'..'!$B$5 -> -0.02437979679 | K11: =(Abschreibungsbarwert(-1,$A11,K$2,'..'!$B$5)-Abschreibungsbarwert('..'!$B$7,'.'!$A11,'.'!K$2,'..'!$B$5))*'..'!$B$5 -> -0.02623744246 | L11: =(Abschreibungsbarwert(-1,$A11,L$2,'..'!$B$5)-Abschreibungsbarwert('..'!$B$7,'.'!$A11,'.'!L$2,'..'!$B$5))*'..'!$B$5 -> -0.02796471539 | M11: =(Abschreibungsbarwert(-1,$A11,M$2,'..'!$B$5)-Abschreibungsbarwert('..'!$B$7,'.'!$A11,'.'!M$2,'..'!$B$5))*'..'!$B$5 -> -0.02957021859 | N11: =(Abschreibungsbarwert(-1,$A11,N$2,'..'!$B$5)-Abschreibungsbarwert('..'!$B$7,'.'!$A11,'.'!N$2,'..'!$B$5))*'..'!$B$5 -> -0.03106194772 | O11: =(Abschreibungsbarwert(-1,$A11,O$2,'..'!$B$5)-Abschreibungsbarwert('..'!$B$7,'.'!$A11,'.'!O$2,'..'!$B$5))*'..'!$B$5 -> -0.03244733762 | P11: =(Abschreibungsbarwert(-1,$A11,P$2,'..'!$B$5)-Abschreibungsbarwert('..'!$B$7,'.'!$A11,'.'!P$2,'..'!$B$5))*'..'!$B$5 -> -0.0337333049 | Q11: =(Abschreibungsbarwert(-1,$A11,Q$2,'..'!$B$5)-Abschreibungsbarwert('..'!$B$7,'.'!$A11,'.'!Q$2,'..'!$B$5))*'..'!$B$5 -> -0.03492628714 | R11: =(Abschreibungsbarwert(-1,$A11,R$2,'..'!$B$5)-Abschreibungsbarwert('..'!$B$7,'.'!$A11,'.'!R$2,'..'!$B$5))*'..'!$B$5 -> -0.03603227875 | S11: =(Abschreibungsbarwert(-1,$A11,S$2,'..'!$B$5)-Abschreibungsbarwert('..'!$B$7,'.'!$A11,'.'!S$2,'..'!$B$5))*'..'!$B$5 -> -0.03705686406 | T11: =(Abschreibungsbarwert(-1,$A11,T$2,'..'!$B$5)-Abschreibungsbarwert('..'!$B$7,'.'!$A11,'.'!T$2,'..'!$B$5))*'..'!$B$5 -> -0.03800524764 | U11: =(Abschreibungsbarwert(-1,$A11,U$2,'..'!$B$5)-Abschreibungsbarwert('..'!$B$7,'.'!$A11,'.'!U$2,'..'!$B$5))*'..'!$B$5 -> -0.03888228227 | V11: =(Abschreibungsbarwert(-1,$A11,V$2,'..'!$B$5)-Abschreibungsbarwert('..'!$B$7,'.'!$A11,'.'!V$2,'..'!$B$5))*'..'!$B$5 -> -0.03969249464 | W11: =(Abschreibungsbarwert(-1,$A11,W$2,'..'!$B$5)-Abschreibungsbarwert('..'!$B$7,'.'!$A11,'.'!W$2,'..'!$B$5))*'..'!$B$5 -> -0.04044010902 | X11: =(Abschreibungsbarwert(-1,$A11,X$2,'..'!$B$5)-Abschreibungsbarwert('..'!$B$7,'.'!$A11,'.'!X$2,'..'!$B$5))*'..'!$B$5 -> -0.04112906913 | Y11: =(Abschreibungsbarwert(-1,$A11,Y$2,'..'!$B$5)-Abschreibungsbarwert('..'!$B$7,'.'!$A11,'.'!Y$2,'..'!$B$5))*'..'!$B$5 -> -0.04176305821 | Z11: =(Abschreibungsbarwert(-1,$A11,Z$2,'..'!$B$5)-Abschreibungsbarwert('..'!$B$7,'.'!$A11,'.'!Z$2,'..'!$B$5))*'..'!$B$5 -> -0.0423455176
A12: 10 | B12: =(Abschreibungsbarwert(-1,$A12,B$2,'..'!$B$5)-Abschreibungsbarwert('..'!$B$7,'.'!$A12,'.'!B$2,'..'!$B$5))*'..'!$B$5 -> -0.004415429391 | C12: =(Abschreibungsbarwert(-1,$A12,C$2,'..'!$B$5)-Abschreibungsbarwert('..'!$B$7,'.'!$A12,'.'!C$2,'..'!$B$5))*'..'!$B$5 -> -0.008500508486 | D12: =(Abschreibungsbarwert(-1,$A12,D$2,'..'!$B$5)-Abschreibungsbarwert('..'!$B$7,'.'!$A12,'.'!D$2,'..'!$B$5))*'..'!$B$5 -> -0.01227992717 | E12: =(Abschreibungsbarwert(-1,$A12,E$2,'..'!$B$5)-Abschreibungsbarwert('..'!$B$7,'.'!$A12,'.'!E$2,'..'!$B$5))*'..'!$B$5 -> -0.01577638985 | F12: =(Abschreibungsbarwert(-1,$A12,F$2,'..'!$B$5)-Abschreibungsbarwert('..'!$B$7,'.'!$A12,'.'!F$2,'..'!$B$5))*'..'!$B$5 -> -0.01901078813 | G12: =(Abschreibungsbarwert(-1,$A12,G$2,'..'!$B$5)-Abschreibungsbarwert('..'!$B$7,'.'!$A12,'.'!G$2,'..'!$B$5))*'..'!$B$5 -> -0.02200235736 | H12: =(Abschreibungsbarwert(-1,$A12,H$2,'..'!$B$5)-Abschreibungsbarwert('..'!$B$7,'.'!$A12,'.'!H$2,'..'!$B$5))*'..'!$B$5 -> -0.02476881855 | I12: =(Abschreibungsbarwert(-1,$A12,I$2,'..'!$B$5)-Abschreibungsbarwert('..'!$B$7,'.'!$A12,'.'!I$2,'..'!$B$5))*'..'!$B$5 -> -0.02732650729 | J12: =(Abschreibungsbarwert(-1,$A12,J$2,'..'!$B$5)-Abschreibungsbarwert('..'!$B$7,'.'!$A12,'.'!J$2,'..'!$B$5))*'..'!$B$5 -> -0.02969049076 | K12: =(Abschreibungsbarwert(-1,$A12,K$2,'..'!$B$5)-Abschreibungsbarwert('..'!$B$7,'.'!$A12,'.'!K$2,'..'!$B$5))*'..'!$B$5 -> -0.03187467422 | L12: =(Abschreibungsbarwert(-1,$A12,L$2,'..'!$B$5)-Abschreibungsbarwert('..'!$B$7,'.'!$A12,'.'!L$2,'..'!$B$5))*'..'!$B$5 -> -0.03389189772 | M12: =(Abschreibungsbarwert(-1,$A12,M$2,'..'!$B$5)-Abschreibungsbarwert('..'!$B$7,'.'!$A12,'.'!M$2,'..'!$B$5))*'..'!$B$5 -> -0.03575402427 | N12: =(Abschreibungsbarwert(-1,$A12,N$2,'..'!$B$5)-Abschreibungsbarwert('..'!$B$7,'.'!$A12,'.'!N$2,'..'!$B$5))*'..'!$B$5 -> -0.03747202011 | O12: =(Abschreibungsbarwert(-1,$A12,O$2,'..'!$B$5)-Abschreibungsbarwert('..'!$B$7,'.'!$A12,'.'!O$2,'..'!$B$5))*'..'!$B$5 -> -0.03905602786 | P12: =(Abschreibungsbarwert(-1,$A12,P$2,'..'!$B$5)-Abschreibungsbarwert('..'!$B$7,'.'!$A12,'.'!P$2,'..'!$B$5))*'..'!$B$5 -> -0.04051543328 | Q12: =(Abschreibungsbarwert(-1,$A12,Q$2,'..'!$B$5)-Abschreibungsbarwert('..'!$B$7,'.'!$A12,'.'!Q$2,'..'!$B$5))*'..'!$B$5 -> -0.04185892617 | R12: =(Abschreibungsbarwert(-1,$A12,R$2,'..'!$B$5)-Abschreibungsbarwert('..'!$B$7,'.'!$A12,'.'!R$2,'..'!$B$5))*'..'!$B$5 -> -0.04309455601 | S12: =(Abschreibungsbarwert(-1,$A12,S$2,'..'!$B$5)-Abschreibungsbarwert('..'!$B$7,'.'!$A12,'.'!S$2,'..'!$B$5))*'..'!$B$5 -> -0.04422978285 | T12: =(Abschreibungsbarwert(-1,$A12,T$2,'..'!$B$5)-Abschreibungsbarwert('..'!$B$7,'.'!$A12,'.'!T$2,'..'!$B$5))*'..'!$B$5 -> -0.04527152375 | U12: =(Abschreibungsbarwert(-1,$A12,U$2,'..'!$B$5)-Abschreibungsbarwert('..'!$B$7,'.'!$A12,'.'!U$2,'..'!$B$5))*'..'!$B$5 -> -0.04622619538 | V12: =(Abschreibungsbarwert(-1,$A12,V$2,'..'!$B$5)-Abschreibungsbarwert('..'!$B$7,'.'!$A12,'.'!V$2,'..'!$B$5))*'..'!$B$5 -> -0.04709975299 | W12: =(Abschreibungsbarwert(-1,$A12,W$2,'..'!$B$5)-Abschreibungsbarwert('..'!$B$7,'.'!$A12,'.'!W$2,'..'!$B$5))*'..'!$B$5 -> -0.04789772607 | X12: =(Abschreibungsbarwert(-1,$A12,X$2,'..'!$B$5)-Abschreibungsbarwert('..'!$B$7,'.'!$A12,'.'!X$2,'..'!$B$5))*'..'!$B$5 -> -0.04862525109 | Y12: =(Abschreibungsbarwert(-1,$A12,Y$2,'..'!$B$5)-Abschreibungsbarwert('..'!$B$7,'.'!$A12,'.'!Y$2,'..'!$B$5))*'..'!$B$5 -> -0.04928710155 | Z12: =(Abschreibungsbarwert(-1,$A12,Z$2,'..'!$B$5)-Abschreibungsbarwert('..'!$B$7,'.'!$A12,'.'!Z$2,'..'!$B$5))*'..'!$B$5 -> -0.04988771549
A13: 11 | B13: =(Abschreibungsbarwert(-1,$A13,B$2,'..'!$B$5)-Abschreibungsbarwert('..'!$B$7,'.'!$A13,'.'!B$2,'..'!$B$5))*'..'!$B$5 -> -0.004763838293 | C13: =(Abschreibungsbarwert(-1,$A13,C$2,'..'!$B$5)-Abschreibungsbarwert('..'!$B$7,'.'!$A13,'.'!C$2,'..'!$B$5))*'..'!$B$5 -> -0.00914335849 | D13: =(Abschreibungsbarwert(-1,$A13,D$2,'..'!$B$5)-Abschreibungsbarwert('..'!$B$7,'.'!$A13,'.'!D$2,'..'!$B$5))*'..'!$B$5 -> -0.01316935781 | E13: =(Abschreibungsbarwert(-1,$A13,E$2,'..'!$B$5)-Abschreibungsbarwert('..'!$B$7,'.'!$A13,'.'!E$2,'..'!$B$5))*'..'!$B$5 -> -0.01686999105 | F13: =(Abschreibungsbarwert(-1,$A13,F$2,'..'!$B$5)-Abschreibungsbarwert('..'!$B$7,'.'!$A13,'.'!F$2,'..'!$B$5))*'..'!$B$5 -> -0.02027101475 | G13: =(Abschreibungsbarwert(-1,$A13,G$2,'..'!$B$5)-Abschreibungsbarwert('..'!$B$7,'.'!$A13,'.'!G$2,'..'!$B$5))*'..'!$B$5 -> -0.02339600712 | H13: =(Abschreibungsbarwert(-1,$A13,H$2,'..'!$B$5)-Abschreibungsbarwert('..'!$B$7,'.'!$A13,'.'!H$2,'..'!$B$5))*'..'!$B$5 -> -0.02626656644 | I13: =(Abschreibungsbarwert(-1,$A13,I$2,'..'!$B$5)-Abschreibungsbarwert('..'!$B$7,'.'!$A13,'.'!I$2,'..'!$B$5))*'..'!$B$5 -> -0.02890248992 | J13: =(Abschreibungsbarwert(-1,$A13,J$2,'..'!$B$5)-Abschreibungsbarwert('..'!$B$7,'.'!$A13,'.'!J$2,'..'!$B$5))*'..'!$B$5 -> -0.03132193542 | K13: =(Abschreibungsbarwert(-1,$A13,K$2,'..'!$B$5)-Abschreibungsbarwert('..'!$B$7,'.'!$A13,'.'!K$2,'..'!$B$5))*'..'!$B$5 -> -0.0335415674 | L13: =(Abschreibungsbarwert(-1,$A13,L$2,'..'!$B$5)-Abschreibungsbarwert('..'!$B$7,'.'!$A13,'.'!L$2,'..'!$B$5))*'..'!$B$5 -> -0.03557668911 | M13: =(Abschreibungsbarwert(-1,$A13,M$2,'..'!$B$5)-Abschreibungsbarwert('..'!$B$7,'.'!$A13,'.'!M$2,'..'!$B$5))*'..'!$B$5 -> -0.03744136209 | N13: =(Abschreibungsbarwert(-1,$A13,N$2,'..'!$B$5)-Abschreibungsbarwert('..'!$B$7,'.'!$A13,'.'!N$2,'..'!$B$5))*'..'!$B$5 -> -0.03914851452 | O13: =(Abschreibungsbarwert(-1,$A13,O$2,'..'!$B$5)-Abschreibungsbarwert('..'!$B$7,'.'!$A13,'.'!O$2,'..'!$B$5))*'..'!$B$5 -> -0.04071003932 | P13: =(Abschreibungsbarwert(-1,$A13,P$2,'..'!$B$5)-Abschreibungsbarwert('..'!$B$7,'.'!$A13,'.'!P$2,'..'!$B$5))*'..'!$B$5 -> -0.04213688328 | Q13: =(Abschreibungsbarwert(-1,$A13,Q$2,'..'!$B$5)-Abschreibungsbarwert('..'!$B$7,'.'!$A13,'.'!Q$2,'..'!$B$5))*'..'!$B$5 -> -0.04343912782 | R13: =(Abschreibungsbarwert(-1,$A13,R$2,'..'!$B$5)-Abschreibungsbarwert('..'!$B$7,'.'!$A13,'.'!R$2,'..'!$B$5))*'..'!$B$5 -> -0.04462606245 | S13: =(Abschreibungsbarwert(-1,$A13,S$2,'..'!$B$5)-Abschreibungsbarwert('..'!$B$7,'.'!$A13,'.'!S$2,'..'!$B$5))*'..'!$B$5 -> -0.04570625149 | T13: =(Abschreibungsbarwert(-1,$A13,T$2,'..'!$B$5)-Abschreibungsbarwert('..'!$B$7,'.'!$A13,'.'!T$2,'..'!$B$5))*'..'!$B$5 -> -0.0466875948 | U13: =(Abschreibungsbarwert(-1,$A13,U$2,'..'!$B$5)-Abschreibungsbarwert('..'!$B$7,'.'!$A13,'.'!U$2,'..'!$B$5))*'..'!$B$5 -> -0.04757738304 | V13: =(Abschreibungsbarwert(-1,$A13,V$2,'..'!$B$5)-Abschreibungsbarwert('..'!$B$7,'.'!$A13,'.'!V$2,'..'!$B$5))*'..'!$B$5 -> -0.04838234797 | W13: =(Abschreibungsbarwert(-1,$A13,W$2,'..'!$B$5)-Abschreibungsbarwert('..'!$B$7,'.'!$A13,'.'!W$2,'..'!$B$5))*'..'!$B$5 -> -0.04910870833 | X13: =(Abschreibungsbarwert(-1,$A13,X$2,'..'!$B$5)-Abschreibungsbarwert('..'!$B$7,'.'!$A13,'.'!X$2,'..'!$B$5))*'..'!$B$5 -> -0.04976221171 | Y13: =(Abschreibungsbarwert(-1,$A13,Y$2,'..'!$B$5)-Abschreibungsbarwert('..'!$B$7,'.'!$A13,'.'!Y$2,'..'!$B$5))*'..'!$B$5 -> -0.05034817268 | Z13: =(Abschreibungsbarwert(-1,$A13,Z$2,'..'!$B$5)-Abschreibungsbarwert('..'!$B$7,'.'!$A13,'.'!Z$2,'..'!$B$5))*'..'!$B$5 -> -0.05087150767
A14: 12 | B14: =(Abschreibungsbarwert(-1,$A14,B$2,'..'!$B$5)-Abschreibungsbarwert('..'!$B$7,'.'!$A14,'.'!B$2,'..'!$B$5))*'..'!$B$5 -> -0.005108358164 | C14: =(Abschreibungsbarwert(-1,$A14,C$2,'..'!$B$5)-Abschreibungsbarwert('..'!$B$7,'.'!$A14,'.'!C$2,'..'!$B$5))*'..'!$B$5 -> -0.009774987499 | D14: =(Abschreibungsbarwert(-1,$A14,D$2,'..'!$B$5)-Abschreibungsbarwert('..'!$B$7,'.'!$A14,'.'!D$2,'..'!$B$5))*'..'!$B$5 -> -0.01403764312 | E14: =(Abschreibungsbarwert(-1,$A14,E$2,'..'!$B$5)-Abschreibungsbarwert('..'!$B$7,'.'!$A14,'.'!E$2,'..'!$B$5))*'..'!$B$5 -> -0.01793063977 | F14: =(Abschreibungsbarwert(-1,$A14,F$2,'..'!$B$5)-Abschreibungsbarwert('..'!$B$7,'.'!$A14,'.'!F$2,'..'!$B$5))*'..'!$B$5 -> -0.02148518817 | G14: =(Abschreibungsbarwert(-1,$A14,G$2,'..'!$B$5)-Abschreibungsbarwert('..'!$B$7,'.'!$A14,'.'!G$2,'..'!$B$5))*'..'!$B$5 -> -0.02472969621 | H14: =(Abschreibungsbarwert(-1,$A14,H$2,'..'!$B$5)-Abschreibungsbarwert('..'!$B$7,'.'!$A14,'.'!H$2,'..'!$B$5))*'..'!$B$5 -> -0.02769003886 | I14: =(Abschreibungsbarwert(-1,$A14,I$2,'..'!$B$5)-Abschreibungsbarwert('..'!$B$7,'.'!$A14,'.'!I$2,'..'!$B$5))*'..'!$B$5 -> -0.03038980041 | J14: =(Abschreibungsbarwert(-1,$A14,J$2,'..'!$B$5)-Abschreibungsbarwert('..'!$B$7,'.'!$A14,'.'!J$2,'..'!$B$5))*'..'!$B$5 -> -0.03285049182 | K14: =(Abschreibungsbarwert(-1,$A14,K$2,'..'!$B$5)-Abschreibungsbarwert('..'!$B$7,'.'!$A14,'.'!K$2,'..'!$B$5))*'..'!$B$5 -> -0.03509174606 | L14: =(Abschreibungsbarwert(-1,$A14,L$2,'..'!$B$5)-Abschreibungsbarwert('..'!$B$7,'.'!$A14,'.'!L$2,'..'!$B$5))*'..'!$B$5 -> -0.03713149385 | M14: =(Abschreibungsbarwert(-1,$A14,M$2,'..'!$B$5)-Abschreibungsbarwert('..'!$B$7,'.'!$A14,'.'!M$2,'..'!$B$5))*'..'!$B$5 -> -0.03898612168 | N14: =(Abschreibungsbarwert(-1,$A14,N$2,'..'!$B$5)-Abschreibungsbarwert('..'!$B$7,'.'!$A14,'.'!N$2,'..'!$B$5))*'..'!$B$5 -> -0.04067061426 | O14: =(Abschreibungsbarwert(-1,$A14,O$2,'..'!$B$5)-Abschreibungsbarwert('..'!$B$7,'.'!$A14,'.'!O$2,'..'!$B$5))*'..'!$B$5 -> -0.04219868289 | P14: =(Abschreibungsbarwert(-1,$A14,P$2,'..'!$B$5)-Abschreibungsbarwert('..'!$B$7,'.'!$A14,'.'!P$2,'..'!$B$5))*'..'!$B$5 -> -0.0435828812 | Q14: =(Abschreibungsbarwert(-1,$A14,Q$2,'..'!$B$5)-Abschreibungsbarwert('..'!$B$7,'.'!$A14,'.'!Q$2,'..'!$B$5))*'..'!$B$5 -> -0.04483470975 | R14: =(Abschreibungsbarwert(-1,$A14,R$2,'..'!$B$5)-Abschreibungsbarwert('..'!$B$7,'.'!$A14,'.'!R$2,'..'!$B$5))*'..'!$B$5 -> -0.04596471044 | S14: =(Abschreibungsbarwert(-1,$A14,S$2,'..'!$B$5)-Abschreibungsbarwert('..'!$B$7,'.'!$A14,'.'!S$2,'..'!$B$5))*'..'!$B$5 -> -0.0469825519 | T14: =(Abschreibungsbarwert(-1,$A14,T$2,'..'!$B$5)-Abschreibungsbarwert('..'!$B$7,'.'!$A14,'.'!T$2,'..'!$B$5))*'..'!$B$5 -> -0.04789710675 | U14: =(Abschreibungsbarwert(-1,$A14,U$2,'..'!$B$5)-Abschreibungsbarwert('..'!$B$7,'.'!$A14,'.'!U$2,'..'!$B$5))*'..'!$B$5 -> -0.04871652156 | V14: =(Abschreibungsbarwert(-1,$A14,V$2,'..'!$B$5)-Abschreibungsbarwert('..'!$B$7,'.'!$A14,'.'!V$2,'..'!$B$5))*'..'!$B$5 -> -0.04944828021 | W14: =(Abschreibungsbarwert(-1,$A14,W$2,'..'!$B$5)-Abschreibungsbarwert('..'!$B$7,'.'!$A14,'.'!W$2,'..'!$B$5))*'..'!$B$5 -> -0.05009926139 | X14: =(Abschreibungsbarwert(-1,$A14,X$2,'..'!$B$5)-Abschreibungsbarwert('..'!$B$7,'.'!$A14,'.'!X$2,'..'!$B$5))*'..'!$B$5 -> -0.05067579071 | Y14: =(Abschreibungsbarwert(-1,$A14,Y$2,'..'!$B$5)-Abschreibungsbarwert('..'!$B$7,'.'!$A14,'.'!Y$2,'..'!$B$5))*'..'!$B$5 -> -0.05118368806 | Z14: =(Abschreibungsbarwert(-1,$A14,Z$2,'..'!$B$5)-Abschreibungsbarwert('..'!$B$7,'.'!$A14,'.'!Z$2,'..'!$B$5))*'..'!$B$5 -> -0.05162831059
A15: 13 | B15: =(Abschreibungsbarwert(-1,$A15,B$2,'..'!$B$5)-Abschreibungsbarwert('..'!$B$7,'.'!$A15,'.'!B$2,'..'!$B$5))*'..'!$B$5 -> -0.005456273369 | C15: =(Abschreibungsbarwert(-1,$A15,C$2,'..'!$B$5)-Abschreibungsbarwert('..'!$B$7,'.'!$A15,'.'!C$2,'..'!$B$5))*'..'!$B$5 -> -0.01040893527 | D15: =(Abschreibungsbarwert(-1,$A15,D$2,'..'!$B$5)-Abschreibungsbarwert('..'!$B$7,'.'!$A15,'.'!D$2,'..'!$B$5))*'..'!$B$5 -> -0.01490373149 | E15: =(Abschreibungsbarwert(-1,$A15,E$2,'..'!$B$5)-Abschreibungsbarwert('..'!$B$7,'.'!$A15,'.'!E$2,'..'!$B$5))*'..'!$B$5 -> -0.0189819947 | F15: =(Abschreibungsbarwert(-1,$A15,F$2,'..'!$B$5)-Abschreibungsbarwert('..'!$B$7,'.'!$A15,'.'!F$2,'..'!$B$5))*'..'!$B$5 -> -0.02268109961 | G15: =(Abschreibungsbarwert(-1,$A15,G$2,'..'!$B$5)-Abschreibungsbarwert('..'!$B$7,'.'!$A15,'.'!G$2,'..'!$B$5))*'..'!$B$5 -> -0.02603486817 | H15: =(Abschreibungsbarwert(-1,$A15,H$2,'..'!$B$5)-Abschreibungsbarwert('..'!$B$7,'.'!$A15,'.'!H$2,'..'!$B$5))*'..'!$B$5 -> -0.02907393052 | I15: =(Abschreibungsbarwert(-1,$A15,I$2,'..'!$B$5)-Abschreibungsbarwert('..'!$B$7,'.'!$A15,'.'!I$2,'..'!$B$5))*'..'!$B$5 -> -0.03182604689 | J15: =(Abschreibungsbarwert(-1,$A15,J$2,'..'!$B$5)-Abschreibungsbarwert('..'!$B$7,'.'!$A15,'.'!J$2,'..'!$B$5))*'..'!$B$5 -> -0.03431639489 | K15: =(Abschreibungsbarwert(-1,$A15,K$2,'..'!$B$5)-Abschreibungsbarwert('..'!$B$7,'.'!$A15,'.'!K$2,'..'!$B$5))*'..'!$B$5 -> -0.0365678261 | L15: =(Abschreibungsbarwert(-1,$A15,L$2,'..'!$B$5)-Abschreibungsbarwert('..'!$B$7,'.'!$A15,'.'!L$2,'..'!$B$5))*'..'!$B$5 -> -0.03860109558 | M15: =(Abschreibungsbarwert(-1,$A15,M$2,'..'!$B$5)-Abschreibungsbarwert('..'!$B$7,'.'!$A15,'.'!M$2,'..'!$B$5))*'..'!$B$5 -> -0.04043506716 | N15: =(Abschreibungsbarwert(-1,$A15,N$2,'..'!$B$5)-Abschreibungsbarwert('..'!$B$7,'.'!$A15,'.'!N$2,'..'!$B$5))*'..'!$B$5 -> -0.04208689731 | O15: =(Abschreibungsbarwert(-1,$A15,O$2,'..'!$B$5)-Abschreibungsbarwert('..'!$B$7,'.'!$A15,'.'!O$2,'..'!$B$5))*'..'!$B$5 -> -0.04357220001 | P15: =(Abschreibungsbarwert(-1,$A15,P$2,'..'!$B$5)-Abschreibungsbarwert('..'!$B$7,'.'!$A15,'.'!P$2,'..'!$B$5))*'..'!$B$5 -> -0.04490519458 | Q15: =(Abschreibungsbarwert(-1,$A15,Q$2,'..'!$B$5)-Abschreibungsbarwert('..'!$B$7,'.'!$A15,'.'!Q$2,'..'!$B$5))*'..'!$B$5 -> -0.04609883846 | R15: =(Abschreibungsbarwert(-1,$A15,R$2,'..'!$B$5)-Abschreibungsbarwert('..'!$B$7,'.'!$A15,'.'!R$2,'..'!$B$5))*'..'!$B$5 -> -0.04716494645 | S15: =(Abschreibungsbarwert(-1,$A15,S$2,'..'!$B$5)-Abschreibungsbarwert('..'!$B$7,'.'!$A15,'.'!S$2,'..'!$B$5))*'..'!$B$5 -> -0.04811429805 | T15: =(Abschreibungsbarwert(-1,$A15,T$2,'..'!$B$5)-Abschreibungsbarwert('..'!$B$7,'.'!$A15,'.'!T$2,'..'!$B$5))*'..'!$B$5 -> -0.04895673392 | U15: =(Abschreibungsbarwert(-1,$A15,U$2,'..'!$B$5)-Abschreibungsbarwert('..'!$B$7,'.'!$A15,'.'!U$2,'..'!$B$5))*'..'!$B$5 -> -0.04970124284 | V15: =(Abschreibungsbarwert(-1,$A15,V$2,'..'!$B$5)-Abschreibungsbarwert('..'!$B$7,'.'!$A15,'.'!V$2,'..'!$B$5))*'..'!$B$5 -> -0.0503560401 | W15: =(Abschreibungsbarwert(-1,$A15,W$2,'..'!$B$5)-Abschreibungsbarwert('..'!$B$7,'.'!$A15,'.'!W$2,'..'!$B$5))*'..'!$B$5 -> -0.05092863813 | X15: =(Abschreibungsbarwert(-1,$A15,X$2,'..'!$B$5)-Abschreibungsbarwert('..'!$B$7,'.'!$A15,'.'!X$2,'..'!$B$5))*'..'!$B$5 -> -0.05142591032 | Y15: =(Abschreibungsbarwert(-1,$A15,Y$2,'..'!$B$5)-Abschreibungsbarwert('..'!$B$7,'.'!$A15,'.'!Y$2,'..'!$B$5))*'..'!$B$5 -> -0.05185414868 | Z15: =(Abschreibungsbarwert(-1,$A15,Z$2,'..'!$B$5)-Abschreibungsbarwert('..'!$B$7,'.'!$A15,'.'!Z$2,'..'!$B$5))*'..'!$B$5 -> -0.05221911585
A16: 14 | B16: =(Abschreibungsbarwert(-1,$A16,B$2,'..'!$B$5)-Abschreibungsbarwert('..'!$B$7,'.'!$A16,'.'!B$2,'..'!$B$5))*'..'!$B$5 -> -0.005799560108 | C16: =(Abschreibungsbarwert(-1,$A16,C$2,'..'!$B$5)-Abschreibungsbarwert('..'!$B$7,'.'!$A16,'.'!C$2,'..'!$B$5))*'..'!$B$5 -> -0.01103038552 | D16: =(Abschreibungsbarwert(-1,$A16,D$2,'..'!$B$5)-Abschreibungsbarwert('..'!$B$7,'.'!$A16,'.'!D$2,'..'!$B$5))*'..'!$B$5 -> -0.01574715382 | E16: =(Abschreibungsbarwert(-1,$A16,E$2,'..'!$B$5)-Abschreibungsbarwert('..'!$B$7,'.'!$A16,'.'!E$2,'..'!$B$5))*'..'!$B$5 -> -0.0199989787 | F16: =(Abschreibungsbarwert(-1,$A16,F$2,'..'!$B$5)-Abschreibungsbarwert('..'!$B$7,'.'!$A16,'.'!F$2,'..'!$B$5))*'..'!$B$5 -> -0.02383001352 | G16: =(Abschreibungsbarwert(-1,$A16,G$2,'..'!$B$5)-Abschreibungsbarwert('..'!$B$7,'.'!$A16,'.'!G$2,'..'!$B$5))*'..'!$B$5 -> -0.02727998522 | H16: =(Abschreibungsbarwert(-1,$A16,H$2,'..'!$B$5)-Abschreibungsbarwert('..'!$B$7,'.'!$A16,'.'!H$2,'..'!$B$5))*'..'!$B$5 -> -0.03038466723 | I16: =(Abschreibungsbarwert(-1,$A16,I$2,'..'!$B$5)-Abschreibungsbarwert('..'!$B$7,'.'!$A16,'.'!I$2,'..'!$B$5))*'..'!$B$5 -> -0.03317629862 | J16: =(Abschreibungsbarwert(-1,$A16,J$2,'..'!$B$5)-Abschreibungsbarwert('..'!$B$7,'.'!$A16,'.'!J$2,'..'!$B$5))*'..'!$B$5 -> -0.03568395604 | K16: =(Abschreibungsbarwert(-1,$A16,K$2,'..'!$B$5)-Abschreibungsbarwert('..'!$B$7,'.'!$A16,'.'!K$2,'..'!$B$5))*'..'!$B$5 -> -0.03793388403 | L16: =(Abschreibungsbarwert(-1,$A16,L$2,'..'!$B$5)-Abschreibungsbarwert('..'!$B$7,'.'!$A16,'.'!L$2,'..'!$B$5))*'..'!$B$5 -> -0.03994978869 | M16: =(Abschreibungsbarwert(-1,$A16,M$2,'..'!$B$5)-Abschreibungsbarwert('..'!$B$7,'.'!$A16,'.'!M$2,'..'!$B$5))*'..'!$B$5 -> -0.04175309894 | N16: =(Abschreibungsbarwert(-1,$A16,N$2,'..'!$B$5)-Abschreibungsbarwert('..'!$B$7,'.'!$A16,'.'!N$2,'..'!$B$5))*'..'!$B$5 -> -0.04336319918 | O16: =(Abschreibungsbarwert(-1,$A16,O$2,'..'!$B$5)-Abschreibungsbarwert('..'!$B$7,'.'!$A16,'.'!O$2,'..'!$B$5))*'..'!$B$5 -> -0.04479763676 | P16: =(Abschreibungsbarwert(-1,$A16,P$2,'..'!$B$5)-Abschreibungsbarwert('..'!$B$7,'.'!$A16,'.'!P$2,'..'!$B$5))*'..'!$B$5 -> -0.04607230693 | Q16: =(Abschreibungsbarwert(-1,$A16,Q$2,'..'!$B$5)-Abschreibungsbarwert('..'!$B$7,'.'!$A16,'.'!Q$2,'..'!$B$5))*'..'!$B$5 -> -0.04720161813 | R16: =(Abschreibungsbarwert(-1,$A16,R$2,'..'!$B$5)-Abschreibungsbarwert('..'!$B$7,'.'!$A16,'.'!R$2,'..'!$B$5))*'..'!$B$5 -> -0.0481986396 | S16: =(Abschreibungsbarwert(-1,$A16,S$2,'..'!$B$5)-Abschreibungsbarwert('..'!$B$7,'.'!$A16,'.'!S$2,'..'!$B$5))*'..'!$B$5 -> -0.04907523347 | T16: =(Abschreibungsbarwert(-1,$A16,T$2,'..'!$B$5)-Abschreibungsbarwert('..'!$B$7,'.'!$A16,'.'!T$2,'..'!$B$5))*'..'!$B$5 -> -0.04984217297 | U16: =(Abschreibungsbarwert(-1,$A16,U$2,'..'!$B$5)-Abschreibungsbarwert('..'!$B$7,'.'!$A16,'.'!U$2,'..'!$B$5))*'..'!$B$5 -> -0.05050924832 | V16: =(Abschreibungsbarwert(-1,$A16,V$2,'..'!$B$5)-Abschreibungsbarwert('..'!$B$7,'.'!$A16,'.'!V$2,'..'!$B$5))*'..'!$B$5 -> -0.05108536172 | W16: =(Abschreibungsbarwert(-1,$A16,W$2,'..'!$B$5)-Abschreibungsbarwert('..'!$B$7,'.'!$A16,'.'!W$2,'..'!$B$5))*'..'!$B$5 -> -0.05157861258 | X16: =(Abschreibungsbarwert(-1,$A16,X$2,'..'!$B$5)-Abschreibungsbarwert('..'!$B$7,'.'!$A16,'.'!X$2,'..'!$B$5))*'..'!$B$5 -> -0.05199637397 | Y16: =(Abschreibungsbarwert(-1,$A16,Y$2,'..'!$B$5)-Abschreibungsbarwert('..'!$B$7,'.'!$A16,'.'!Y$2,'..'!$B$5))*'..'!$B$5 -> -0.05234536149 | Z16: =(Abschreibungsbarwert(-1,$A16,Z$2,'..'!$B$5)-Abschreibungsbarwert('..'!$B$7,'.'!$A16,'.'!Z$2,'..'!$B$5))*'..'!$B$5 -> -0.05263169505
A17: 15 | B17: =(Abschreibungsbarwert(-1,$A17,B$2,'..'!$B$5)-Abschreibungsbarwert('..'!$B$7,'.'!$A17,'.'!B$2,'..'!$B$5))*'..'!$B$5 -> -0.006138963365 | C17: =(Abschreibungsbarwert(-1,$A17,C$2,'..'!$B$5)-Abschreibungsbarwert('..'!$B$7,'.'!$A17,'.'!C$2,'..'!$B$5))*'..'!$B$5 -> -0.01164085373 | D17: =(Abschreibungsbarwert(-1,$A17,D$2,'..'!$B$5)-Abschreibungsbarwert('..'!$B$7,'.'!$A17,'.'!D$2,'..'!$B$5))*'..'!$B$5 -> -0.01657026193 | E17: =(Abschreibungsbarwert(-1,$A17,E$2,'..'!$B$5)-Abschreibungsbarwert('..'!$B$7,'.'!$A17,'.'!E$2,'..'!$B$5))*'..'!$B$5 -> -0.02098486838 | F17: =(Abschreibungsbarwert(-1,$A17,F$2,'..'!$B$5)-Abschreibungsbarwert('..'!$B$7,'.'!$A17,'.'!F$2,'..'!$B$5))*'..'!$B$5 -> -0.02493622903 | G17: =(Abschreibungsbarwert(-1,$A17,G$2,'..'!$B$5)-Abschreibungsbarwert('..'!$B$7,'.'!$A17,'.'!G$2,'..'!$B$5))*'..'!$B$5 -> -0.0284704666 | H17: =(Abschreibungsbarwert(-1,$A17,H$2,'..'!$B$5)-Abschreibungsbarwert('..'!$B$7,'.'!$A17,'.'!H$2,'..'!$B$5))*'..'!$B$5 -> -0.03162887911 | I17: =(Abschreibungsbarwert(-1,$A17,I$2,'..'!$B$5)-Abschreibungsbarwert('..'!$B$7,'.'!$A17,'.'!I$2,'..'!$B$5))*'..'!$B$5 -> -0.03444847607 | J17: =(Abschreibungsbarwert(-1,$A17,J$2,'..'!$B$5)-Abschreibungsbarwert('..'!$B$7,'.'!$A17,'.'!J$2,'..'!$B$5))*'..'!$B$5 -> -0.0369624516 | K17: =(Abschreibungsbarwert(-1,$A17,K$2,'..'!$B$5)-Abschreibungsbarwert('..'!$B$7,'.'!$A17,'.'!K$2,'..'!$B$5))*'..'!$B$5 -> -0.03920060203 | L17: =(Abschreibungsbarwert(-1,$A17,L$2,'..'!$B$5)-Abschreibungsbarwert('..'!$B$7,'.'!$A17,'.'!L$2,'..'!$B$5))*'..'!$B$5 -> -0.04118969519 | M17: =(Abschreibungsbarwert(-1,$A17,M$2,'..'!$B$5)-Abschreibungsbarwert('..'!$B$7,'.'!$A17,'.'!M$2,'..'!$B$5))*'..'!$B$5 -> -0.04295379703 | N17: =(Abschreibungsbarwert(-1,$A17,N$2,'..'!$B$5)-Abschreibungsbarwert('..'!$B$7,'.'!$A17,'.'!N$2,'..'!$B$5))*'..'!$B$5 -> -0.04451456089 | O17: =(Abschreibungsbarwert(-1,$A17,O$2,'..'!$B$5)-Abschreibungsbarwert('..'!$B$7,'.'!$A17,'.'!O$2,'..'!$B$5))*'..'!$B$5 -> -0.04589148397 | P17: =(Abschreibungsbarwert(-1,$A17,P$2,'..'!$B$5)-Abschreibungsbarwert('..'!$B$7,'.'!$A17,'.'!P$2,'..'!$B$5))*'..'!$B$5 -> -0.04710213479 | Q17: =(Abschreibungsbarwert(-1,$A17,Q$2,'..'!$B$5)-Abschreibungsbarwert('..'!$B$7,'.'!$A17,'.'!Q$2,'..'!$B$5))*'..'!$B$5 -> -0.0481623553 | R17: =(Abschreibungsbarwert(-1,$A17,R$2,'..'!$B$5)-Abschreibungsbarwert('..'!$B$7,'.'!$A17,'.'!R$2,'..'!$B$5))*'..'!$B$5 -> -0.04908644047 | S17: =(Abschreibungsbarwert(-1,$A17,S$2,'..'!$B$5)-Abschreibungsbarwert('..'!$B$7,'.'!$A17,'.'!S$2,'..'!$B$5))*'..'!$B$5 -> -0.04988729806 | T17: =(Abschreibungsbarwert(-1,$A17,T$2,'..'!$B$5)-Abschreibungsbarwert('..'!$B$7,'.'!$A17,'.'!T$2,'..'!$B$5))*'..'!$B$5 -> -0.0505765909 | U17: =(Abschreibungsbarwert(-1,$A17,U$2,'..'!$B$5)-Abschreibungsbarwert('..'!$B$7,'.'!$A17,'.'!U$2,'..'!$B$5))*'..'!$B$5 -> -0.05116486372 | V17: =(Abschreibungsbarwert(-1,$A17,V$2,'..'!$B$5)-Abschreibungsbarwert('..'!$B$7,'.'!$A17,'.'!V$2,'..'!$B$5))*'..'!$B$5 -> -0.05166165627 | W17: =(Abschreibungsbarwert(-1,$A17,W$2,'..'!$B$5)-Abschreibungsbarwert('..'!$B$7,'.'!$A17,'.'!W$2,'..'!$B$5))*'..'!$B$5 -> -0.05207560427 | X17: =(Abschreibungsbarwert(-1,$A17,X$2,'..'!$B$5)-Abschreibungsbarwert('..'!$B$7,'.'!$A17,'.'!X$2,'..'!$B$5))*'..'!$B$5 -> -0.05241452963 | Y17: =(Abschreibungsbarwert(-1,$A17,Y$2,'..'!$B$5)-Abschreibungsbarwert('..'!$B$7,'.'!$A17,'.'!Y$2,'..'!$B$5))*'..'!$B$5 -> -0.05268552117 | Z17: =(Abschreibungsbarwert(-1,$A17,Z$2,'..'!$B$5)-Abschreibungsbarwert('..'!$B$7,'.'!$A17,'.'!Z$2,'..'!$B$5))*'..'!$B$5 -> -0.0528950068
A18: 16 | B18: =(Abschreibungsbarwert(-1,$A18,B$2,'..'!$B$5)-Abschreibungsbarwert('..'!$B$7,'.'!$A18,'.'!B$2,'..'!$B$5))*'..'!$B$5 -> -0.006480782138 | C18: =(Abschreibungsbarwert(-1,$A18,C$2,'..'!$B$5)-Abschreibungsbarwert('..'!$B$7,'.'!$A18,'.'!C$2,'..'!$B$5))*'..'!$B$5 -> -0.0122518727 | D18: =(Abschreibungsbarwert(-1,$A18,D$2,'..'!$B$5)-Abschreibungsbarwert('..'!$B$7,'.'!$A18,'.'!D$2,'..'!$B$5))*'..'!$B$5 -> -0.01738896304 | E18: =(Abschreibungsbarwert(-1,$A18,E$2,'..'!$B$5)-Abschreibungsbarwert('..'!$B$7,'.'!$A18,'.'!E$2,'..'!$B$5))*'..'!$B$5 -> -0.02195924938 | F18: =(Abschreibungsbarwert(-1,$A18,F$2,'..'!$B$5)-Abschreibungsbarwert('..'!$B$7,'.'!$A18,'.'!F$2,'..'!$B$5))*'..'!$B$5 -> -0.02602244387 | G18: =(Abschreibungsbarwert(-1,$A18,G$2,'..'!$B$5)-Abschreibungsbarwert('..'!$B$7,'.'!$A18,'.'!G$2,'..'!$B$5))*'..'!$B$5 -> -0.02963165841 | H18: =(Abschreibungsbarwert(-1,$A18,H$2,'..'!$B$5)-Abschreibungsbarwert('..'!$B$7,'.'!$A18,'.'!H$2,'..'!$B$5))*'..'!$B$5 -> -0.03283417802 | I18: =(Abschreibungsbarwert(-1,$A18,I$2,'..'!$B$5)-Abschreibungsbarwert('..'!$B$7,'.'!$A18,'.'!I$2,'..'!$B$5))*'..'!$B$5 -> -0.03567213843 | J18: =(Abschreibungsbarwert(-1,$A18,J$2,'..'!$B$5)-Abschreibungsbarwert('..'!$B$7,'.'!$A18,'.'!J$2,'..'!$B$5))*'..'!$B$5 -> -0.03818312015 | K18: =(Abschreibungsbarwert(-1,$A18,K$2,'..'!$B$5)-Abschreibungsbarwert('..'!$B$7,'.'!$A18,'.'!K$2,'..'!$B$5))*'..'!$B$5 -> -0.04040067013 | L18: =(Abschreibungsbarwert(-1,$A18,L$2,'..'!$B$5)-Abschreibungsbarwert('..'!$B$7,'.'!$A18,'.'!L$2,'..'!$B$5))*'..'!$B$5 -> -0.0423547602 | M18: =(Abschreibungsbarwert(-1,$A18,M$2,'..'!$B$5)-Abschreibungsbarwert('..'!$B$7,'.'!$A18,'.'!M$2,'..'!$B$5))*'..'!$B$5 -> -0.04407219026 | N18: =(Abschreibungsbarwert(-1,$A18,N$2,'..'!$B$5)-Abschreibungsbarwert('..'!$B$7,'.'!$A18,'.'!N$2,'..'!$B$5))*'..'!$B$5 -> -0.0455769435 | O18: =(Abschreibungsbarwert(-1,$A18,O$2,'..'!$B$5)-Abschreibungsbarwert('..'!$B$7,'.'!$A18,'.'!O$2,'..'!$B$5))*'..'!$B$5 -> -0.04689049936 | P18: =(Abschreibungsbarwert(-1,$A18,P$2,'..'!$B$5)-Abschreibungsbarwert('..'!$B$7,'.'!$A18,'.'!P$2,'..'!$B$5))*'..'!$B$5 -> -0.04803210983 | Q18: =(Abschreibungsbarwert(-1,$A18,Q$2,'..'!$B$5)-Abschreibungsbarwert('..'!$B$7,'.'!$A18,'.'!Q$2,'..'!$B$5))*'..'!$B$5 -> -0.04901904338 | R18: =(Abschreibungsbarwert(-1,$A18,R$2,'..'!$B$5)-Abschreibungsbarwert('..'!$B$7,'.'!$A18,'.'!R$2,'..'!$B$5))*'..'!$B$5 -> -0.04986680065 | S18: =(Abschreibungsbarwert(-1,$A18,S$2,'..'!$B$5)-Abschreibungsbarwert('..'!$B$7,'.'!$A18,'.'!S$2,'..'!$B$5))*'..'!$B$5 -> -0.05058930535 | T18: =(Abschreibungsbarwert(-1,$A18,T$2,'..'!$B$5)-Abschreibungsbarwert('..'!$B$7,'.'!$A18,'.'!T$2,'..'!$B$5))*'..'!$B$5 -> -0.05119907327 | U18: =(Abschreibungsbarwert(-1,$A18,U$2,'..'!$B$5)-Abschreibungsbarwert('..'!$B$7,'.'!$A18,'.'!U$2,'..'!$B$5))*'..'!$B$5 -> -0.05170736223 | V18: =(Abschreibungsbarwert(-1,$A18,V$2,'..'!$B$5)-Abschreibungsbarwert('..'!$B$7,'.'!$A18,'.'!V$2,'..'!$B$5))*'..'!$B$5 -> -0.05212430502 | W18: =(Abschreibungsbarwert(-1,$A18,W$2,'..'!$B$5)-Abschreibungsbarwert('..'!$B$7,'.'!$A18,'.'!W$2,'..'!$B$5))*'..'!$B$5 -> -0.05245902757 | X18: =(Abschreibungsbarwert(-1,$A18,X$2,'..'!$B$5)-Abschreibungsbarwert('..'!$B$7,'.'!$A18,'.'!X$2,'..'!$B$5))*'..'!$B$5 -> -0.05271975393 | Y18: =(Abschreibungsbarwert(-1,$A18,Y$2,'..'!$B$5)-Abschreibungsbarwert('..'!$B$7,'.'!$A18,'.'!Y$2,'..'!$B$5))*'..'!$B$5 -> -0.05291389974 | Z18: =(Abschreibungsbarwert(-1,$A18,Z$2,'..'!$B$5)-Abschreibungsbarwert('..'!$B$7,'.'!$A18,'.'!Z$2,'..'!$B$5))*'..'!$B$5 -> -0.05304815536
A19: 17 | B19: =(Abschreibungsbarwert(-1,$A19,B$2,'..'!$B$5)-Abschreibungsbarwert('..'!$B$7,'.'!$A19,'.'!B$2,'..'!$B$5))*'..'!$B$5 -> -0.006818305621 | C19: =(Abschreibungsbarwert(-1,$A19,C$2,'..'!$B$5)-Abschreibungsbarwert('..'!$B$7,'.'!$A19,'.'!C$2,'..'!$B$5))*'..'!$B$5 -> -0.01285126748 | D19: =(Abschreibungsbarwert(-1,$A19,D$2,'..'!$B$5)-Abschreibungsbarwert('..'!$B$7,'.'!$A19,'.'!D$2,'..'!$B$5))*'..'!$B$5 -> -0.01818673802 | E19: =(Abschreibungsbarwert(-1,$A19,E$2,'..'!$B$5)-Abschreibungsbarwert('..'!$B$7,'.'!$A19,'.'!E$2,'..'!$B$5))*'..'!$B$5 -> -0.02290225366 | F19: =(Abschreibungsbarwert(-1,$A19,F$2,'..'!$B$5)-Abschreibungsbarwert('..'!$B$7,'.'!$A19,'.'!F$2,'..'!$B$5))*'..'!$B$5 -> -0.02706631655 | G19: =(Abschreibungsbarwert(-1,$A19,G$2,'..'!$B$5)-Abschreibungsbarwert('..'!$B$7,'.'!$A19,'.'!G$2,'..'!$B$5))*'..'!$B$5 -> -0.03073950815 | H19: =(Abschreibungsbarwert(-1,$A19,H$2,'..'!$B$5)-Abschreibungsbarwert('..'!$B$7,'.'!$A19,'.'!H$2,'..'!$B$5))*'..'!$B$5 -> -0.03397545792 | I19: =(Abschreibungsbarwert(-1,$A19,I$2,'..'!$B$5)-Abschreibungsbarwert('..'!$B$7,'.'!$A19,'.'!I$2,'..'!$B$5))*'..'!$B$5 -> -0.03682168698 | J19: =(Abschreibungsbarwert(-1,$A19,J$2,'..'!$B$5)-Abschreibungsbarwert('..'!$B$7,'.'!$A19,'.'!J$2,'..'!$B$5))*'..'!$B$5 -> -0.03932034355 | K19: =(Abschreibungsbarwert(-1,$A19,K$2,'..'!$B$5)-Abschreibungsbarwert('..'!$B$7,'.'!$A19,'.'!K$2,'..'!$B$5))*'..'!$B$5 -> -0.04150884494 | L19: =(Abschreibungsbarwert(-1,$A19,L$2,'..'!$B$5)-Abschreibungsbarwert('..'!$B$7,'.'!$A19,'.'!L$2,'..'!$B$5))*'..'!$B$5 -> -0.04342043856 | M19: =(Abschreibungsbarwert(-1,$A19,M$2,'..'!$B$5)-Abschreibungsbarwert('..'!$B$7,'.'!$A19,'.'!M$2,'..'!$B$5))*'..'!$B$5 -> -0.0450846926 | N19: =(Abschreibungsbarwert(-1,$A19,N$2,'..'!$B$5)-Abschreibungsbarwert('..'!$B$7,'.'!$A19,'.'!N$2,'..'!$B$5))*'..'!$B$5 -> -0.04652792572 | O19: =(Abschreibungsbarwert(-1,$A19,O$2,'..'!$B$5)-Abschreibungsbarwert('..'!$B$7,'.'!$A19,'.'!O$2,'..'!$B$5))*'..'!$B$5 -> -0.04777358379 | P19: =(Abschreibungsbarwert(-1,$A19,P$2,'..'!$B$5)-Abschreibungsbarwert('..'!$B$7,'.'!$A19,'.'!P$2,'..'!$B$5))*'..'!$B$5 -> -0.04884257047 | Q19: =(Abschreibungsbarwert(-1,$A19,Q$2,'..'!$B$5)-Abschreibungsbarwert('..'!$B$7,'.'!$A19,'.'!Q$2,'..'!$B$5))*'..'!$B$5 -> -0.04975353755 | R19: =(Abschreibungsbarwert(-1,$A19,R$2,'..'!$B$5)-Abschreibungsbarwert('..'!$B$7,'.'!$A19,'.'!R$2,'..'!$B$5))*'..'!$B$5 -> -0.05052314037 | S19: =(Abschreibungsbarwert(-1,$A19,S$2,'..'!$B$5)-Abschreibungsbarwert('..'!$B$7,'.'!$A19,'.'!S$2,'..'!$B$5))*'..'!$B$5 -> -0.05116626255 | T19: =(Abschreibungsbarwert(-1,$A19,T$2,'..'!$B$5)-Abschreibungsbarwert('..'!$B$7,'.'!$A19,'.'!T$2,'..'!$B$5))*'..'!$B$5 -> -0.05169621406 | U19: =(Abschreibungsbarwert(-1,$A19,U$2,'..'!$B$5)-Abschreibungsbarwert('..'!$B$7,'.'!$A19,'.'!U$2,'..'!$B$5))*'..'!$B$5 -> -0.0521249059 | V19: =(Abschreibungsbarwert(-1,$A19,V$2,'..'!$B$5)-Abschreibungsbarwert('..'!$B$7,'.'!$A19,'.'!V$2,'..'!$B$5))*'..'!$B$5 -> -0.05246300426 | W19: =(Abschreibungsbarwert(-1,$A19,W$2,'..'!$B$5)-Abschreibungsbarwert('..'!$B$7,'.'!$A19,'.'!W$2,'..'!$B$5))*'..'!$B$5 -> -0.05272006683 | X19: =(Abschreibungsbarwert(-1,$A19,X$2,'..'!$B$5)-Abschreibungsbarwert('..'!$B$7,'.'!$A19,'.'!X$2,'..'!$B$5))*'..'!$B$5 -> -0.05290466326 | Y19: =(Abschreibungsbarwert(-1,$A19,Y$2,'..'!$B$5)-Abschreibungsbarwert('..'!$B$7,'.'!$A19,'.'!Y$2,'..'!$B$5))*'..'!$B$5 -> -0.0530244819 | Z19: =(Abschreibungsbarwert(-1,$A19,Z$2,'..'!$B$5)-Abschreibungsbarwert('..'!$B$7,'.'!$A19,'.'!Z$2,'..'!$B$5))*'..'!$B$5 -> -0.05308642433
A20: 18 | B20: =(Abschreibungsbarwert(-1,$A20,B$2,'..'!$B$5)-Abschreibungsbarwert('..'!$B$7,'.'!$A20,'.'!B$2,'..'!$B$5))*'..'!$B$5 -> -0.00715210382 | C20: =(Abschreibungsbarwert(-1,$A20,C$2,'..'!$B$5)-Abschreibungsbarwert('..'!$B$7,'.'!$A20,'.'!C$2,'..'!$B$5))*'..'!$B$5 -> -0.01344020314 | D20: =(Abschreibungsbarwert(-1,$A20,D$2,'..'!$B$5)-Abschreibungsbarwert('..'!$B$7,'.'!$A20,'.'!D$2,'..'!$B$5))*'..'!$B$5 -> -0.01896540728 | E20: =(Abschreibungsbarwert(-1,$A20,E$2,'..'!$B$5)-Abschreibungsbarwert('..'!$B$7,'.'!$A20,'.'!E$2,'..'!$B$5))*'..'!$B$5 -> -0.02381643344 | F20: =(Abschreibungsbarwert(-1,$A20,F$2,'..'!$B$5)-Abschreibungsbarwert('..'!$B$7,'.'!$A20,'.'!F$2,'..'!$B$5))*'..'!$B$5 -> -0.02807121051 | G20: =(Abschreibungsbarwert(-1,$A20,G$2,'..'!$B$5)-Abschreibungsbarwert('..'!$B$7,'.'!$A20,'.'!G$2,'..'!$B$5))*'..'!$B$5 -> -0.03179826409 | H20: =(Abschreibungsbarwert(-1,$A20,H$2,'..'!$B$5)-Abschreibungsbarwert('..'!$B$7,'.'!$A20,'.'!H$2,'..'!$B$5))*'..'!$B$5 -> -0.03505791416 | I20: =(Abschreibungsbarwert(-1,$A20,I$2,'..'!$B$5)-Abschreibungsbarwert('..'!$B$7,'.'!$A20,'.'!I$2,'..'!$B$5))*'..'!$B$5 -> -0.037903312 | J20: =(Abschreibungsbarwert(-1,$A20,J$2,'..'!$B$5)-Abschreibungsbarwert('..'!$B$7,'.'!$A20,'.'!J$2,'..'!$B$5))*'..'!$B$5 -> -0.04038133894 | K20: =(Abschreibungsbarwert(-1,$A20,K$2,'..'!$B$5)-Abschreibungsbarwert('..'!$B$7,'.'!$A20,'.'!K$2,'..'!$B$5))*'..'!$B$5 -> -0.04253338643 | L20: =(Abschreibungsbarwert(-1,$A20,L$2,'..'!$B$5)-Abschreibungsbarwert('..'!$B$7,'.'!$A20,'.'!L$2,'..'!$B$5))*'..'!$B$5 -> -0.04439603367 | M20: =(Abschreibungsbarwert(-1,$A20,M$2,'..'!$B$5)-Abschreibungsbarwert('..'!$B$7,'.'!$A20,'.'!M$2,'..'!$B$5))*'..'!$B$5 -> -0.04600163715 | N20: =(Abschreibungsbarwert(-1,$A20,N$2,'..'!$B$5)-Abschreibungsbarwert('..'!$B$7,'.'!$A20,'.'!N$2,'..'!$B$5))*'..'!$B$5 -> -0.04737884401 | O20: =(Abschreibungsbarwert(-1,$A20,O$2,'..'!$B$5)-Abschreibungsbarwert('..'!$B$7,'.'!$A20,'.'!O$2,'..'!$B$5))*'..'!$B$5 -> -0.04855303957 | P20: =(Abschreibungsbarwert(-1,$A20,P$2,'..'!$B$5)-Abschreibungsbarwert('..'!$B$7,'.'!$A20,'.'!P$2,'..'!$B$5))*'..'!$B$5 -> -0.04954673796 | Q20: =(Abschreibungsbarwert(-1,$A20,Q$2,'..'!$B$5)-Abschreibungsbarwert('..'!$B$7,'.'!$A20,'.'!Q$2,'..'!$B$5))*'..'!$B$5 -> -0.05037992344 | R20: =(Abschreibungsbarwert(-1,$A20,R$2,'..'!$B$5)-Abschreibungsbarwert('..'!$B$7,'.'!$A20,'.'!R$2,'..'!$B$5))*'..'!$B$5 -> -0.0510703489 | S20: =(Abschreibungsbarwert(-1,$A20,S$2,'..'!$B$5)-Abschreibungsbarwert('..'!$B$7,'.'!$A20,'.'!S$2,'..'!$B$5))*'..'!$B$5 -> -0.05163379722 | T20: =(Abschreibungsbarwert(-1,$A20,T$2,'..'!$B$5)-Abschreibungsbarwert('..'!$B$7,'.'!$A20,'.'!T$2,'..'!$B$5))*'..'!$B$5 -> -0.05208431045 | U20: =(Abschreibungsbarwert(-1,$A20,U$2,'..'!$B$5)-Abschreibungsbarwert('..'!$B$7,'.'!$A20,'.'!U$2,'..'!$B$5))*'..'!$B$5 -> -0.05243439076 | V20: =(Abschreibungsbarwert(-1,$A20,V$2,'..'!$B$5)-Abschreibungsbarwert('..'!$B$7,'.'!$A20,'.'!V$2,'..'!$B$5))*'..'!$B$5 -> -0.05269517707 | W20: =(Abschreibungsbarwert(-1,$A20,W$2,'..'!$B$5)-Abschreibungsbarwert('..'!$B$7,'.'!$A20,'.'!W$2,'..'!$B$5))*'..'!$B$5 -> -0.05287660021 | X20: =(Abschreibungsbarwert(-1,$A20,X$2,'..'!$B$5)-Abschreibungsbarwert('..'!$B$7,'.'!$A20,'.'!X$2,'..'!$B$5))*'..'!$B$5 -> -0.0529875196 | Y20: =(Abschreibungsbarwert(-1,$A20,Y$2,'..'!$B$5)-Abschreibungsbarwert('..'!$B$7,'.'!$A20,'.'!Y$2,'..'!$B$5))*'..'!$B$5 -> -0.05303584354 | Z20: =(Abschreibungsbarwert(-1,$A20,Z$2,'..'!$B$5)-Abschreibungsbarwert('..'!$B$7,'.'!$A20,'.'!Z$2,'..'!$B$5))*'..'!$B$5 -> -0.05302863536
A21: 19 | B21: =(Abschreibungsbarwert(-1,$A21,B$2,'..'!$B$5)-Abschreibungsbarwert('..'!$B$7,'.'!$A21,'.'!B$2,'..'!$B$5))*'..'!$B$5 -> -0.007487635019 | C21: =(Abschreibungsbarwert(-1,$A21,C$2,'..'!$B$5)-Abschreibungsbarwert('..'!$B$7,'.'!$A21,'.'!C$2,'..'!$B$5))*'..'!$B$5 -> -0.01402852043 | D21: =(Abschreibungsbarwert(-1,$A21,D$2,'..'!$B$5)-Abschreibungsbarwert('..'!$B$7,'.'!$A21,'.'!D$2,'..'!$B$5))*'..'!$B$5 -> -0.01973834494 | E21: =(Abschreibungsbarwert(-1,$A21,E$2,'..'!$B$5)-Abschreibungsbarwert('..'!$B$7,'.'!$A21,'.'!E$2,'..'!$B$5))*'..'!$B$5 -> -0.02471802294 | F21: =(Abschreibungsbarwert(-1,$A21,F$2,'..'!$B$5)-Abschreibungsbarwert('..'!$B$7,'.'!$A21,'.'!F$2,'..'!$B$5))*'..'!$B$5 -> -0.02905568297 | G21: =(Abschreibungsbarwert(-1,$A21,G$2,'..'!$B$5)-Abschreibungsbarwert('..'!$B$7,'.'!$A21,'.'!G$2,'..'!$B$5))*'..'!$B$5 -> -0.03282837479 | H21: =(Abschreibungsbarwert(-1,$A21,H$2,'..'!$B$5)-Abschreibungsbarwert('..'!$B$7,'.'!$A21,'.'!H$2,'..'!$B$5))*'..'!$B$5 -> -0.03610353667 | I21: =(Abschreibungsbarwert(-1,$A21,I$2,'..'!$B$5)-Abschreibungsbarwert('..'!$B$7,'.'!$A21,'.'!I$2,'..'!$B$5))*'..'!$B$5 -> -0.03894025817 | J21: =(Abschreibungsbarwert(-1,$A21,J$2,'..'!$B$5)-Abschreibungsbarwert('..'!$B$7,'.'!$A21,'.'!J$2,'..'!$B$5))*'..'!$B$5 -> -0.04139036841 | K21: =(Abschreibungsbarwert(-1,$A21,K$2,'..'!$B$5)-Abschreibungsbarwert('..'!$B$7,'.'!$A21,'.'!K$2,'..'!$B$5))*'..'!$B$5 -> -0.04349937502 | L21: =(Abschreibungsbarwert(-1,$A21,L$2,'..'!$B$5)-Abschreibungsbarwert('..'!$B$7,'.'!$A21,'.'!L$2,'..'!$B$5))*'..'!$B$5 -> -0.04530727528 | M21: =(Abschreibungsbarwert(-1,$A21,M$2,'..'!$B$5)-Abschreibungsbarwert('..'!$B$7,'.'!$A21,'.'!M$2,'..'!$B$5))*'..'!$B$5 -> -0.04684925774 | N21: =(Abschreibungsbarwert(-1,$A21,N$2,'..'!$B$5)-Abschreibungsbarwert('..'!$B$7,'.'!$A21,'.'!N$2,'..'!$B$5))*'..'!$B$5 -> -0.04815630981 | O21: =(Abschreibungsbarwert(-1,$A21,O$2,'..'!$B$5)-Abschreibungsbarwert('..'!$B$7,'.'!$A21,'.'!O$2,'..'!$B$5))*'..'!$B$5 -> -0.04925574449 | P21: =(Abschreibungsbarwert(-1,$A21,P$2,'..'!$B$5)-Abschreibungsbarwert('..'!$B$7,'.'!$A21,'.'!P$2,'..'!$B$5))*'..'!$B$5 -> -0.05017165764 | Q21: =(Abschreibungsbarwert(-1,$A21,Q$2,'..'!$B$5)-Abschreibungsbarwert('..'!$B$7,'.'!$A21,'.'!Q$2,'..'!$B$5))*'..'!$B$5 -> -0.05092532534 | R21: =(Abschreibungsbarwert(-1,$A21,R$2,'..'!$B$5)-Abschreibungsbarwert('..'!$B$7,'.'!$A21,'.'!R$2,'..'!$B$5))*'..'!$B$5 -> -0.05153554958 | S21: =(Abschreibungsbarwert(-1,$A21,S$2,'..'!$B$5)-Abschreibungsbarwert('..'!$B$7,'.'!$A21,'.'!S$2,'..'!$B$5))*'..'!$B$5 -> -0.05201895934 | T21: =(Abschreibungsbarwert(-1,$A21,T$2,'..'!$B$5)-Abschreibungsbarwert('..'!$B$7,'.'!$A21,'.'!T$2,'..'!$B$5))*'..'!$B$5 -> -0.05239027315 | U21: =(Abschreibungsbarwert(-1,$A21,U$2,'..'!$B$5)-Abschreibungsbarwert('..'!$B$7,'.'!$A21,'.'!U$2,'..'!$B$5))*'..'!$B$5 -> -0.05266252822 | V21: =(Abschreibungsbarwert(-1,$A21,V$2,'..'!$B$5)-Abschreibungsbarwert('..'!$B$7,'.'!$A21,'.'!V$2,'..'!$B$5))*'..'!$B$5 -> -0.05284728071 | W21: =(Abschreibungsbarwert(-1,$A21,W$2,'..'!$B$5)-Abschreibungsbarwert('..'!$B$7,'.'!$A21,'.'!W$2,'..'!$B$5))*'..'!$B$5 -> -0.0529547809 | X21: =(Abschreibungsbarwert(-1,$A21,X$2,'..'!$B$5)-Abschreibungsbarwert('..'!$B$7,'.'!$A21,'.'!X$2,'..'!$B$5))*'..'!$B$5 -> -0.05299412654 | Y21: =(Abschreibungsbarwert(-1,$A21,Y$2,'..'!$B$5)-Abschreibungsbarwert('..'!$B$7,'.'!$A21,'.'!Y$2,'..'!$B$5))*'..'!$B$5 -> -0.0529733973 | Z21: =(Abschreibungsbarwert(-1,$A21,Z$2,'..'!$B$5)-Abschreibungsbarwert('..'!$B$7,'.'!$A21,'.'!Z$2,'..'!$B$5))*'..'!$B$5 -> -0.05289977276
A22: 20 | B22: =(Abschreibungsbarwert(-1,$A22,B$2,'..'!$B$5)-Abschreibungsbarwert('..'!$B$7,'.'!$A22,'.'!B$2,'..'!$B$5))*'..'!$B$5 -> -0.007819182256 | C22: =(Abschreibungsbarwert(-1,$A22,C$2,'..'!$B$5)-Abschreibungsbarwert('..'!$B$7,'.'!$A22,'.'!C$2,'..'!$B$5))*'..'!$B$5 -> -0.01460602773 | D22: =(Abschreibungsbarwert(-1,$A22,D$2,'..'!$B$5)-Abschreibungsbarwert('..'!$B$7,'.'!$A22,'.'!D$2,'..'!$B$5))*'..'!$B$5 -> -0.02049196876 | E22: =(Abschreibungsbarwert(-1,$A22,E$2,'..'!$B$5)-Abschreibungsbarwert('..'!$B$7,'.'!$A22,'.'!E$2,'..'!$B$5))*'..'!$B$5 -> -0.02559098315 | F22: =(Abschreibungsbarwert(-1,$A22,F$2,'..'!$B$5)-Abschreibungsbarwert('..'!$B$7,'.'!$A22,'.'!F$2,'..'!$B$5))*'..'!$B$5 -> -0.03000203298 | G22: =(Abschreibungsbarwert(-1,$A22,G$2,'..'!$B$5)-Abschreibungsbarwert('..'!$B$7,'.'!$A22,'.'!G$2,'..'!$B$5))*'..'!$B$5 -> -0.03381114546 | H22: =(Abschreibungsbarwert(-1,$A22,H$2,'..'!$B$5)-Abschreibungsbarwert('..'!$B$7,'.'!$A22,'.'!H$2,'..'!$B$5))*'..'!$B$5 -> -0.03709319098 | I22: =(Abschreibungsbarwert(-1,$A22,I$2,'..'!$B$5)-Abschreibungsbarwert('..'!$B$7,'.'!$A22,'.'!I$2,'..'!$B$5))*'..'!$B$5 -> -0.03991340439 | J22: =(Abschreibungsbarwert(-1,$A22,J$2,'..'!$B$5)-Abschreibungsbarwert('..'!$B$7,'.'!$A22,'.'!J$2,'..'!$B$5))*'..'!$B$5 -> -0.04232868838 | K22: =(Abschreibungsbarwert(-1,$A22,K$2,'..'!$B$5)-Abschreibungsbarwert('..'!$B$7,'.'!$A22,'.'!K$2,'..'!$B$5))*'..'!$B$5 -> -0.04438873151 | L22: =(Abschreibungsbarwert(-1,$A22,L$2,'..'!$B$5)-Abschreibungsbarwert('..'!$B$7,'.'!$A22,'.'!L$2,'..'!$B$5))*'..'!$B$5 -> -0.04613696874 | M22: =(Abschreibungsbarwert(-1,$A22,M$2,'..'!$B$5)-Abschreibungsbarwert('..'!$B$7,'.'!$A22,'.'!M$2,'..'!$B$5))*'..'!$B$5 -> -0.04761140742 | N22: =(Abschreibungsbarwert(-1,$A22,N$2,'..'!$B$5)-Abschreibungsbarwert('..'!$B$7,'.'!$A22,'.'!N$2,'..'!$B$5))*'..'!$B$5 -> -0.04884533873 | O22: =(Abschreibungsbarwert(-1,$A22,O$2,'..'!$B$5)-Abschreibungsbarwert('..'!$B$7,'.'!$A22,'.'!O$2,'..'!$B$5))*'..'!$B$5 -> -0.04986795104 | P22: =(Abschreibungsbarwert(-1,$A22,P$2,'..'!$B$5)-Abschreibungsbarwert('..'!$B$7,'.'!$A22,'.'!P$2,'..'!$B$5))*'..'!$B$5 -> -0.05070485947 | Q22: =(Abschreibungsbarwert(-1,$A22,Q$2,'..'!$B$5)-Abschreibungsbarwert('..'!$B$7,'.'!$A22,'.'!Q$2,'..'!$B$5))*'..'!$B$5 -> -0.05137856359 | R22: =(Abschreibungsbarwert(-1,$A22,R$2,'..'!$B$5)-Abschreibungsbarwert('..'!$B$7,'.'!$A22,'.'!R$2,'..'!$B$5))*'..'!$B$5 -> -0.05190884353 | S22: =(Abschreibungsbarwert(-1,$A22,S$2,'..'!$B$5)-Abschreibungsbarwert('..'!$B$7,'.'!$A22,'.'!S$2,'..'!$B$5))*'..'!$B$5 -> -0.05231310319 | T22: =(Abschreibungsbarwert(-1,$A22,T$2,'..'!$B$5)-Abschreibungsbarwert('..'!$B$7,'.'!$A22,'.'!T$2,'..'!$B$5))*'..'!$B$5 -> -0.05260666787 | U22: =(Abschreibungsbarwert(-1,$A22,U$2,'..'!$B$5)-Abschreibungsbarwert('..'!$B$7,'.'!$A22,'.'!U$2,'..'!$B$5))*'..'!$B$5 -> -0.05280304283 | V22: =(Abschreibungsbarwert(-1,$A22,V$2,'..'!$B$5)-Abschreibungsbarwert('..'!$B$7,'.'!$A22,'.'!V$2,'..'!$B$5))*'..'!$B$5 -> -0.052914138 | W22: =(Abschreibungsbarwert(-1,$A22,W$2,'..'!$B$5)-Abschreibungsbarwert('..'!$B$7,'.'!$A22,'.'!W$2,'..'!$B$5))*'..'!$B$5 -> -0.05295046362 | X22: =(Abschreibungsbarwert(-1,$A22,X$2,'..'!$B$5)-Abschreibungsbarwert('..'!$B$7,'.'!$A22,'.'!X$2,'..'!$B$5))*'..'!$B$5 -> -0.05292130062 | Y22: =(Abschreibungsbarwert(-1,$A22,Y$2,'..'!$B$5)-Abschreibungsbarwert('..'!$B$7,'.'!$A22,'.'!Y$2,'..'!$B$5))*'..'!$B$5 -> -0.05283484934 | Z22: =(Abschreibungsbarwert(-1,$A22,Z$2,'..'!$B$5)-Abschreibungsbarwert('..'!$B$7,'.'!$A22,'.'!Z$2,'..'!$B$5))*'..'!$B$5 -> -0.05269835928
A23: 21 | B23: =(Abschreibungsbarwert(-1,$A23,B$2,'..'!$B$5)-Abschreibungsbarwert('..'!$B$7,'.'!$A23,'.'!B$2,'..'!$B$5))*'..'!$B$5 -> -0.008147186863 | C23: =(Abschreibungsbarwert(-1,$A23,C$2,'..'!$B$5)-Abschreibungsbarwert('..'!$B$7,'.'!$A23,'.'!C$2,'..'!$B$5))*'..'!$B$5 -> -0.01517363334 | D23: =(Abschreibungsbarwert(-1,$A23,D$2,'..'!$B$5)-Abschreibungsbarwert('..'!$B$7,'.'!$A23,'.'!D$2,'..'!$B$5))*'..'!$B$5 -> -0.02122770998 | E23: =(Abschreibungsbarwert(-1,$A23,E$2,'..'!$B$5)-Abschreibungsbarwert('..'!$B$7,'.'!$A23,'.'!E$2,'..'!$B$5))*'..'!$B$5 -> -0.02643733495 | F23: =(Abschreibungsbarwert(-1,$A23,F$2,'..'!$B$5)-Abschreibungsbarwert('..'!$B$7,'.'!$A23,'.'!F$2,'..'!$B$5))*'..'!$B$5 -> -0.03091293543 | G23: =(Abschreibungsbarwert(-1,$A23,G$2,'..'!$B$5)-Abschreibungsbarwert('..'!$B$7,'.'!$A23,'.'!G$2,'..'!$B$5))*'..'!$B$5 -> -0.03474995939 | H23: =(Abschreibungsbarwert(-1,$A23,H$2,'..'!$B$5)-Abschreibungsbarwert('..'!$B$7,'.'!$A23,'.'!H$2,'..'!$B$5))*'..'!$B$5 -> -0.03803100906 | I23: =(Abschreibungsbarwert(-1,$A23,I$2,'..'!$B$5)-Abschreibungsbarwert('..'!$B$7,'.'!$A23,'.'!I$2,'..'!$B$5))*'..'!$B$5 -> -0.04082765566 | J23: =(Abschreibungsbarwert(-1,$A23,J$2,'..'!$B$5)-Abschreibungsbarwert('..'!$B$7,'.'!$A23,'.'!J$2,'..'!$B$5))*'..'!$B$5 -> -0.04320198517 | K23: =(Abschreibungsbarwert(-1,$A23,K$2,'..'!$B$5)-Abschreibungsbarwert('..'!$B$7,'.'!$A23,'.'!K$2,'..'!$B$5))*'..'!$B$5 -> -0.0452079168 | L23: =(Abschreibungsbarwert(-1,$A23,L$2,'..'!$B$5)-Abschreibungsbarwert('..'!$B$7,'.'!$A23,'.'!L$2,'..'!$B$5))*'..'!$B$5 -> -0.04689232919 | M23: =(Abschreibungsbarwert(-1,$A23,M$2,'..'!$B$5)-Abschreibungsbarwert('..'!$B$7,'.'!$A23,'.'!M$2,'..'!$B$5))*'..'!$B$5 -> -0.04829602361 | N23: =(Abschreibungsbarwert(-1,$A23,N$2,'..'!$B$5)-Abschreibungsbarwert('..'!$B$7,'.'!$A23,'.'!N$2,'..'!$B$5))*'..'!$B$5 -> -0.04945454883 | O23: =(Abschreibungsbarwert(-1,$A23,O$2,'..'!$B$5)-Abschreibungsbarwert('..'!$B$7,'.'!$A23,'.'!O$2,'..'!$B$5))*'..'!$B$5 -> -0.0503989086 | P23: =(Abschreibungsbarwert(-1,$A23,P$2,'..'!$B$5)-Abschreibungsbarwert('..'!$B$7,'.'!$A23,'.'!P$2,'..'!$B$5))*'..'!$B$5 -> -0.05115616897 | Q23: =(Abschreibungsbarwert(-1,$A23,Q$2,'..'!$B$5)-Abschreibungsbarwert('..'!$B$7,'.'!$A23,'.'!Q$2,'..'!$B$5))*'..'!$B$5 -> -0.05174998057 | R23: =(Abschreibungsbarwert(-1,$A23,R$2,'..'!$B$5)-Abschreibungsbarwert('..'!$B$7,'.'!$A23,'.'!R$2,'..'!$B$5))*'..'!$B$5 -> -0.05220102815 | S23: =(Abschreibungsbarwert(-1,$A23,S$2,'..'!$B$5)-Abschreibungsbarwert('..'!$B$7,'.'!$A23,'.'!S$2,'..'!$B$5))*'..'!$B$5 -> -0.05252741804 | T23: =(Abschreibungsbarwert(-1,$A23,T$2,'..'!$B$5)-Abschreibungsbarwert('..'!$B$7,'.'!$A23,'.'!T$2,'..'!$B$5))*'..'!$B$5 -> -0.0527450125 | U23: =(Abschreibungsbarwert(-1,$A23,U$2,'..'!$B$5)-Abschreibungsbarwert('..'!$B$7,'.'!$A23,'.'!U$2,'..'!$B$5))*'..'!$B$5 -> -0.0528677186 | V23: =(Abschreibungsbarwert(-1,$A23,V$2,'..'!$B$5)-Abschreibungsbarwert('..'!$B$7,'.'!$A23,'.'!V$2,'..'!$B$5))*'..'!$B$5 -> -0.05290773812 | W23: =(Abschreibungsbarwert(-1,$A23,W$2,'..'!$B$5)-Abschreibungsbarwert('..'!$B$7,'.'!$A23,'.'!W$2,'..'!$B$5))*'..'!$B$5 -> -0.05287578398 | X23: =(Abschreibungsbarwert(-1,$A23,X$2,'..'!$B$5)-Abschreibungsbarwert('..'!$B$7,'.'!$A23,'.'!X$2,'..'!$B$5))*'..'!$B$5 -> -0.05278126781 | Y23: =(Abschreibungsbarwert(-1,$A23,Y$2,'..'!$B$5)-Abschreibungsbarwert('..'!$B$7,'.'!$A23,'.'!Y$2,'..'!$B$5))*'..'!$B$5 -> -0.05263246285 | Z23: =(Abschreibungsbarwert(-1,$A23,Z$2,'..'!$B$5)-Abschreibungsbarwert('..'!$B$7,'.'!$A23,'.'!Z$2,'..'!$B$5))*'..'!$B$5 -> -0.0524366455
A24: 22 | B24: =(Abschreibungsbarwert(-1,$A24,B$2,'..'!$B$5)-Abschreibungsbarwert('..'!$B$7,'.'!$A24,'.'!B$2,'..'!$B$5))*'..'!$B$5 -> -0.008476423242 | C24: =(Abschreibungsbarwert(-1,$A24,C$2,'..'!$B$5)-Abschreibungsbarwert('..'!$B$7,'.'!$A24,'.'!C$2,'..'!$B$5))*'..'!$B$5 -> -0.01573981238 | D24: =(Abschreibungsbarwert(-1,$A24,D$2,'..'!$B$5)-Abschreibungsbarwert('..'!$B$7,'.'!$A24,'.'!D$2,'..'!$B$5))*'..'!$B$5 -> -0.02195691656 | E24: =(Abschreibungsbarwert(-1,$A24,E$2,'..'!$B$5)-Abschreibungsbarwert('..'!$B$7,'.'!$A24,'.'!E$2,'..'!$B$5))*'..'!$B$5 -> -0.0272706572 | F24: =(Abschreibungsbarwert(-1,$A24,F$2,'..'!$B$5)-Abschreibungsbarwert('..'!$B$7,'.'!$A24,'.'!F$2,'..'!$B$5))*'..'!$B$5 -> -0.03180369906 | G24: =(Abschreibungsbarwert(-1,$A24,G$2,'..'!$B$5)-Abschreibungsbarwert('..'!$B$7,'.'!$A24,'.'!G$2,'..'!$B$5))*'..'!$B$5 -> -0.03566146095 | H24: =(Abschreibungsbarwert(-1,$A24,H$2,'..'!$B$5)-Abschreibungsbarwert('..'!$B$7,'.'!$A24,'.'!H$2,'..'!$B$5))*'..'!$B$5 -> -0.03893465772 | I24: =(Abschreibungsbarwert(-1,$A24,I$2,'..'!$B$5)-Abschreibungsbarwert('..'!$B$7,'.'!$A24,'.'!I$2,'..'!$B$5))*'..'!$B$5 -> -0.04170144979 | J24: =(Abschreibungsbarwert(-1,$A24,J$2,'..'!$B$5)-Abschreibungsbarwert('..'!$B$7,'.'!$A24,'.'!J$2,'..'!$B$5))*'..'!$B$5 -> -0.04402926341 | K24: =(Abschreibungsbarwert(-1,$A24,K$2,'..'!$B$5)-Abschreibungsbarwert('..'!$B$7,'.'!$A24,'.'!K$2,'..'!$B$5))*'..'!$B$5 -> -0.04597633449 | L24: =(Abschreibungsbarwert(-1,$A24,L$2,'..'!$B$5)-Abschreibungsbarwert('..'!$B$7,'.'!$A24,'.'!L$2,'..'!$B$5))*'..'!$B$5 -> -0.0475930196 | M24: =(Abschreibungsbarwert(-1,$A24,M$2,'..'!$B$5)-Abschreibungsbarwert('..'!$B$7,'.'!$A24,'.'!M$2,'..'!$B$5))*'..'!$B$5 -> -0.04892291111 | N24: =(Abschreibungsbarwert(-1,$A24,N$2,'..'!$B$5)-Abschreibungsbarwert('..'!$B$7,'.'!$A24,'.'!N$2,'..'!$B$5))*'..'!$B$5 -> -0.05000378684 | O24: =(Abschreibungsbarwert(-1,$A24,O$2,'..'!$B$5)-Abschreibungsbarwert('..'!$B$7,'.'!$A24,'.'!O$2,'..'!$B$5))*'..'!$B$5 -> -0.05086842001 | P24: =(Abschreibungsbarwert(-1,$A24,P$2,'..'!$B$5)-Abschreibungsbarwert('..'!$B$7,'.'!$A24,'.'!P$2,'..'!$B$5))*'..'!$B$5 -> -0.05154527091 | Q24: =(Abschreibungsbarwert(-1,$A24,Q$2,'..'!$B$5)-Abschreibungsbarwert('..'!$B$7,'.'!$A24,'.'!Q$2,'..'!$B$5))*'..'!$B$5 -> -0.05205907847 | R24: =(Abschreibungsbarwert(-1,$A24,R$2,'..'!$B$5)-Abschreibungsbarwert('..'!$B$7,'.'!$A24,'.'!R$2,'..'!$B$5))*'..'!$B$5 -> -0.05243136668 | S24: =(Abschreibungsbarwert(-1,$A24,S$2,'..'!$B$5)-Abschreibungsbarwert('..'!$B$7,'.'!$A24,'.'!S$2,'..'!$B$5))*'..'!$B$5 -> -0.0526808789 | T24: =(Abschreibungsbarwert(-1,$A24,T$2,'..'!$B$5)-Abschreibungsbarwert('..'!$B$7,'.'!$A24,'.'!T$2,'..'!$B$5))*'..'!$B$5 -> -0.05282395067 | U24: =(Abschreibungsbarwert(-1,$A24,U$2,'..'!$B$5)-Abschreibungsbarwert('..'!$B$7,'.'!$A24,'.'!U$2,'..'!$B$5))*'..'!$B$5 -> -0.05287483016 | V24: =(Abschreibungsbarwert(-1,$A24,V$2,'..'!$B$5)-Abschreibungsbarwert('..'!$B$7,'.'!$A24,'.'!V$2,'..'!$B$5))*'..'!$B$5 -> -0.052845954 | W24: =(Abschreibungsbarwert(-1,$A24,W$2,'..'!$B$5)-Abschreibungsbarwert('..'!$B$7,'.'!$A24,'.'!W$2,'..'!$B$5))*'..'!$B$5 -> -0.05274818492 | X24: =(Abschreibungsbarwert(-1,$A24,X$2,'..'!$B$5)-Abschreibungsbarwert('..'!$B$7,'.'!$A24,'.'!X$2,'..'!$B$5))*'..'!$B$5 -> -0.05259101678 | Y24: =(Abschreibungsbarwert(-1,$A24,Y$2,'..'!$B$5)-Abschreibungsbarwert('..'!$B$7,'.'!$A24,'.'!Y$2,'..'!$B$5))*'..'!$B$5 -> -0.05238275174 | Z24: =(Abschreibungsbarwert(-1,$A24,Z$2,'..'!$B$5)-Abschreibungsbarwert('..'!$B$7,'.'!$A24,'.'!Z$2,'..'!$B$5))*'..'!$B$5 -> -0.05213065332
A25: 23 | B25: =(Abschreibungsbarwert(-1,$A25,B$2,'..'!$B$5)-Abschreibungsbarwert('..'!$B$7,'.'!$A25,'.'!B$2,'..'!$B$5))*'..'!$B$5 -> -0.008801942401 | C25: =(Abschreibungsbarwert(-1,$A25,C$2,'..'!$B$5)-Abschreibungsbarwert('..'!$B$7,'.'!$A25,'.'!C$2,'..'!$B$5))*'..'!$B$5 -> -0.01629589523 | D25: =(Abschreibungsbarwert(-1,$A25,D$2,'..'!$B$5)-Abschreibungsbarwert('..'!$B$7,'.'!$A25,'.'!D$2,'..'!$B$5))*'..'!$B$5 -> -0.02266823935 | E25: =(Abschreibungsbarwert(-1,$A25,E$2,'..'!$B$5)-Abschreibungsbarwert('..'!$B$7,'.'!$A25,'.'!E$2,'..'!$B$5))*'..'!$B$5 -> -0.0280777907 | F25: =(Abschreibungsbarwert(-1,$A25,F$2,'..'!$B$5)-Abschreibungsbarwert('..'!$B$7,'.'!$A25,'.'!F$2,'..'!$B$5))*'..'!$B$5 -> -0.03266007005 | G25: =(Abschreibungsbarwert(-1,$A25,G$2,'..'!$B$5)-Abschreibungsbarwert('..'!$B$7,'.'!$A25,'.'!G$2,'..'!$B$5))*'..'!$B$5 -> -0.03653088116 | H25: =(Abschreibungsbarwert(-1,$A25,H$2,'..'!$B$5)-Abschreibungsbarwert('..'!$B$7,'.'!$A25,'.'!H$2,'..'!$B$5))*'..'!$B$5 -> -0.03978931401 | I25: =(Abschreibungsbarwert(-1,$A25,I$2,'..'!$B$5)-Abschreibungsbarwert('..'!$B$7,'.'!$A25,'.'!I$2,'..'!$B$5))*'..'!$B$5 -> -0.0425202694 | J25: =(Abschreibungsbarwert(-1,$A25,J$2,'..'!$B$5)-Abschreibungsbarwert('..'!$B$7,'.'!$A25,'.'!J$2,'..'!$B$5))*'..'!$B$5 -> -0.04479658459 | K25: =(Abschreibungsbarwert(-1,$A25,K$2,'..'!$B$5)-Abschreibungsbarwert('..'!$B$7,'.'!$A25,'.'!K$2,'..'!$B$5))*'..'!$B$5 -> -0.04668082565 | L25: =(Abschreibungsbarwert(-1,$A25,L$2,'..'!$B$5)-Abschreibungsbarwert('..'!$B$7,'.'!$A25,'.'!L$2,'..'!$B$5))*'..'!$B$5 -> -0.0482268011 | M25: =(Abschreibungsbarwert(-1,$A25,M$2,'..'!$B$5)-Abschreibungsbarwert('..'!$B$7,'.'!$A25,'.'!M$2,'..'!$B$5))*'..'!$B$5 -> -0.04948084209 | N25: =(Abschreibungsbarwert(-1,$A25,N$2,'..'!$B$5)-Abschreibungsbarwert('..'!$B$7,'.'!$A25,'.'!N$2,'..'!$B$5))*'..'!$B$5 -> -0.05048288665 | O25: =(Abschreibungsbarwert(-1,$A25,O$2,'..'!$B$5)-Abschreibungsbarwert('..'!$B$7,'.'!$A25,'.'!O$2,'..'!$B$5))*'..'!$B$5 -> -0.05126739941 | P25: =(Abschreibungsbarwert(-1,$A25,P$2,'..'!$B$5)-Abschreibungsbarwert('..'!$B$7,'.'!$A25,'.'!P$2,'..'!$B$5))*'..'!$B$5 -> -0.05186415281 | Q25: =(Abschreibungsbarwert(-1,$A25,Q$2,'..'!$B$5)-Abschreibungsbarwert('..'!$B$7,'.'!$A25,'.'!Q$2,'..'!$B$5))*'..'!$B$5 -> -0.05229889155 | R25: =(Abschreibungsbarwert(-1,$A25,R$2,'..'!$B$5)-Abschreibungsbarwert('..'!$B$7,'.'!$A25,'.'!R$2,'..'!$B$5))*'..'!$B$5 -> -0.05259389867 | S25: =(Abschreibungsbarwert(-1,$A25,S$2,'..'!$B$5)-Abschreibungsbarwert('..'!$B$7,'.'!$A25,'.'!S$2,'..'!$B$5))*'..'!$B$5 -> -0.05276847829 | T25: =(Abschreibungsbarwert(-1,$A25,T$2,'..'!$B$5)-Abschreibungsbarwert('..'!$B$7,'.'!$A25,'.'!T$2,'..'!$B$5))*'..'!$B$5 -> -0.05283936797 | U25: =(Abschreibungsbarwert(-1,$A25,U$2,'..'!$B$5)-Abschreibungsbarwert('..'!$B$7,'.'!$A25,'.'!U$2,'..'!$B$5))*'..'!$B$5 -> -0.05282109133 | V25: =(Abschreibungsbarwert(-1,$A25,V$2,'..'!$B$5)-Abschreibungsbarwert('..'!$B$7,'.'!$A25,'.'!V$2,'..'!$B$5))*'..'!$B$5 -> -0.05272626007 | W25: =(Abschreibungsbarwert(-1,$A25,W$2,'..'!$B$5)-Abschreibungsbarwert('..'!$B$7,'.'!$A25,'.'!W$2,'..'!$B$5))*'..'!$B$5 -> -0.05256583287 | X25: =(Abschreibungsbarwert(-1,$A25,X$2,'..'!$B$5)-Abschreibungsbarwert('..'!$B$7,'.'!$A25,'.'!X$2,'..'!$B$5))*'..'!$B$5 -> -0.0523493377 | Y25: =(Abschreibungsbarwert(-1,$A25,Y$2,'..'!$B$5)-Abschreibungsbarwert('..'!$B$7,'.'!$A25,'.'!Y$2,'..'!$B$5))*'..'!$B$5 -> -0.05208506293 | Z25: =(Abschreibungsbarwert(-1,$A25,Z$2,'..'!$B$5)-Abschreibungsbarwert('..'!$B$7,'.'!$A25,'.'!Z$2,'..'!$B$5))*'..'!$B$5 -> -0.05178022174
A26: 24 | B26: =(Abschreibungsbarwert(-1,$A26,B$2,'..'!$B$5)-Abschreibungsbarwert('..'!$B$7,'.'!$A26,'.'!B$2,'..'!$B$5))*'..'!$B$5 -> -0.009124093561 | C26: =(Abschreibungsbarwert(-1,$A26,C$2,'..'!$B$5)-Abschreibungsbarwert('..'!$B$7,'.'!$A26,'.'!C$2,'..'!$B$5))*'..'!$B$5 -> -0.01684260645 | D26: =(Abschreibungsbarwert(-1,$A26,D$2,'..'!$B$5)-Abschreibungsbarwert('..'!$B$7,'.'!$A26,'.'!D$2,'..'!$B$5))*'..'!$B$5 -> -0.02336283039 | E26: =(Abschreibungsbarwert(-1,$A26,E$2,'..'!$B$5)-Abschreibungsbarwert('..'!$B$7,'.'!$A26,'.'!E$2,'..'!$B$5))*'..'!$B$5 -> -0.0288603728 | F26: =(Abschreibungsbarwert(-1,$A26,F$2,'..'!$B$5)-Abschreibungsbarwert('..'!$B$7,'.'!$A26,'.'!F$2,'..'!$B$5))*'..'!$B$5 -> -0.03348422255 | G26: =(Abschreibungsbarwert(-1,$A26,G$2,'..'!$B$5)-Abschreibungsbarwert('..'!$B$7,'.'!$A26,'.'!G$2,'..'!$B$5))*'..'!$B$5 -> -0.03736096962 | H26: =(Abschreibungsbarwert(-1,$A26,H$2,'..'!$B$5)-Abschreibungsbarwert('..'!$B$7,'.'!$A26,'.'!H$2,'..'!$B$5))*'..'!$B$5 -> -0.04059832588 | I26: =(Abschreibungsbarwert(-1,$A26,I$2,'..'!$B$5)-Abschreibungsbarwert('..'!$B$7,'.'!$A26,'.'!I$2,'..'!$B$5))*'..'!$B$5 -> -0.04328806765 | J26: =(Abschreibungsbarwert(-1,$A26,J$2,'..'!$B$5)-Abschreibungsbarwert('..'!$B$7,'.'!$A26,'.'!J$2,'..'!$B$5))*'..'!$B$5 -> -0.04550849874 | K26: =(Abschreibungsbarwert(-1,$A26,K$2,'..'!$B$5)-Abschreibungsbarwert('..'!$B$7,'.'!$A26,'.'!K$2,'..'!$B$5))*'..'!$B$5 -> -0.04732651564 | L26: =(Abschreibungsbarwert(-1,$A26,L$2,'..'!$B$5)-Abschreibungsbarwert('..'!$B$7,'.'!$A26,'.'!L$2,'..'!$B$5))*'..'!$B$5 -> -0.04879934172 | M26: =(Abschreibungsbarwert(-1,$A26,M$2,'..'!$B$5)-Abschreibungsbarwert('..'!$B$7,'.'!$A26,'.'!M$2,'..'!$B$5))*'..'!$B$5 -> -0.04997598582 | N26: =(Abschreibungsbarwert(-1,$A26,N$2,'..'!$B$5)-Abschreibungsbarwert('..'!$B$7,'.'!$A26,'.'!N$2,'..'!$B$5))*'..'!$B$5 -> -0.05089847081 | O26: =(Abschreibungsbarwert(-1,$A26,O$2,'..'!$B$5)-Abschreibungsbarwert('..'!$B$7,'.'!$A26,'.'!O$2,'..'!$B$5))*'..'!$B$5 -> -0.05160287016 | P26: =(Abschreibungsbarwert(-1,$A26,P$2,'..'!$B$5)-Abschreibungsbarwert('..'!$B$7,'.'!$A26,'.'!P$2,'..'!$B$5))*'..'!$B$5 -> -0.05212018354 | Q26: =(Abschreibungsbarwert(-1,$A26,Q$2,'..'!$B$5)-Abschreibungsbarwert('..'!$B$7,'.'!$A26,'.'!Q$2,'..'!$B$5))*'..'!$B$5 -> -0.05247707788 | R26: =(Abschreibungsbarwert(-1,$A26,R$2,'..'!$B$5)-Abschreibungsbarwert('..'!$B$7,'.'!$A26,'.'!R$2,'..'!$B$5))*'..'!$B$5 -> -0.05269651511 | S26: =(Abschreibungsbarwert(-1,$A26,S$2,'..'!$B$5)-Abschreibungsbarwert('..'!$B$7,'.'!$A26,'.'!S$2,'..'!$B$5))*'..'!$B$5 -> -0.05279828499 | T26: =(Abschreibungsbarwert(-1,$A26,T$2,'..'!$B$5)-Abschreibungsbarwert('..'!$B$7,'.'!$A26,'.'!T$2,'..'!$B$5))*'..'!$B$5 -> -0.05279945779 | U26: =(Abschreibungsbarwert(-1,$A26,U$2,'..'!$B$5)-Abschreibungsbarwert('..'!$B$7,'.'!$A26,'.'!U$2,'..'!$B$5))*'..'!$B$5 -> -0.05271476954 | V26: =(Abschreibungsbarwert(-1,$A26,V$2,'..'!$B$5)-Abschreibungsbarwert('..'!$B$7,'.'!$A26,'.'!V$2,'..'!$B$5))*'..'!$B$5 -> -0.05255695027 | W26: =(Abschreibungsbarwert(-1,$A26,W$2,'..'!$B$5)-Abschreibungsbarwert('..'!$B$7,'.'!$A26,'.'!W$2,'..'!$B$5))*'..'!$B$5 -> -0.05233700406 | X26: =(Abschreibungsbarwert(-1,$A26,X$2,'..'!$B$5)-Abschreibungsbarwert('..'!$B$7,'.'!$A26,'.'!X$2,'..'!$B$5))*'..'!$B$5 -> -0.05206444837 | Y26: =(Abschreibungsbarwert(-1,$A26,Y$2,'..'!$B$5)-Abschreibungsbarwert('..'!$B$7,'.'!$A26,'.'!Y$2,'..'!$B$5))*'..'!$B$5 -> -0.05174751872 | Z26: =(Abschreibungsbarwert(-1,$A26,Z$2,'..'!$B$5)-Abschreibungsbarwert('..'!$B$7,'.'!$A26,'.'!Z$2,'..'!$B$5))*'..'!$B$5 -> -0.05139334401
A27: 25 | B27: =(Abschreibungsbarwert(-1,$A27,B$2,'..'!$B$5)-Abschreibungsbarwert('..'!$B$7,'.'!$A27,'.'!B$2,'..'!$B$5))*'..'!$B$5 -> -0.00944709509 | C27: =(Abschreibungsbarwert(-1,$A27,C$2,'..'!$B$5)-Abschreibungsbarwert('..'!$B$7,'.'!$A27,'.'!C$2,'..'!$B$5))*'..'!$B$5 -> -0.01738731836 | D27: =(Abschreibungsbarwert(-1,$A27,D$2,'..'!$B$5)-Abschreibungsbarwert('..'!$B$7,'.'!$A27,'.'!D$2,'..'!$B$5))*'..'!$B$5 -> -0.02405041456 | E27: =(Abschreibungsbarwert(-1,$A27,E$2,'..'!$B$5)-Abschreibungsbarwert('..'!$B$7,'.'!$A27,'.'!E$2,'..'!$B$5))*'..'!$B$5 -> -0.02962987419 | F27: =(Abschreibungsbarwert(-1,$A27,F$2,'..'!$B$5)-Abschreibungsbarwert('..'!$B$7,'.'!$A27,'.'!F$2,'..'!$B$5))*'..'!$B$5 -> -0.03428891025 | G27: =(Abschreibungsbarwert(-1,$A27,G$2,'..'!$B$5)-Abschreibungsbarwert('..'!$B$7,'.'!$A27,'.'!G$2,'..'!$B$5))*'..'!$B$5 -> -0.03816540708 | H27: =(Abschreibungsbarwert(-1,$A27,H$2,'..'!$B$5)-Abschreibungsbarwert('..'!$B$7,'.'!$A27,'.'!H$2,'..'!$B$5))*'..'!$B$5 -> -0.04137602492 | I27: =(Abschreibungsbarwert(-1,$A27,I$2,'..'!$B$5)-Abschreibungsbarwert('..'!$B$7,'.'!$A27,'.'!I$2,'..'!$B$5))*'..'!$B$5 -> -0.04401961018 | J27: =(Abschreibungsbarwert(-1,$A27,J$2,'..'!$B$5)-Abschreibungsbarwert('..'!$B$7,'.'!$A27,'.'!J$2,'..'!$B$5))*'..'!$B$5 -> -0.04618003366 | K27: =(Abschreibungsbarwert(-1,$A27,K$2,'..'!$B$5)-Abschreibungsbarwert('..'!$B$7,'.'!$A27,'.'!K$2,'..'!$B$5))*'..'!$B$5 -> -0.04792855657 | L27: =(Abschreibungsbarwert(-1,$A27,L$2,'..'!$B$5)-Abschreibungsbarwert('..'!$B$7,'.'!$A27,'.'!L$2,'..'!$B$5))*'..'!$B$5 -> -0.0493258062 | M27: =(Abschreibungsbarwert(-1,$A27,M$2,'..'!$B$5)-Abschreibungsbarwert('..'!$B$7,'.'!$A27,'.'!M$2,'..'!$B$5))*'..'!$B$5 -> -0.05042342829 | N27: =(Abschreibungsbarwert(-1,$A27,N$2,'..'!$B$5)-Abschreibungsbarwert('..'!$B$7,'.'!$A27,'.'!N$2,'..'!$B$5))*'..'!$B$5 -> -0.05126547128 | O27: =(Abschreibungsbarwert(-1,$A27,O$2,'..'!$B$5)-Abschreibungsbarwert('..'!$B$7,'.'!$A27,'.'!O$2,'..'!$B$5))*'..'!$B$5 -> -0.05188954769 | P27: =(Abschreibungsbarwert(-1,$A27,P$2,'..'!$B$5)-Abschreibungsbarwert('..'!$B$7,'.'!$A27,'.'!P$2,'..'!$B$5))*'..'!$B$5 -> -0.05232781012 | Q27: =(Abschreibungsbarwert(-1,$A27,Q$2,'..'!$B$5)-Abschreibungsbarwert('..'!$B$7,'.'!$A27,'.'!Q$2,'..'!$B$5))*'..'!$B$5 -> -0.05260777273 | R27: =(Abschreibungsbarwert(-1,$A27,R$2,'..'!$B$5)-Abschreibungsbarwert('..'!$B$7,'.'!$A27,'.'!R$2,'..'!$B$5))*'..'!$B$5 -> -0.05275300358 | S27: =(Abschreibungsbarwert(-1,$A27,S$2,'..'!$B$5)-Abschreibungsbarwert('..'!$B$7,'.'!$A27,'.'!S$2,'..'!$B$5))*'..'!$B$5 -> -0.05278370917 | T27: =(Abschreibungsbarwert(-1,$A27,T$2,'..'!$B$5)-Abschreibungsbarwert('..'!$B$7,'.'!$A27,'.'!T$2,'..'!$B$5))*'..'!$B$5 -> -0.0527172286 | U27: =(Abschreibungsbarwert(-1,$A27,U$2,'..'!$B$5)-Abschreibungsbarwert('..'!$B$7,'.'!$A27,'.'!U$2,'..'!$B$5))*'..'!$B$5 -> -0.05256845193 | V27: =(Abschreibungsbarwert(-1,$A27,V$2,'..'!$B$5)-Abschreibungsbarwert('..'!$B$7,'.'!$A27,'.'!V$2,'..'!$B$5))*'..'!$B$5 -> -0.05235017493 | W27: =(Abschreibungsbarwert(-1,$A27,W$2,'..'!$B$5)-Abschreibungsbarwert('..'!$B$7,'.'!$A27,'.'!W$2,'..'!$B$5))*'..'!$B$5 -> -0.0520734002 | X27: =(Abschreibungsbarwert(-1,$A27,X$2,'..'!$B$5)-Abschreibungsbarwert('..'!$B$7,'.'!$A27,'.'!X$2,'..'!$B$5))*'..'!$B$5 -> -0.05174759328 | Y27: =(Abschreibungsbarwert(-1,$A27,Y$2,'..'!$B$5)-Abschreibungsbarwert('..'!$B$7,'.'!$A27,'.'!Y$2,'..'!$B$5))*'..'!$B$5 -> -0.05138090063 | Z27: =(Abschreibungsbarwert(-1,$A27,Z$2,'..'!$B$5)-Abschreibungsbarwert('..'!$B$7,'.'!$A27,'.'!Z$2,'..'!$B$5))*'..'!$B$5 -> -0.05098033548
A28: 26 | B28: =(Abschreibungsbarwert(-1,$A28,B$2,'..'!$B$5)-Abschreibungsbarwert('..'!$B$7,'.'!$A28,'.'!B$2,'..'!$B$5))*'..'!$B$5 -> -0.009766605264 | C28: =(Abschreibungsbarwert(-1,$A28,C$2,'..'!$B$5)-Abschreibungsbarwert('..'!$B$7,'.'!$A28,'.'!C$2,'..'!$B$5))*'..'!$B$5 -> -0.01792255676 | D28: =(Abschreibungsbarwert(-1,$A28,D$2,'..'!$B$5)-Abschreibungsbarwert('..'!$B$7,'.'!$A28,'.'!D$2,'..'!$B$5))*'..'!$B$5 -> -0.02472138077 | E28: =(Abschreibungsbarwert(-1,$A28,E$2,'..'!$B$5)-Abschreibungsbarwert('..'!$B$7,'.'!$A28,'.'!E$2,'..'!$B$5))*'..'!$B$5 -> -0.03037535237 | F28: =(Abschreibungsbarwert(-1,$A28,F$2,'..'!$B$5)-Abschreibungsbarwert('..'!$B$7,'.'!$A28,'.'!F$2,'..'!$B$5))*'..'!$B$5 -> -0.03506249947 | G28: =(Abschreibungsbarwert(-1,$A28,G$2,'..'!$B$5)-Abschreibungsbarwert('..'!$B$7,'.'!$A28,'.'!G$2,'..'!$B$5))*'..'!$B$5 -> -0.03893236743 | H28: =(Abschreibungsbarwert(-1,$A28,H$2,'..'!$B$5)-Abschreibungsbarwert('..'!$B$7,'.'!$A28,'.'!H$2,'..'!$B$5))*'..'!$B$5 -> -0.042110772 | I28: =(Abschreibungsbarwert(-1,$A28,I$2,'..'!$B$5)-Abschreibungsbarwert('..'!$B$7,'.'!$A28,'.'!I$2,'..'!$B$5))*'..'!$B$5 -> -0.04470372523 | J28: =(Abschreibungsbarwert(-1,$A28,J$2,'..'!$B$5)-Abschreibungsbarwert('..'!$B$7,'.'!$A28,'.'!J$2,'..'!$B$5))*'..'!$B$5 -> -0.04680068396 | K28: =(Abschreibungsbarwert(-1,$A28,K$2,'..'!$B$5)-Abschreibungsbarwert('..'!$B$7,'.'!$A28,'.'!K$2,'..'!$B$5))*'..'!$B$5 -> -0.04847724256 | L28: =(Abschreibungsbarwert(-1,$A28,L$2,'..'!$B$5)-Abschreibungsbarwert('..'!$B$7,'.'!$A28,'.'!L$2,'..'!$B$5))*'..'!$B$5 -> -0.04979736864 | M28: =(Abschreibungsbarwert(-1,$A28,M$2,'..'!$B$5)-Abschreibungsbarwert('..'!$B$7,'.'!$A28,'.'!M$2,'..'!$B$5))*'..'!$B$5 -> -0.05081526267 | N28: =(Abschreibungsbarwert(-1,$A28,N$2,'..'!$B$5)-Abschreibungsbarwert('..'!$B$7,'.'!$A28,'.'!N$2,'..'!$B$5))*'..'!$B$5 -> -0.05157690724 | O28: =(Abschreibungsbarwert(-1,$A28,O$2,'..'!$B$5)-Abschreibungsbarwert('..'!$B$7,'.'!$A28,'.'!O$2,'..'!$B$5))*'..'!$B$5 -> -0.05212135994 | P28: =(Abschreibungsbarwert(-1,$A28,P$2,'..'!$B$5)-Abschreibungsbarwert('..'!$B$7,'.'!$A28,'.'!P$2,'..'!$B$5))*'..'!$B$5 -> -0.05248183404 | Q28: =(Abschreibungsbarwert(-1,$A28,Q$2,'..'!$B$5)-Abschreibungsbarwert('..'!$B$7,'.'!$A28,'.'!Q$2,'..'!$B$5))*'..'!$B$5 -> -0.05268660325 | R28: =(Abschreibungsbarwert(-1,$A28,R$2,'..'!$B$5)-Abschreibungsbarwert('..'!$B$7,'.'!$A28,'.'!R$2,'..'!$B$5))*'..'!$B$5 -> -0.05275976037 | S28: =(Abschreibungsbarwert(-1,$A28,S$2,'..'!$B$5)-Abschreibungsbarwert('..'!$B$7,'.'!$A28,'.'!S$2,'..'!$B$5))*'..'!$B$5 -> -0.05272185449 | T28: =(Abschreibungsbarwert(-1,$A28,T$2,'..'!$B$5)-Abschreibungsbarwert('..'!$B$7,'.'!$A28,'.'!T$2,'..'!$B$5))*'..'!$B$5 -> -0.05259042696 | U28: =(Abschreibungsbarwert(-1,$A28,U$2,'..'!$B$5)-Abschreibungsbarwert('..'!$B$7,'.'!$A28,'.'!U$2,'..'!$B$5))*'..'!$B$5 -> -0.05238046284 | V28: =(Abschreibungsbarwert(-1,$A28,V$2,'..'!$B$5)-Abschreibungsbarwert('..'!$B$7,'.'!$A28,'.'!V$2,'..'!$B$5))*'..'!$B$5 -> -0.05210477183 | W28: =(Abschreibungsbarwert(-1,$A28,W$2,'..'!$B$5)-Abschreibungsbarwert('..'!$B$7,'.'!$A28,'.'!W$2,'..'!$B$5))*'..'!$B$5 -> -0.05177431012 | X28: =(Abschreibungsbarwert(-1,$A28,X$2,'..'!$B$5)-Abschreibungsbarwert('..'!$B$7,'.'!$A28,'.'!X$2,'..'!$B$5))*'..'!$B$5 -> -0.0513984527 | Y28: =(Abschreibungsbarwert(-1,$A28,Y$2,'..'!$B$5)-Abschreibungsbarwert('..'!$B$7,'.'!$A28,'.'!Y$2,'..'!$B$5))*'..'!$B$5 -> -0.05098522406 | Z28: =(Abschreibungsbarwert(-1,$A28,Z$2,'..'!$B$5)-Abschreibungsbarwert('..'!$B$7,'.'!$A28,'.'!Z$2,'..'!$B$5))*'..'!$B$5 -> -0.05054149399
A29: 27 | B29: =(Abschreibungsbarwert(-1,$A29,B$2,'..'!$B$5)-Abschreibungsbarwert('..'!$B$7,'.'!$A29,'.'!B$2,'..'!$B$5))*'..'!$B$5 -> -0.01008290645 | C29: =(Abschreibungsbarwert(-1,$A29,C$2,'..'!$B$5)-Abschreibungsbarwert('..'!$B$7,'.'!$A29,'.'!C$2,'..'!$B$5))*'..'!$B$5 -> -0.01844891275 | D29: =(Abschreibungsbarwert(-1,$A29,D$2,'..'!$B$5)-Abschreibungsbarwert('..'!$B$7,'.'!$A29,'.'!D$2,'..'!$B$5))*'..'!$B$5 -> -0.02537667712 | E29: =(Abschreibungsbarwert(-1,$A29,E$2,'..'!$B$5)-Abschreibungsbarwert('..'!$B$7,'.'!$A29,'.'!E$2,'..'!$B$5))*'..'!$B$5 -> -0.03109816234 | F29: =(Abschreibungsbarwert(-1,$A29,F$2,'..'!$B$5)-Abschreibungsbarwert('..'!$B$7,'.'!$A29,'.'!F$2,'..'!$B$5))*'..'!$B$5 -> -0.0358067924 | G29: =(Abschreibungsbarwert(-1,$A29,G$2,'..'!$B$5)-Abschreibungsbarwert('..'!$B$7,'.'!$A29,'.'!G$2,'..'!$B$5))*'..'!$B$5 -> -0.03966412559 | H29: =(Abschreibungsbarwert(-1,$A29,H$2,'..'!$B$5)-Abschreibungsbarwert('..'!$B$7,'.'!$A29,'.'!H$2,'..'!$B$5))*'..'!$B$5 -> -0.04280532413 | I29: =(Abschreibungsbarwert(-1,$A29,I$2,'..'!$B$5)-Abschreibungsbarwert('..'!$B$7,'.'!$A29,'.'!I$2,'..'!$B$5))*'..'!$B$5 -> -0.04534364576 | J29: =(Abschreibungsbarwert(-1,$A29,J$2,'..'!$B$5)-Abschreibungsbarwert('..'!$B$7,'.'!$A29,'.'!J$2,'..'!$B$5))*'..'!$B$5 -> -0.04737413898 | K29: =(Abschreibungsbarwert(-1,$A29,K$2,'..'!$B$5)-Abschreibungsbarwert('..'!$B$7,'.'!$A29,'.'!K$2,'..'!$B$5))*'..'!$B$5 -> -0.04897668864 | L29: =(Abschreibungsbarwert(-1,$A29,L$2,'..'!$B$5)-Abschreibungsbarwert('..'!$B$7,'.'!$A29,'.'!L$2,'..'!$B$5))*'..'!$B$5 -> -0.05021853068 | M29: =(Abschreibungsbarwert(-1,$A29,M$2,'..'!$B$5)-Abschreibungsbarwert('..'!$B$7,'.'!$A29,'.'!M$2,'..'!$B$5))*'..'!$B$5 -> -0.05115633213 | N29: =(Abschreibungsbarwert(-1,$A29,N$2,'..'!$B$5)-Abschreibungsbarwert('..'!$B$7,'.'!$A29,'.'!N$2,'..'!$B$5))*'..'!$B$5 -> -0.05183791466 | O29: =(Abschreibungsbarwert(-1,$A29,O$2,'..'!$B$5)-Abschreibungsbarwert('..'!$B$7,'.'!$A29,'.'!O$2,'..'!$B$5))*'..'!$B$5 -> -0.05230368509 | P29: =(Abschreibungsbarwert(-1,$A29,P$2,'..'!$B$5)-Abschreibungsbarwert('..'!$B$7,'.'!$A29,'.'!P$2,'..'!$B$5))*'..'!$B$5 -> -0.05258782483 | Q29: =(Abschreibungsbarwert(-1,$A29,Q$2,'..'!$B$5)-Abschreibungsbarwert('..'!$B$7,'.'!$A29,'.'!Q$2,'..'!$B$5))*'..'!$B$5 -> -0.05271928047 | R29: =(Abschreibungsbarwert(-1,$A29,R$2,'..'!$B$5)-Abschreibungsbarwert('..'!$B$7,'.'!$A29,'.'!R$2,'..'!$B$5))*'..'!$B$5 -> -0.05272259019 | S29: =(Abschreibungsbarwert(-1,$A29,S$2,'..'!$B$5)-Abschreibungsbarwert('..'!$B$7,'.'!$A29,'.'!S$2,'..'!$B$5))*'..'!$B$5 -> -0.05261857419 | T29: =(Abschreibungsbarwert(-1,$A29,T$2,'..'!$B$5)-Abschreibungsbarwert('..'!$B$7,'.'!$A29,'.'!T$2,'..'!$B$5))*'..'!$B$5 -> -0.05242491263 | U29: =(Abschreibungsbarwert(-1,$A29,U$2,'..'!$B$5)-Abschreibungsbarwert('..'!$B$7,'.'!$A29,'.'!U$2,'..'!$B$5))*'..'!$B$5 -> -0.05215663002 | V29: =(Abschreibungsbarwert(-1,$A29,V$2,'..'!$B$5)-Abschreibungsbarwert('..'!$B$7,'.'!$A29,'.'!V$2,'..'!$B$5))*'..'!$B$5 -> -0.05182650188 | W29: =(Abschreibungsbarwert(-1,$A29,W$2,'..'!$B$5)-Abschreibungsbarwert('..'!$B$7,'.'!$A29,'.'!W$2,'..'!$B$5))*'..'!$B$5 -> -0.05144539672 | X29: =(Abschreibungsbarwert(-1,$A29,X$2,'..'!$B$5)-Abschreibungsbarwert('..'!$B$7,'.'!$A29,'.'!X$2,'..'!$B$5))*'..'!$B$5 -> -0.05102256395 | Y29: =(Abschreibungsbarwert(-1,$A29,Y$2,'..'!$B$5)-Abschreibungsbarwert('..'!$B$7,'.'!$A29,'.'!Y$2,'..'!$B$5))*'..'!$B$5 -> -0.05056587671 | Z29: =(Abschreibungsbarwert(-1,$A29,Z$2,'..'!$B$5)-Abschreibungsbarwert('..'!$B$7,'.'!$A29,'.'!Z$2,'..'!$B$5))*'..'!$B$5 -> -0.05008203697
A30: 28 | B30: =(Abschreibungsbarwert(-1,$A30,B$2,'..'!$B$5)-Abschreibungsbarwert('..'!$B$7,'.'!$A30,'.'!B$2,'..'!$B$5))*'..'!$B$5 -> -0.01039976013 | C30: =(Abschreibungsbarwert(-1,$A30,C$2,'..'!$B$5)-Abschreibungsbarwert('..'!$B$7,'.'!$A30,'.'!C$2,'..'!$B$5))*'..'!$B$5 -> -0.01897285833 | D30: =(Abschreibungsbarwert(-1,$A30,D$2,'..'!$B$5)-Abschreibungsbarwert('..'!$B$7,'.'!$A30,'.'!D$2,'..'!$B$5))*'..'!$B$5 -> -0.02602471408 | E30: =(Abschreibungsbarwert(-1,$A30,E$2,'..'!$B$5)-Abschreibungsbarwert('..'!$B$7,'.'!$A30,'.'!E$2,'..'!$B$5))*'..'!$B$5 -> -0.0318080825 | F30: =(Abschreibungsbarwert(-1,$A30,F$2,'..'!$B$5)-Abschreibungsbarwert('..'!$B$7,'.'!$A30,'.'!F$2,'..'!$B$5))*'..'!$B$5 -> -0.03653251077 | G30: =(Abschreibungsbarwert(-1,$A30,G$2,'..'!$B$5)-Abschreibungsbarwert('..'!$B$7,'.'!$A30,'.'!G$2,'..'!$B$5))*'..'!$B$5 -> -0.04037202809 | H30: =(Abschreibungsbarwert(-1,$A30,H$2,'..'!$B$5)-Abschreibungsbarwert('..'!$B$7,'.'!$A30,'.'!H$2,'..'!$B$5))*'..'!$B$5 -> -0.04347141156 | I30: =(Abschreibungsbarwert(-1,$A30,I$2,'..'!$B$5)-Abschreibungsbarwert('..'!$B$7,'.'!$A30,'.'!I$2,'..'!$B$5))*'..'!$B$5 -> -0.04595130157 | J30: =(Abschreibungsbarwert(-1,$A30,J$2,'..'!$B$5)-Abschreibungsbarwert('..'!$B$7,'.'!$A30,'.'!J$2,'..'!$B$5))*'..'!$B$5 -> -0.04791238596 | K30: =(Abschreibungsbarwert(-1,$A30,K$2,'..'!$B$5)-Abschreibungsbarwert('..'!$B$7,'.'!$A30,'.'!K$2,'..'!$B$5))*'..'!$B$5 -> -0.04943882905 | L30: =(Abschreibungsbarwert(-1,$A30,L$2,'..'!$B$5)-Abschreibungsbarwert('..'!$B$7,'.'!$A30,'.'!L$2,'..'!$B$5))*'..'!$B$5 -> -0.05060108699 | M30: =(Abschreibungsbarwert(-1,$A30,M$2,'..'!$B$5)-Abschreibungsbarwert('..'!$B$7,'.'!$A30,'.'!M$2,'..'!$B$5))*'..'!$B$5 -> -0.05145822364 | N30: =(Abschreibungsbarwert(-1,$A30,N$2,'..'!$B$5)-Abschreibungsbarwert('..'!$B$7,'.'!$A30,'.'!N$2,'..'!$B$5))*'..'!$B$5 -> -0.05205981896 | O30: =(Abschreibungsbarwert(-1,$A30,O$2,'..'!$B$5)-Abschreibungsbarwert('..'!$B$7,'.'!$A30,'.'!O$2,'..'!$B$5))*'..'!$B$5 -> -0.05244754453 | P30: =(Abschreibungsbarwert(-1,$A30,P$2,'..'!$B$5)-Abschreibungsbarwert('..'!$B$7,'.'!$A30,'.'!P$2,'..'!$B$5))*'..'!$B$5 -> -0.05265646659 | Q30: =(Abschreibungsbarwert(-1,$A30,Q$2,'..'!$B$5)-Abschreibungsbarwert('..'!$B$7,'.'!$A30,'.'!Q$2,'..'!$B$5))*'..'!$B$5 -> -0.05271612546 | R30: =(Abschreibungsbarwert(-1,$A30,R$2,'..'!$B$5)-Abschreibungsbarwert('..'!$B$7,'.'!$A30,'.'!R$2,'..'!$B$5))*'..'!$B$5 -> -0.05265143146 | S30: =(Abschreibungsbarwert(-1,$A30,S$2,'..'!$B$5)-Abschreibungsbarwert('..'!$B$7,'.'!$A30,'.'!S$2,'..'!$B$5))*'..'!$B$5 -> -0.05248340964 | T30: =(Abschreibungsbarwert(-1,$A30,T$2,'..'!$B$5)-Abschreibungsbarwert('..'!$B$7,'.'!$A30,'.'!T$2,'..'!$B$5))*'..'!$B$5 -> -0.05222981997 | U30: =(Abschreibungsbarwert(-1,$A30,U$2,'..'!$B$5)-Abschreibungsbarwert('..'!$B$7,'.'!$A30,'.'!U$2,'..'!$B$5))*'..'!$B$5 -> -0.05190567454 | V30: =(Abschreibungsbarwert(-1,$A30,V$2,'..'!$B$5)-Abschreibungsbarwert('..'!$B$7,'.'!$A30,'.'!V$2,'..'!$B$5))*'..'!$B$5 -> -0.05152366974 | W30: =(Abschreibungsbarwert(-1,$A30,W$2,'..'!$B$5)-Abschreibungsbarwert('..'!$B$7,'.'!$A30,'.'!W$2,'..'!$B$5))*'..'!$B$5 -> -0.05109454782 | X30: =(Abschreibungsbarwert(-1,$A30,X$2,'..'!$B$5)-Abschreibungsbarwert('..'!$B$7,'.'!$A30,'.'!X$2,'..'!$B$5))*'..'!$B$5 -> -0.05062739992 | Y30: =(Abschreibungsbarwert(-1,$A30,Y$2,'..'!$B$5)-Abschreibungsbarwert('..'!$B$7,'.'!$A30,'.'!Y$2,'..'!$B$5))*'..'!$B$5 -> -0.05012992038 | Z30: =(Abschreibungsbarwert(-1,$A30,Z$2,'..'!$B$5)-Abschreibungsbarwert('..'!$B$7,'.'!$A30,'.'!Z$2,'..'!$B$5))*'..'!$B$5 -> -0.04960862058
A31: 29 | B31: =(Abschreibungsbarwert(-1,$A31,B$2,'..'!$B$5)-Abschreibungsbarwert('..'!$B$7,'.'!$A31,'.'!B$2,'..'!$B$5))*'..'!$B$5 -> -0.01071331502 | C31: =(Abschreibungsbarwert(-1,$A31,C$2,'..'!$B$5)-Abschreibungsbarwert('..'!$B$7,'.'!$A31,'.'!C$2,'..'!$B$5))*'..'!$B$5 -> -0.01948787817 | D31: =(Abschreibungsbarwert(-1,$A31,D$2,'..'!$B$5)-Abschreibungsbarwert('..'!$B$7,'.'!$A31,'.'!D$2,'..'!$B$5))*'..'!$B$5 -> -0.02665726155 | E31: =(Abschreibungsbarwert(-1,$A31,E$2,'..'!$B$5)-Abschreibungsbarwert('..'!$B$7,'.'!$A31,'.'!E$2,'..'!$B$5))*'..'!$B$5 -> -0.03249591185 | F31: =(Abschreibungsbarwert(-1,$A31,F$2,'..'!$B$5)-Abschreibungsbarwert('..'!$B$7,'.'!$A31,'.'!F$2,'..'!$B$5))*'..'!$B$5 -> -0.03723005293 | G31: =(Abschreibungsbarwert(-1,$A31,G$2,'..'!$B$5)-Abschreibungsbarwert('..'!$B$7,'.'!$A31,'.'!G$2,'..'!$B$5))*'..'!$B$5 -> -0.04104649885 | H31: =(Abschreibungsbarwert(-1,$A31,H$2,'..'!$B$5)-Abschreibungsbarwert('..'!$B$7,'.'!$A31,'.'!H$2,'..'!$B$5))*'..'!$B$5 -> -0.04409979242 | I31: =(Abschreibungsbarwert(-1,$A31,I$2,'..'!$B$5)-Abschreibungsbarwert('..'!$B$7,'.'!$A31,'.'!I$2,'..'!$B$5))*'..'!$B$5 -> -0.04651799906 | J31: =(Abschreibungsbarwert(-1,$A31,J$2,'..'!$B$5)-Abschreibungsbarwert('..'!$B$7,'.'!$A31,'.'!J$2,'..'!$B$5))*'..'!$B$5 -> -0.04840741885 | K31: =(Abschreibungsbarwert(-1,$A31,K$2,'..'!$B$5)-Abschreibungsbarwert('..'!$B$7,'.'!$A31,'.'!K$2,'..'!$B$5))*'..'!$B$5 -> -0.04985642616 | L31: =(Abschreibungsbarwert(-1,$A31,L$2,'..'!$B$5)-Abschreibungsbarwert('..'!$B$7,'.'!$A31,'.'!L$2,'..'!$B$5))*'..'!$B$5 -> -0.05093860462 | M31: =(Abschreibungsbarwert(-1,$A31,M$2,'..'!$B$5)-Abschreibungsbarwert('..'!$B$7,'.'!$A31,'.'!M$2,'..'!$B$5))*'..'!$B$5 -> -0.05171531167 | N31: =(Abschreibungsbarwert(-1,$A31,N$2,'..'!$B$5)-Abschreibungsbarwert('..'!$B$7,'.'!$A31,'.'!N$2,'..'!$B$5))*'..'!$B$5 -> -0.0522377804 | O31: =(Abschreibungsbarwert(-1,$A31,O$2,'..'!$B$5)-Abschreibungsbarwert('..'!$B$7,'.'!$A31,'.'!O$2,'..'!$B$5))*'..'!$B$5 -> -0.05254884553 | P31: =(Abschreibungsbarwert(-1,$A31,P$2,'..'!$B$5)-Abschreibungsbarwert('..'!$B$7,'.'!$A31,'.'!P$2,'..'!$B$5))*'..'!$B$5 -> -0.05268436321 | Q31: =(Abschreibungsbarwert(-1,$A31,Q$2,'..'!$B$5)-Abschreibungsbarwert('..'!$B$7,'.'!$A31,'.'!Q$2,'..'!$B$5))*'..'!$B$5 -> -0.05267438124 | R31: =(Abschreibungsbarwert(-1,$A31,R$2,'..'!$B$5)-Abschreibungsbarwert('..'!$B$7,'.'!$A31,'.'!R$2,'..'!$B$5))*'..'!$B$5 -> -0.0525441052 | S31: =(Abschreibungsbarwert(-1,$A31,S$2,'..'!$B$5)-Abschreibungsbarwert('..'!$B$7,'.'!$A31,'.'!S$2,'..'!$B$5))*'..'!$B$5 -> -0.05231469758 | T31: =(Abschreibungsbarwert(-1,$A31,T$2,'..'!$B$5)-Abschreibungsbarwert('..'!$B$7,'.'!$A31,'.'!T$2,'..'!$B$5))*'..'!$B$5 -> -0.05200393983 | U31: =(Abschreibungsbarwert(-1,$A31,U$2,'..'!$B$5)-Abschreibungsbarwert('..'!$B$7,'.'!$A31,'.'!U$2,'..'!$B$5))*'..'!$B$5 -> -0.0516267819 | V31: =(Abschreibungsbarwert(-1,$A31,V$2,'..'!$B$5)-Abschreibungsbarwert('..'!$B$7,'.'!$A31,'.'!V$2,'..'!$B$5))*'..'!$B$5 -> -0.05119579909 | W31: =(Abschreibungsbarwert(-1,$A31,W$2,'..'!$B$5)-Abschreibungsbarwert('..'!$B$7,'.'!$A31,'.'!W$2,'..'!$B$5))*'..'!$B$5 -> -0.05072157245 | X31: =(Abschreibungsbarwert(-1,$A31,X$2,'..'!$B$5)-Abschreibungsbarwert('..'!$B$7,'.'!$A31,'.'!X$2,'..'!$B$5))*'..'!$B$5 -> -0.05021300608 | Y31: =(Abschreibungsbarwert(-1,$A31,Y$2,'..'!$B$5)-Abschreibungsbarwert('..'!$B$7,'.'!$A31,'.'!Y$2,'..'!$B$5))*'..'!$B$5 -> -0.04967759224 | Z31: =(Abschreibungsbarwert(-1,$A31,Z$2,'..'!$B$5)-Abschreibungsbarwert('..'!$B$7,'.'!$A31,'.'!Z$2,'..'!$B$5))*'..'!$B$5 -> -0.0491216331
A32: 30 | B32: =(Abschreibungsbarwert(-1,$A32,B$2,'..'!$B$5)-Abschreibungsbarwert('..'!$B$7,'.'!$A32,'.'!B$2,'..'!$B$5))*'..'!$B$5 -> -0.01102380384 | C32: =(Abschreibungsbarwert(-1,$A32,C$2,'..'!$B$5)-Abschreibungsbarwert('..'!$B$7,'.'!$A32,'.'!C$2,'..'!$B$5))*'..'!$B$5 -> -0.0199944641 | D32: =(Abschreibungsbarwert(-1,$A32,D$2,'..'!$B$5)-Abschreibungsbarwert('..'!$B$7,'.'!$A32,'.'!D$2,'..'!$B$5))*'..'!$B$5 -> -0.02727511502 | E32: =(Abschreibungsbarwert(-1,$A32,E$2,'..'!$B$5)-Abschreibungsbarwert('..'!$B$7,'.'!$A32,'.'!E$2,'..'!$B$5))*'..'!$B$5 -> -0.03316279206 | F32: =(Abschreibungsbarwert(-1,$A32,F$2,'..'!$B$5)-Abschreibungsbarwert('..'!$B$7,'.'!$A32,'.'!F$2,'..'!$B$5))*'..'!$B$5 -> -0.03790093731 | G32: =(Abschreibungsbarwert(-1,$A32,G$2,'..'!$B$5)-Abschreibungsbarwert('..'!$B$7,'.'!$A32,'.'!G$2,'..'!$B$5))*'..'!$B$5 -> -0.04168944784 | H32: =(Abschreibungsbarwert(-1,$A32,H$2,'..'!$B$5)-Abschreibungsbarwert('..'!$B$7,'.'!$A32,'.'!H$2,'..'!$B$5))*'..'!$B$5 -> -0.04469276699 | I32: =(Abschreibungsbarwert(-1,$A32,I$2,'..'!$B$5)-Abschreibungsbarwert('..'!$B$7,'.'!$A32,'.'!I$2,'..'!$B$5))*'..'!$B$5 -> -0.04704641346 | J32: =(Abschreibungsbarwert(-1,$A32,J$2,'..'!$B$5)-Abschreibungsbarwert('..'!$B$7,'.'!$A32,'.'!J$2,'..'!$B$5))*'..'!$B$5 -> -0.04886226083 | K32: =(Abschreibungsbarwert(-1,$A32,K$2,'..'!$B$5)-Abschreibungsbarwert('..'!$B$7,'.'!$A32,'.'!K$2,'..'!$B$5))*'..'!$B$5 -> -0.05023281549 | L32: =(Abschreibungsbarwert(-1,$A32,L$2,'..'!$B$5)-Abschreibungsbarwert('..'!$B$7,'.'!$A32,'.'!L$2,'..'!$B$5))*'..'!$B$5 -> -0.05123468994 | M32: =(Abschreibungsbarwert(-1,$A32,M$2,'..'!$B$5)-Abschreibungsbarwert('..'!$B$7,'.'!$A32,'.'!M$2,'..'!$B$5))*'..'!$B$5 -> -0.05193142855 | N32: =(Abschreibungsbarwert(-1,$A32,N$2,'..'!$B$5)-Abschreibungsbarwert('..'!$B$7,'.'!$A32,'.'!N$2,'..'!$B$5))*'..'!$B$5 -> -0.05237581102 | O32: =(Abschreibungsbarwert(-1,$A32,O$2,'..'!$B$5)-Abschreibungsbarwert('..'!$B$7,'.'!$A32,'.'!O$2,'..'!$B$5))*'..'!$B$5 -> -0.05261173383 | P32: =(Abschreibungsbarwert(-1,$A32,P$2,'..'!$B$5)-Abschreibungsbarwert('..'!$B$7,'.'!$A32,'.'!P$2,'..'!$B$5))*'..'!$B$5 -> -0.05267574978 | Q32: =(Abschreibungsbarwert(-1,$A32,Q$2,'..'!$B$5)-Abschreibungsbarwert('..'!$B$7,'.'!$A32,'.'!Q$2,'..'!$B$5))*'..'!$B$5 -> -0.05259833035 | R32: =(Abschreibungsbarwert(-1,$A32,R$2,'..'!$B$5)-Abschreibungsbarwert('..'!$B$7,'.'!$A32,'.'!R$2,'..'!$B$5))*'..'!$B$5 -> -0.05240490264 | S32: =(Abschreibungsbarwert(-1,$A32,S$2,'..'!$B$5)-Abschreibungsbarwert('..'!$B$7,'.'!$A32,'.'!S$2,'..'!$B$5))*'..'!$B$5 -> -0.0521167026 | T32: =(Abschreibungsbarwert(-1,$A32,T$2,'..'!$B$5)-Abschreibungsbarwert('..'!$B$7,'.'!$A32,'.'!T$2,'..'!$B$5))*'..'!$B$5 -> -0.05175147864 | U32: =(Abschreibungsbarwert(-1,$A32,U$2,'..'!$B$5)-Abschreibungsbarwert('..'!$B$7,'.'!$A32,'.'!U$2,'..'!$B$5))*'..'!$B$5 -> -0.05132407254 | V32: =(Abschreibungsbarwert(-1,$A32,V$2,'..'!$B$5)-Abschreibungsbarwert('..'!$B$7,'.'!$A32,'.'!V$2,'..'!$B$5))*'..'!$B$5 -> -0.05084690023 | W32: =(Abschreibungsbarwert(-1,$A32,W$2,'..'!$B$5)-Abschreibungsbarwert('..'!$B$7,'.'!$A32,'.'!W$2,'..'!$B$5))*'..'!$B$5 -> -0.05033035016 | X32: =(Abschreibungsbarwert(-1,$A32,X$2,'..'!$B$5)-Abschreibungsbarwert('..'!$B$7,'.'!$A32,'.'!X$2,'..'!$B$5))*'..'!$B$5 -> -0.049783114 | Y32: =(Abschreibungsbarwert(-1,$A32,Y$2,'..'!$B$5)-Abschreibungsbarwert('..'!$B$7,'.'!$A32,'.'!Y$2,'..'!$B$5))*'..'!$B$5 -> -0.04921246164 | Z32: =(Abschreibungsbarwert(-1,$A32,Z$2,'..'!$B$5)-Abschreibungsbarwert('..'!$B$7,'.'!$A32,'.'!Z$2,'..'!$B$5))*'..'!$B$5 -> -0.04862447027
A33: 31 | B33: =(Abschreibungsbarwert(-1,$A33,B$2,'..'!$B$5)-Abschreibungsbarwert('..'!$B$7,'.'!$A33,'.'!B$2,'..'!$B$5))*'..'!$B$5 -> -0.0113346079 | C33: =(Abschreibungsbarwert(-1,$A33,C$2,'..'!$B$5)-Abschreibungsbarwert('..'!$B$7,'.'!$A33,'.'!C$2,'..'!$B$5))*'..'!$B$5 -> -0.02049834372 | D33: =(Abschreibungsbarwert(-1,$A33,D$2,'..'!$B$5)-Abschreibungsbarwert('..'!$B$7,'.'!$A33,'.'!D$2,'..'!$B$5))*'..'!$B$5 -> -0.02788560685 | E33: =(Abschreibungsbarwert(-1,$A33,E$2,'..'!$B$5)-Abschreibungsbarwert('..'!$B$7,'.'!$A33,'.'!E$2,'..'!$B$5))*'..'!$B$5 -> -0.03381712594 | F33: =(Abschreibungsbarwert(-1,$A33,F$2,'..'!$B$5)-Abschreibungsbarwert('..'!$B$7,'.'!$A33,'.'!F$2,'..'!$B$5))*'..'!$B$5 -> -0.03855424961 | G33: =(Abschreibungsbarwert(-1,$A33,G$2,'..'!$B$5)-Abschreibungsbarwert('..'!$B$7,'.'!$A33,'.'!G$2,'..'!$B$5))*'..'!$B$5 -> -0.04231036054 | H33: =(Abschreibungsbarwert(-1,$A33,H$2,'..'!$B$5)-Abschreibungsbarwert('..'!$B$7,'.'!$A33,'.'!H$2,'..'!$B$5))*'..'!$B$5 -> -0.04526001217 | I33: =(Abschreibungsbarwert(-1,$A33,I$2,'..'!$B$5)-Abschreibungsbarwert('..'!$B$7,'.'!$A33,'.'!I$2,'..'!$B$5))*'..'!$B$5 -> -0.04754625858 | J33: =(Abschreibungsbarwert(-1,$A33,J$2,'..'!$B$5)-Abschreibungsbarwert('..'!$B$7,'.'!$A33,'.'!J$2,'..'!$B$5))*'..'!$B$5 -> -0.04928654747 | K33: =(Abschreibungsbarwert(-1,$A33,K$2,'..'!$B$5)-Abschreibungsbarwert('..'!$B$7,'.'!$A33,'.'!K$2,'..'!$B$5))*'..'!$B$5 -> -0.05057746809 | L33: =(Abschreibungsbarwert(-1,$A33,L$2,'..'!$B$5)-Abschreibungsbarwert('..'!$B$7,'.'!$A33,'.'!L$2,'..'!$B$5))*'..'!$B$5 -> -0.05149858477 | M33: =(Abschreibungsbarwert(-1,$A33,M$2,'..'!$B$5)-Abschreibungsbarwert('..'!$B$7,'.'!$A33,'.'!M$2,'..'!$B$5))*'..'!$B$5 -> -0.05211553851 | N33: =(Abschreibungsbarwert(-1,$A33,N$2,'..'!$B$5)-Abschreibungsbarwert('..'!$B$7,'.'!$A33,'.'!N$2,'..'!$B$5))*'..'!$B$5 -> -0.05248256166 | O33: =(Abschreibungsbarwert(-1,$A33,O$2,'..'!$B$5)-Abschreibungsbarwert('..'!$B$7,'.'!$A33,'.'!O$2,'..'!$B$5))*'..'!$B$5 -> -0.05264452087 | P33: =(Abschreibungsbarwert(-1,$A33,P$2,'..'!$B$5)-Abschreibungsbarwert('..'!$B$7,'.'!$A33,'.'!P$2,'..'!$B$5))*'..'!$B$5 -> -0.05263858002 | Q33: =(Abschreibungsbarwert(-1,$A33,Q$2,'..'!$B$5)-Abschreibungsbarwert('..'!$B$7,'.'!$A33,'.'!Q$2,'..'!$B$5))*'..'!$B$5 -> -0.05249555671 | R33: =(Abschreibungsbarwert(-1,$A33,R$2,'..'!$B$5)-Abschreibungsbarwert('..'!$B$7,'.'!$A33,'.'!R$2,'..'!$B$5))*'..'!$B$5 -> -0.05224103072 | S33: =(Abschreibungsbarwert(-1,$A33,S$2,'..'!$B$5)-Abschreibungsbarwert('..'!$B$7,'.'!$A33,'.'!S$2,'..'!$B$5))*'..'!$B$5 -> -0.05189625167 | T33: =(Abschreibungsbarwert(-1,$A33,T$2,'..'!$B$5)-Abschreibungsbarwert('..'!$B$7,'.'!$A33,'.'!T$2,'..'!$B$5))*'..'!$B$5 -> -0.05147888358 | U33: =(Abschreibungsbarwert(-1,$A33,U$2,'..'!$B$5)-Abschreibungsbarwert('..'!$B$7,'.'!$A33,'.'!U$2,'..'!$B$5))*'..'!$B$5 -> -0.05100361678 | V33: =(Abschreibungsbarwert(-1,$A33,V$2,'..'!$B$5)-Abschreibungsbarwert('..'!$B$7,'.'!$A33,'.'!V$2,'..'!$B$5))*'..'!$B$5 -> -0.05048267174 | W33: =(Abschreibungsbarwert(-1,$A33,W$2,'..'!$B$5)-Abschreibungsbarwert('..'!$B$7,'.'!$A33,'.'!W$2,'..'!$B$5))*'..'!$B$5 -> -0.04992621465 | X33: =(Abschreibungsbarwert(-1,$A33,X$2,'..'!$B$5)-Abschreibungsbarwert('..'!$B$7,'.'!$A33,'.'!X$2,'..'!$B$5))*'..'!$B$5 -> -0.04934270073 | Y33: =(Abschreibungsbarwert(-1,$A33,Y$2,'..'!$B$5)-Abschreibungsbarwert('..'!$B$7,'.'!$A33,'.'!Y$2,'..'!$B$5))*'..'!$B$5 -> -0.04873915842 | Z33: =(Abschreibungsbarwert(-1,$A33,Z$2,'..'!$B$5)-Abschreibungsbarwert('..'!$B$7,'.'!$A33,'.'!Z$2,'..'!$B$5))*'..'!$B$5 -> -0.04812142496
A34: 32 | B34: =(Abschreibungsbarwert(-1,$A34,B$2,'..'!$B$5)-Abschreibungsbarwert('..'!$B$7,'.'!$A34,'.'!B$2,'..'!$B$5))*'..'!$B$5 -> -0.01164227923 | C34: =(Abschreibungsbarwert(-1,$A34,C$2,'..'!$B$5)-Abschreibungsbarwert('..'!$B$7,'.'!$A34,'.'!C$2,'..'!$B$5))*'..'!$B$5 -> -0.02099378481 | D34: =(Abschreibungsbarwert(-1,$A34,D$2,'..'!$B$5)-Abschreibungsbarwert('..'!$B$7,'.'!$A34,'.'!D$2,'..'!$B$5))*'..'!$B$5 -> -0.02848162396 | E34: =(Abschreibungsbarwert(-1,$A34,E$2,'..'!$B$5)-Abschreibungsbarwert('..'!$B$7,'.'!$A34,'.'!E$2,'..'!$B$5))*'..'!$B$5 -> -0.03445110465 | F34: =(Abschreibungsbarwert(-1,$A34,F$2,'..'!$B$5)-Abschreibungsbarwert('..'!$B$7,'.'!$A34,'.'!F$2,'..'!$B$5))*'..'!$B$5 -> -0.03918199116 | G34: =(Abschreibungsbarwert(-1,$A34,G$2,'..'!$B$5)-Abschreibungsbarwert('..'!$B$7,'.'!$A34,'.'!G$2,'..'!$B$5))*'..'!$B$5 -> -0.04290141015 | H34: =(Abschreibungsbarwert(-1,$A34,H$2,'..'!$B$5)-Abschreibungsbarwert('..'!$B$7,'.'!$A34,'.'!H$2,'..'!$B$5))*'..'!$B$5 -> -0.04579412079 | I34: =(Abschreibungsbarwert(-1,$A34,I$2,'..'!$B$5)-Abschreibungsbarwert('..'!$B$7,'.'!$A34,'.'!I$2,'..'!$B$5))*'..'!$B$5 -> -0.04801070611 | J34: =(Abschreibungsbarwert(-1,$A34,J$2,'..'!$B$5)-Abschreibungsbarwert('..'!$B$7,'.'!$A34,'.'!J$2,'..'!$B$5))*'..'!$B$5 -> -0.04967412092 | K34: =(Abschreibungsbarwert(-1,$A34,K$2,'..'!$B$5)-Abschreibungsbarwert('..'!$B$7,'.'!$A34,'.'!K$2,'..'!$B$5))*'..'!$B$5 -> -0.05088493774 | L34: =(Abschreibungsbarwert(-1,$A34,L$2,'..'!$B$5)-Abschreibungsbarwert('..'!$B$7,'.'!$A34,'.'!L$2,'..'!$B$5))*'..'!$B$5 -> -0.05172555887 | M34: =(Abschreibungsbarwert(-1,$A34,M$2,'..'!$B$5)-Abschreibungsbarwert('..'!$B$7,'.'!$A34,'.'!M$2,'..'!$B$5))*'..'!$B$5 -> -0.05226360561 | N34: =(Abschreibungsbarwert(-1,$A34,N$2,'..'!$B$5)-Abschreibungsbarwert('..'!$B$7,'.'!$A34,'.'!N$2,'..'!$B$5))*'..'!$B$5 -> -0.05255465134 | O34: =(Abschreibungsbarwert(-1,$A34,O$2,'..'!$B$5)-Abschreibungsbarwert('..'!$B$7,'.'!$A34,'.'!O$2,'..'!$B$5))*'..'!$B$5 -> -0.05264443009 | P34: =(Abschreibungsbarwert(-1,$A34,P$2,'..'!$B$5)-Abschreibungsbarwert('..'!$B$7,'.'!$A34,'.'!P$2,'..'!$B$5))*'..'!$B$5 -> -0.05257062495 | Q34: =(Abschreibungsbarwert(-1,$A34,Q$2,'..'!$B$5)-Abschreibungsbarwert('..'!$B$7,'.'!$A34,'.'!Q$2,'..'!$B$5))*'..'!$B$5 -> -0.05236431928 | R34: =(Abschreibungsbarwert(-1,$A34,R$2,'..'!$B$5)-Abschreibungsbarwert('..'!$B$7,'.'!$A34,'.'!R$2,'..'!$B$5))*'..'!$B$5 -> -0.05205117666 | S34: =(Abschreibungsbarwert(-1,$A34,S$2,'..'!$B$5)-Abschreibungsbarwert('..'!$B$7,'.'!$A34,'.'!S$2,'..'!$B$5))*'..'!$B$5 -> -0.0516524022 | T34: =(Abschreibungsbarwert(-1,$A34,T$2,'..'!$B$5)-Abschreibungsbarwert('..'!$B$7,'.'!$A34,'.'!T$2,'..'!$B$5))*'..'!$B$5 -> -0.0511855272 | U34: =(Abschreibungsbarwert(-1,$A34,U$2,'..'!$B$5)-Abschreibungsbarwert('..'!$B$7,'.'!$A34,'.'!U$2,'..'!$B$5))*'..'!$B$5 -> -0.05066505094 | V34: =(Abschreibungsbarwert(-1,$A34,V$2,'..'!$B$5)-Abschreibungsbarwert('..'!$B$7,'.'!$A34,'.'!V$2,'..'!$B$5))*'..'!$B$5 -> -0.05010296655 | W34: =(Abschreibungsbarwert(-1,$A34,W$2,'..'!$B$5)-Abschreibungsbarwert('..'!$B$7,'.'!$A34,'.'!W$2,'..'!$B$5))*'..'!$B$5 -> -0.04950919266 | X34: =(Abschreibungsbarwert(-1,$A34,X$2,'..'!$B$5)-Abschreibungsbarwert('..'!$B$7,'.'!$A34,'.'!X$2,'..'!$B$5))*'..'!$B$5 -> -0.04889192841 | Y34: =(Abschreibungsbarwert(-1,$A34,Y$2,'..'!$B$5)-Abschreibungsbarwert('..'!$B$7,'.'!$A34,'.'!Y$2,'..'!$B$5))*'..'!$B$5 -> -0.04825794591 | Z34: =(Abschreibungsbarwert(-1,$A34,Z$2,'..'!$B$5)-Abschreibungsbarwert('..'!$B$7,'.'!$A34,'.'!Z$2,'..'!$B$5))*'..'!$B$5 -> -0.04761283157
A35: 33 | B35: =(Abschreibungsbarwert(-1,$A35,B$2,'..'!$B$5)-Abschreibungsbarwert('..'!$B$7,'.'!$A35,'.'!B$2,'..'!$B$5))*'..'!$B$5 -> -0.01194701294 | C35: =(Abschreibungsbarwert(-1,$A35,C$2,'..'!$B$5)-Abschreibungsbarwert('..'!$B$7,'.'!$A35,'.'!C$2,'..'!$B$5))*'..'!$B$5 -> -0.02148120365 | D35: =(Abschreibungsbarwert(-1,$A35,D$2,'..'!$B$5)-Abschreibungsbarwert('..'!$B$7,'.'!$A35,'.'!D$2,'..'!$B$5))*'..'!$B$5 -> -0.02906384473 | E35: =(Abschreibungsbarwert(-1,$A35,E$2,'..'!$B$5)-Abschreibungsbarwert('..'!$B$7,'.'!$A35,'.'!E$2,'..'!$B$5))*'..'!$B$5 -> -0.03506570453 | F35: =(Abschreibungsbarwert(-1,$A35,F$2,'..'!$B$5)-Abschreibungsbarwert('..'!$B$7,'.'!$A35,'.'!F$2,'..'!$B$5))*'..'!$B$5 -> -0.03978545841 | G35: =(Abschreibungsbarwert(-1,$A35,G$2,'..'!$B$5)-Abschreibungsbarwert('..'!$B$7,'.'!$A35,'.'!G$2,'..'!$B$5))*'..'!$B$5 -> -0.04346421921 | H35: =(Abschreibungsbarwert(-1,$A35,H$2,'..'!$B$5)-Abschreibungsbarwert('..'!$B$7,'.'!$A35,'.'!H$2,'..'!$B$5))*'..'!$B$5 -> -0.04629703222 | I35: =(Abschreibungsbarwert(-1,$A35,I$2,'..'!$B$5)-Abschreibungsbarwert('..'!$B$7,'.'!$A35,'.'!I$2,'..'!$B$5))*'..'!$B$5 -> -0.04844199036 | J35: =(Abschreibungsbarwert(-1,$A35,J$2,'..'!$B$5)-Abschreibungsbarwert('..'!$B$7,'.'!$A35,'.'!J$2,'..'!$B$5))*'..'!$B$5 -> -0.05002747915 | K35: =(Abschreibungsbarwert(-1,$A35,K$2,'..'!$B$5)-Abschreibungsbarwert('..'!$B$7,'.'!$A35,'.'!K$2,'..'!$B$5))*'..'!$B$5 -> -0.05115794844 | L35: =(Abschreibungsbarwert(-1,$A35,L$2,'..'!$B$5)-Abschreibungsbarwert('..'!$B$7,'.'!$A35,'.'!L$2,'..'!$B$5))*'..'!$B$5 -> -0.05191852108 | M35: =(Abschreibungsbarwert(-1,$A35,M$2,'..'!$B$5)-Abschreibungsbarwert('..'!$B$7,'.'!$A35,'.'!M$2,'..'!$B$5))*'..'!$B$5 -> -0.05237868107 | N35: =(Abschreibungsbarwert(-1,$A35,N$2,'..'!$B$5)-Abschreibungsbarwert('..'!$B$7,'.'!$A35,'.'!N$2,'..'!$B$5))*'..'!$B$5 -> -0.05259523173 | O35: =(Abschreibungsbarwert(-1,$A35,O$2,'..'!$B$5)-Abschreibungsbarwert('..'!$B$7,'.'!$A35,'.'!O$2,'..'!$B$5))*'..'!$B$5 -> -0.05261467357 | P35: =(Abschreibungsbarwert(-1,$A35,P$2,'..'!$B$5)-Abschreibungsbarwert('..'!$B$7,'.'!$A35,'.'!P$2,'..'!$B$5))*'..'!$B$5 -> -0.05247511975 | Q35: =(Abschreibungsbarwert(-1,$A35,Q$2,'..'!$B$5)-Abschreibungsbarwert('..'!$B$7,'.'!$A35,'.'!Q$2,'..'!$B$5))*'..'!$B$5 -> -0.05220784246 | R35: =(Abschreibungsbarwert(-1,$A35,R$2,'..'!$B$5)-Abschreibungsbarwert('..'!$B$7,'.'!$A35,'.'!R$2,'..'!$B$5))*'..'!$B$5 -> -0.05183852384 | S35: =(Abschreibungsbarwert(-1,$A35,S$2,'..'!$B$5)-Abschreibungsbarwert('..'!$B$7,'.'!$A35,'.'!S$2,'..'!$B$5))*'..'!$B$5 -> -0.05138827014 | T35: =(Abschreibungsbarwert(-1,$A35,T$2,'..'!$B$5)-Abschreibungsbarwert('..'!$B$7,'.'!$A35,'.'!T$2,'..'!$B$5))*'..'!$B$5 -> -0.05087443538 | U35: =(Abschreibungsbarwert(-1,$A35,U$2,'..'!$B$5)-Abschreibungsbarwert('..'!$B$7,'.'!$A35,'.'!U$2,'..'!$B$5))*'..'!$B$5 -> -0.0503112918 | V35: =(Abschreibungsbarwert(-1,$A35,V$2,'..'!$B$5)-Abschreibungsbarwert('..'!$B$7,'.'!$A35,'.'!V$2,'..'!$B$5))*'..'!$B$5 -> -0.04971057666 | W35: =(Abschreibungsbarwert(-1,$A35,W$2,'..'!$B$5)-Abschreibungsbarwert('..'!$B$7,'.'!$A35,'.'!W$2,'..'!$B$5))*'..'!$B$5 -> -0.04908193884 | X35: =(Abschreibungsbarwert(-1,$A35,X$2,'..'!$B$5)-Abschreibungsbarwert('..'!$B$7,'.'!$A35,'.'!X$2,'..'!$B$5))*'..'!$B$5 -> -0.0484333046 | Y35: =(Abschreibungsbarwert(-1,$A35,Y$2,'..'!$B$5)-Abschreibungsbarwert('..'!$B$7,'.'!$A35,'.'!Y$2,'..'!$B$5))*'..'!$B$5 -> -0.04777117734 | Z35: =(Abschreibungsbarwert(-1,$A35,Z$2,'..'!$B$5)-Abschreibungsbarwert('..'!$B$7,'.'!$A35,'.'!Z$2,'..'!$B$5))*'..'!$B$5 -> -0.04710088398
A36: 34 | B36: =(Abschreibungsbarwert(-1,$A36,B$2,'..'!$B$5)-Abschreibungsbarwert('..'!$B$7,'.'!$A36,'.'!B$2,'..'!$B$5))*'..'!$B$5 -> -0.0122518699 | C36: =(Abschreibungsbarwert(-1,$A36,C$2,'..'!$B$5)-Abschreibungsbarwert('..'!$B$7,'.'!$A36,'.'!C$2,'..'!$B$5))*'..'!$B$5 -> -0.02196570467 | D36: =(Abschreibungsbarwert(-1,$A36,D$2,'..'!$B$5)-Abschreibungsbarwert('..'!$B$7,'.'!$A36,'.'!D$2,'..'!$B$5))*'..'!$B$5 -> -0.02963870648 | E36: =(Abschreibungsbarwert(-1,$A36,E$2,'..'!$B$5)-Abschreibungsbarwert('..'!$B$7,'.'!$A36,'.'!E$2,'..'!$B$5))*'..'!$B$5 -> -0.03566819686 | F36: =(Abschreibungsbarwert(-1,$A36,F$2,'..'!$B$5)-Abschreibungsbarwert('..'!$B$7,'.'!$A36,'.'!F$2,'..'!$B$5))*'..'!$B$5 -> -0.04037240433 | G36: =(Abschreibungsbarwert(-1,$A36,G$2,'..'!$B$5)-Abschreibungsbarwert('..'!$B$7,'.'!$A36,'.'!G$2,'..'!$B$5))*'..'!$B$5 -> -0.04400677229 | H36: =(Abschreibungsbarwert(-1,$A36,H$2,'..'!$B$5)-Abschreibungsbarwert('..'!$B$7,'.'!$A36,'.'!H$2,'..'!$B$5))*'..'!$B$5 -> -0.04677678418 | I36: =(Abschreibungsbarwert(-1,$A36,I$2,'..'!$B$5)-Abschreibungsbarwert('..'!$B$7,'.'!$A36,'.'!I$2,'..'!$B$5))*'..'!$B$5 -> -0.04884807448 | J36: =(Abschreibungsbarwert(-1,$A36,J$2,'..'!$B$5)-Abschreibungsbarwert('..'!$B$7,'.'!$A36,'.'!J$2,'..'!$B$5))*'..'!$B$5 -> -0.05035441921 | K36: =(Abschreibungsbarwert(-1,$A36,K$2,'..'!$B$5)-Abschreibungsbarwert('..'!$B$7,'.'!$A36,'.'!K$2,'..'!$B$5))*'..'!$B$5 -> -0.05140406583 | L36: =(Abschreibungsbarwert(-1,$A36,L$2,'..'!$B$5)-Abschreibungsbarwert('..'!$B$7,'.'!$A36,'.'!L$2,'..'!$B$5))*'..'!$B$5 -> -0.05208475951 | M36: =(Abschreibungsbarwert(-1,$A36,M$2,'..'!$B$5)-Abschreibungsbarwert('..'!$B$7,'.'!$A36,'.'!M$2,'..'!$B$5))*'..'!$B$5 -> -0.05246774358 | N36: =(Abschreibungsbarwert(-1,$A36,N$2,'..'!$B$5)-Abschreibungsbarwert('..'!$B$7,'.'!$A36,'.'!N$2,'..'!$B$5))*'..'!$B$5 -> -0.05261095096 | O36: =(Abschreibungsbarwert(-1,$A36,O$2,'..'!$B$5)-Abschreibungsbarwert('..'!$B$7,'.'!$A36,'.'!O$2,'..'!$B$5))*'..'!$B$5 -> -0.05256155587 | P36: =(Abschreibungsbarwert(-1,$A36,P$2,'..'!$B$5)-Abschreibungsbarwert('..'!$B$7,'.'!$A36,'.'!P$2,'..'!$B$5))*'..'!$B$5 -> -0.05235801871 | Q36: =(Abschreibungsbarwert(-1,$A36,Q$2,'..'!$B$5)-Abschreibungsbarwert('..'!$B$7,'.'!$A36,'.'!Q$2,'..'!$B$5))*'..'!$B$5 -> -0.05203172837 | R36: =(Abschreibungsbarwert(-1,$A36,R$2,'..'!$B$5)-Abschreibungsbarwert('..'!$B$7,'.'!$A36,'.'!R$2,'..'!$B$5))*'..'!$B$5 -> -0.05160832413 | S36: =(Abschreibungsbarwert(-1,$A36,S$2,'..'!$B$5)-Abschreibungsbarwert('..'!$B$7,'.'!$A36,'.'!S$2,'..'!$B$5))*'..'!$B$5 -> -0.05110876194 | T36: =(Abschreibungsbarwert(-1,$A36,T$2,'..'!$B$5)-Abschreibungsbarwert('..'!$B$7,'.'!$A36,'.'!T$2,'..'!$B$5))*'..'!$B$5 -> -0.0505501762 | U36: =(Abschreibungsbarwert(-1,$A36,U$2,'..'!$B$5)-Abschreibungsbarwert('..'!$B$7,'.'!$A36,'.'!U$2,'..'!$B$5))*'..'!$B$5 -> -0.0499465779 | V36: =(Abschreibungsbarwert(-1,$A36,V$2,'..'!$B$5)-Abschreibungsbarwert('..'!$B$7,'.'!$A36,'.'!V$2,'..'!$B$5))*'..'!$B$5 -> -0.04930942113 | W36: =(Abschreibungsbarwert(-1,$A36,W$2,'..'!$B$5)-Abschreibungsbarwert('..'!$B$7,'.'!$A36,'.'!W$2,'..'!$B$5))*'..'!$B$5 -> -0.04864806385 | X36: =(Abschreibungsbarwert(-1,$A36,X$2,'..'!$B$5)-Abschreibungsbarwert('..'!$B$7,'.'!$A36,'.'!X$2,'..'!$B$5))*'..'!$B$5 -> -0.0479701432 | Y36: =(Abschreibungsbarwert(-1,$A36,Y$2,'..'!$B$5)-Abschreibungsbarwert('..'!$B$7,'.'!$A36,'.'!Y$2,'..'!$B$5))*'..'!$B$5 -> -0.04728188196 | Z36: =(Abschreibungsbarwert(-1,$A36,Z$2,'..'!$B$5)-Abschreibungsbarwert('..'!$B$7,'.'!$A36,'.'!Z$2,'..'!$B$5))*'..'!$B$5 -> -0.0465883391
A37: 35 | B37: =(Abschreibungsbarwert(-1,$A37,B$2,'..'!$B$5)-Abschreibungsbarwert('..'!$B$7,'.'!$A37,'.'!B$2,'..'!$B$5))*'..'!$B$5 -> -0.01255373919 | C37: =(Abschreibungsbarwert(-1,$A37,C$2,'..'!$B$5)-Abschreibungsbarwert('..'!$B$7,'.'!$A37,'.'!C$2,'..'!$B$5))*'..'!$B$5 -> -0.02244220518 | D37: =(Abschreibungsbarwert(-1,$A37,D$2,'..'!$B$5)-Abschreibungsbarwert('..'!$B$7,'.'!$A37,'.'!D$2,'..'!$B$5))*'..'!$B$5 -> -0.03020001334 | E37: =(Abschreibungsbarwert(-1,$A37,E$2,'..'!$B$5)-Abschreibungsbarwert('..'!$B$7,'.'!$A37,'.'!E$2,'..'!$B$5))*'..'!$B$5 -> -0.0362519022 | F37: =(Abschreibungsbarwert(-1,$A37,F$2,'..'!$B$5)-Abschreibungsbarwert('..'!$B$7,'.'!$A37,'.'!F$2,'..'!$B$5))*'..'!$B$5 -> -0.04093611303 | G37: =(Abschreibungsbarwert(-1,$A37,G$2,'..'!$B$5)-Abschreibungsbarwert('..'!$B$7,'.'!$A37,'.'!G$2,'..'!$B$5))*'..'!$B$5 -> -0.04452262176 | H37: =(Abschreibungsbarwert(-1,$A37,H$2,'..'!$B$5)-Abschreibungsbarwert('..'!$B$7,'.'!$A37,'.'!H$2,'..'!$B$5))*'..'!$B$5 -> -0.04722739308 | I37: =(Abschreibungsbarwert(-1,$A37,I$2,'..'!$B$5)-Abschreibungsbarwert('..'!$B$7,'.'!$A37,'.'!I$2,'..'!$B$5))*'..'!$B$5 -> -0.04922355298 | J37: =(Abschreibungsbarwert(-1,$A37,J$2,'..'!$B$5)-Abschreibungsbarwert('..'!$B$7,'.'!$A37,'.'!J$2,'..'!$B$5))*'..'!$B$5 -> -0.05065016792 | K37: =(Abschreibungsbarwert(-1,$A37,K$2,'..'!$B$5)-Abschreibungsbarwert('..'!$B$7,'.'!$A37,'.'!K$2,'..'!$B$5))*'..'!$B$5 -> -0.05161916048 | L37: =(Abschreibungsbarwert(-1,$A37,L$2,'..'!$B$5)-Abschreibungsbarwert('..'!$B$7,'.'!$A37,'.'!L$2,'..'!$B$5))*'..'!$B$5 -> -0.05222077043 | M37: =(Abschreibungsbarwert(-1,$A37,M$2,'..'!$B$5)-Abschreibungsbarwert('..'!$B$7,'.'!$A37,'.'!M$2,'..'!$B$5))*'..'!$B$5 -> -0.05252787774 | N37: =(Abschreibungsbarwert(-1,$A37,N$2,'..'!$B$5)-Abschreibungsbarwert('..'!$B$7,'.'!$A37,'.'!N$2,'..'!$B$5))*'..'!$B$5 -> -0.05259943269 | O37: =(Abschreibungsbarwert(-1,$A37,O$2,'..'!$B$5)-Abschreibungsbarwert('..'!$B$7,'.'!$A37,'.'!O$2,'..'!$B$5))*'..'!$B$5 -> -0.05248318416 | P37: =(Abschreibungsbarwert(-1,$A37,P$2,'..'!$B$5)-Abschreibungsbarwert('..'!$B$7,'.'!$A37,'.'!P$2,'..'!$B$5))*'..'!$B$5 -> -0.05221785464 | Q37: =(Abschreibungsbarwert(-1,$A37,Q$2,'..'!$B$5)-Abschreibungsbarwert('..'!$B$7,'.'!$A37,'.'!Q$2,'..'!$B$5))*'..'!$B$5 -> -0.05183487811 | R37: =(Abschreibungsbarwert(-1,$A37,R$2,'..'!$B$5)-Abschreibungsbarwert('..'!$B$7,'.'!$A37,'.'!R$2,'..'!$B$5))*'..'!$B$5 -> -0.0513597919 | S37: =(Abschreibungsbarwert(-1,$A37,S$2,'..'!$B$5)-Abschreibungsbarwert('..'!$B$7,'.'!$A37,'.'!S$2,'..'!$B$5))*'..'!$B$5 -> -0.05081335374 | T37: =(Abschreibungsbarwert(-1,$A37,T$2,'..'!$B$5)-Abschreibungsbarwert('..'!$B$7,'.'!$A37,'.'!T$2,'..'!$B$5))*'..'!$B$5 -> -0.05021244035 | U37: =(Abschreibungsbarwert(-1,$A37,U$2,'..'!$B$5)-Abschreibungsbarwert('..'!$B$7,'.'!$A37,'.'!U$2,'..'!$B$5))*'..'!$B$5 -> -0.04957077173 | V37: =(Abschreibungsbarwert(-1,$A37,V$2,'..'!$B$5)-Abschreibungsbarwert('..'!$B$7,'.'!$A37,'.'!V$2,'..'!$B$5))*'..'!$B$5 -> -0.04889949624 | W37: =(Abschreibungsbarwert(-1,$A37,W$2,'..'!$B$5)-Abschreibungsbarwert('..'!$B$7,'.'!$A37,'.'!W$2,'..'!$B$5))*'..'!$B$5 -> -0.0482076641 | X37: =(Abschreibungsbarwert(-1,$A37,X$2,'..'!$B$5)-Abschreibungsbarwert('..'!$B$7,'.'!$A37,'.'!X$2,'..'!$B$5))*'..'!$B$5 -> -0.04750261151 | Y37: =(Abschreibungsbarwert(-1,$A37,Y$2,'..'!$B$5)-Abschreibungsbarwert('..'!$B$7,'.'!$A37,'.'!Y$2,'..'!$B$5))*'..'!$B$5 -> -0.04679027265 | Z37: =(Abschreibungsbarwert(-1,$A37,Z$2,'..'!$B$5)-Abschreibungsbarwert('..'!$B$7,'.'!$A37,'.'!Z$2,'..'!$B$5))*'..'!$B$5 -> -0.04607543372
B40: Minimum: | C40: =MIN(B3:P37) -> -0.05268436321
B41: Maximum: | C41: =MAX(B3:P37) -> 0
